Workbook

Sheet Renseignements
A1: Informations
A7: L'utilisation de ce tableau se veut simple et accessible à tous ! Merci de nous faire parvenir vos remarques et améliorations éventuelles par courriel
A9: admin@lanimetvous.com
A11: Période : | B11: Vacances de Février
A12: Date : | B12: 2016-02-23
A14: Tranches d'âge (TA)
A15: Tranches d'âge 1 (TA1) | B15: 4 | C15: - | D15: 5 | E15: ans
A16: Tranches d'âge 2 (TA2) | B16: 6 | C16: - | D16: 11 | E16: ans
A17: Tranches d'âge 3 (TA3) | B17: 12 | C17: - | D17: 17 | E17: ans
A19: Durée :
A20: Durée de fonctionnement du matin | B20: 4
A21: Durée de fonctionnement de l'après-midi : | B21: 4
A22: Durée de fonctionnement de la soirée : | B22: 4
A23: Une journée dure au maximum | B23: =SUM(B20:D22) -> 12
A24: Durée de fonctionnement d'un séjour : | B24: 10
A26: Taux d'occupation (TO)
A27: Taux d'occupation maximum du matin : | C27: 12
A28: Taux d'occupation maximum de l'après-midi : | C28: 13
A29: Taux d'occupation maximum de la soirée : | C29: 14
A30: Taux d'occupation maximum d'un séjour : | C30: 15
A36: Les dons pour l'association sont les bienvenus
A55: Merci à la communauté CCM pour son soutien technique

Sheet Ce que fait le tableau
A1: Ce que fait ce tableau :
A3: Tranches d'âge :
B4: · | C4: Renseignez les tranches d'âge de votre structure
A6: Moyennes :
B7: · | C7: Moyenne du nombre d'enfant pour chaque semaine
B8: · | C8: Moyenne du nombre d'enfant pour la totalité du séjour
A10: Fréquentations :
B11: · | C11: Fréquentation globale | I11: · | J11: Fréquentation par tranche d'âge
C12: · | D12: En demi-journée pour chaque semaine | J12: · | K12: En heure
C13: · | D13: En demi-journée pour la totalité du séjour | J13: · | K13: En journée
C14: · | D14: En journée pour chaque semaine | J14: · | K14: En demi-journée
C15: · | D15: En journée pour la totalité du séjour
C16: · | D16: En heure pour chaque semaine
C17: · | D17: En heure pour la totalité du séjour
A19: Pourcentages :
B20: · | C20: Fréquentation par semaine par tranche d'âge
A22: Différence Prévisionnel/Réel :
B23: · | C23: Calcul de la différence entre l'effectif prévisionnel et le réel
A25: Base de donnée :
B26: · | C26: Possibilité d'utilisation d'une base de donnée
A27: Le fichier comportant les informations doit impérativement s'intituler "bdd.xlsx"et se trouver dans le même dossier que celui où se trouve ce fichier ! En l'absence du fichier de base de données, il ne vous sera pas possible d'ajouter d'enfant depuis une base de données. Il reste cependant possible d'utiliser le fichier. Le fichier de base de donnée est livré avec le fichier de pointage. Les deux fichiers doivent se trouver dans le même dossier.
A33: plus d'aide à propos de son utilisation…

Sheet Prévisionnel
A2: Date du premier jour du séjour : | E2: Période :
A3: =Renseignements!B12 -> 2016-02-23 | E3: =Renseignements!B11 -> Vacances de Février
H7: Semaine 1 | AB7: Semaine 2 | AV7: Semaine 3 | BP7: Semaine 4 | CJ7: TOT
A8: NOM | B8: Prénom | C8: Date de naissance | D8: Sexe | E8: Régime | F8: Âge | G8: Tranche d'âge | H8: 2016-10-24 | L8: 2016-10-25 | P8: 2016-10-26 | T8: 2016-10-27 | X8: 2016-10-28 | AB8: 2016-10-29 | AF8: 2016-10-30 | AJ8: 2016-10-31 | AN8: 2016-11-01 | AR8: 2016-11-02 | AV8: 2016-11-03 | AZ8: 2016-11-04 | BD8: 2016-11-05 | BH8: 2016-11-06 | BL8: 2016-11-07 | BP8: 2016-11-08 | BT8: 2016-11-09 | BX8: 2016-11-10 | CB8: 2016-11-11 | CF8: 2016-11-12
H9: m | I9: am | J9: s | K9: sé | L9: =H9 -> m | M9: =I9 -> am | N9: =J9 -> s | O9: =K9 -> sé | P9: =L9 -> m | Q9: am | R9: s | S9: sé | T9: m | U9: am | V9: s | W9: sé | X9: m | Y9: am | Z9: s | AA9: sé | AB9: =X9 -> m | AC9: =Y9 -> am | AD9: =Z9 -> s | AE9: =AA9 -> sé | AF9: =AB9 -> m | AG9: =AC9 -> am | AH9: =AD9 -> s | AI9: =AE9 -> sé | AJ9: =AF9 -> m | AK9: =AG9 -> am | AL9: =AH9 -> s | AM9: =AI9 -> sé | AN9: =AJ9 -> m | AO9: =AK9 -> am | AP9: =AL9 -> s | AQ9: =AM9 -> sé | AR9: =AN9 -> m | AS9: =AO9 -> am | AT9: =AP9 -> s | AU9: =AQ9 -> sé | AV9: =AR9 -> m | AW9: =AS9 -> am | AX9: =AT9 -> s | AY9: =AU9 -> sé | AZ9: =AV9 -> m | BA9: =AW9 -> am | BB9: =AX9 -> s | BC9: =AY9 -> sé | BD9: =AZ9 -> m | BE9: =BA9 -> am | BF9: =BB9 -> s | BG9: =BC9 -> sé | BH9: =BD9 -> m | BI9: =BE9 -> am | BJ9: =BF9 -> s | BK9: =BG9 -> sé | BL9: =BH9 -> m | BM9: =BI9 -> am | BN9: =BJ9 -> s | BO9: =BK9 -> sé | BP9: =BL9 -> m | BQ9: =BM9 -> am | BR9: =BN9 -> s | BS9: =BO9 -> sé | BT9: =BP9 -> m | BU9: =BQ9 -> am | BV9: =BR9 -> s | BW9: =BS9 -> sé | BX9: =BT9 -> m | BY9: =BU9 -> am | BZ9: =BV9 -> s | CA9: =BW9 -> sé | CB9: =BX9 -> m | CC9: =BY9 -> am | CD9: =BZ9 -> s | CE9: =CA9 -> sé | CF9: =CB9 -> m | CG9: =CC9 -> am | CH9: =CD9 -> s | CI9: =CE9 -> sé
A10: FILLE | B10: Julie | C10: 2011-08-28 | D10: F | E10: CAF | F10: =IF(C10<>"",DATEDIF(C10,$A$3,"y"),"") -> 4 | G10: =IF(C10="","",IF(F10<Renseignements!$B$15,"Autres",IF(F10<Renseignements!$B$16,Renseignements!$B$15&" "&Renseignements!$C$15&" "&Renseignements!$D$15&" "&Renseignements!$E$15,IF(F10<Renseignements!$B$17,Renseignements!$B$16&" "&Renseignements!$C$16&" "&Renseignements!$D$16&" "&Renseignements!$E$16,IF(F10<=Renseignements!$D$17,Renseignements!$B$17&" "&Renseignements!$C$17&" "&Renseignements!$D$17&" "&Renseignements!$E$17,"Autres"))))) -> 4 - 5 ans | H10: x | AV10: x | AW10: x | AX10: x | AY10: x | AZ10: x | BA10: x | BB10: x | BC10: x | BD10: x | BE10: x | BF10: x | BG10: x | BH10: x | BI10: x | BJ10: x | BK10: x | BL10: x | BM10: x | BN10: x | BO10: x | BP10: x | CA10: x | CB10: x | CJ10: =SUBTOTAL(3,H10:AA10) -> 1
A11: FILLE | B11: Julie | C11: 28/08/2007 | D11: F | E11: CAF | F11: 8 | G11: =IF(C11="","",IF(F11<Renseignements!$B$15,"Autres",IF(F11<Renseignements!$B$16,Renseignements!$B$15&" "&Renseignements!$C$15&" "&Renseignements!$D$15&" "&Renseignements!$E$15,IF(F11<Renseignements!$B$17,Renseignements!$B$16&" "&Renseignements!$C$16&" "&Renseignements!$D$16&" "&Renseignements!$E$16,IF(F11<=Renseignements!$D$17,Renseignements!$B$17&" "&Renseignements!$C$17&" "&Renseignements!$D$17&" "&Renseignements!$E$17,"Autres"))))) -> 6 - 11 ans | H11: x | AV11: x | AW11: x | AX11: x | AY11: x | AZ11: x | BA11: x | BB11: x | BC11: x | BD11: x | BE11: x | BF11: x | BG11: x | BH11: x | BI11: x | BJ11: x | BK11: x | BL11: x | BM11: x | BN11: x | BO11: x | BQ11: x | BZ11: x | CC11: x | CJ11: 1
A12: FILLETTE | B12: Juliette | C12: 2000-01-01 | D12: F | E12: CAF | F12: 16 | G12: =IF(C12="","",IF(F12<Renseignements!$B$15,"Autres",IF(F12<Renseignements!$B$16,Renseignements!$B$15&" "&Renseignements!$C$15&" "&Renseignements!$D$15&" "&Renseignements!$E$15,IF(F12<Renseignements!$B$17,Renseignements!$B$16&" "&Renseignements!$C$16&" "&Renseignements!$D$16&" "&Renseignements!$E$16,IF(F12<=Renseignements!$D$17,Renseignements!$B$17&" "&Renseignements!$C$17&" "&Renseignements!$D$17&" "&Renseignements!$E$17,"Autres"))))) -> 12 - 17 ans | H12: x | I12: x | J12: x | K12: x | L12: x | M12: x | N12: x | O12: x | P12: x | Q12: x | R12: x | S12: x | T12: x | U12: x | V12: x | W12: x | X12: x | Y12: x | Z12: x | AA12: x | AB12: x | AC12: x | AD12: x | AE12: x | AF12: x | AG12: x | AH12: x | AI12: x | AJ12: x | AK12: x | AL12: x | AM12: x | AN12: x | AO12: x | AP12: x | AQ12: x | AR12: x | AS12: x | AT12: x | AU12: x | AV12: x | AW12: x | AX12: x | AY12: x | AZ12: x | BA12: x | BB12: x | BC12: x | BD12: x | BE12: x | BF12: x | BG12: x | BH12: x | BI12: x | BJ12: x | BK12: x | BL12: x | BM12: x | BN12: x | BO12: x | BR12: x | BY12: x | CD12: x | CJ12: 20
A13: GARCON | B13: Marvin | C13: 2011-01-01 | D13: G | E13: CAF | F13: 5 | G13: =IF(C13="","",IF(F13<Renseignements!$B$15,"Autres",IF(F13<Renseignements!$B$16,Renseignements!$B$15&" "&Renseignements!$C$15&" "&Renseignements!$D$15&" "&Renseignements!$E$15,IF(F13<Renseignements!$B$17,Renseignements!$B$16&" "&Renseignements!$C$16&" "&Renseignements!$D$16&" "&Renseignements!$E$16,IF(F13<=Renseignements!$D$17,Renseignements!$B$17&" "&Renseignements!$C$17&" "&Renseignements!$D$17&" "&Renseignements!$E$17,"Autres"))))) -> 4 - 5 ans | H13: x | I13: x | J13: x | K13: x | L13: x | M13: x | N13: x | O13: x | P13: x | Q13: x | R13: x | S13: x | T13: x | U13: x | V13: x | W13: x | X13: x | Y13: x | Z13: x | AA13: x | AB13: x | AC13: x | AD13: x | AE13: x | AF13: x | AG13: x | AH13: x | AI13: x | AJ13: x | AK13: x | AL13: x | AM13: x | AN13: x | AO13: x | AP13: x | AQ13: x | AR13: x | AS13: x | AT13: x | AU13: x | AV13: x | AW13: x | AX13: x | AY13: x | AZ13: x | BA13: x | BB13: x | BC13: x | BD13: x | BE13: x | BF13: x | BG13: x | BH13: x | BI13: x | BJ13: x | BK13: x | BL13: x | BM13: x | BN13: x | BO13: x | BS13: x | BX13: x | CE13: x | CJ13: 20
A14: GARS | B14: Martin | C14: 2007-01-01 | D14: G | E14: CAF | F14: 9 | G14: =IF(C14="","",IF(F14<Renseignements!$B$15,"Autres",IF(F14<Renseignements!$B$16,Renseignements!$B$15&" "&Renseignements!$C$15&" "&Renseignements!$D$15&" "&Renseignements!$E$15,IF(F14<Renseignements!$B$17,Renseignements!$B$16&" "&Renseignements!$C$16&" "&Renseignements!$D$16&" "&Renseignements!$E$16,IF(F14<=Renseignements!$D$17,Renseignements!$B$17&" "&Renseignements!$C$17&" "&Renseignements!$D$17&" "&Renseignements!$E$17,"Autres"))))) -> 6 - 11 ans | H14: x | I14: x | J14: x | K14: x | L14: x | M14: x | N14: x | O14: x | P14: x | Q14: x | R14: x | S14: x | T14: x | U14: x | V14: x | W14: x | X14: x | Y14: x | Z14: x | AA14: x | AB14: x | AC14: x | AD14: x | AE14: x | AF14: x | AG14: x | AH14: x | AI14: x | AJ14: x | AK14: x | AL14: x | AM14: x | AN14: x | AO14: x | AP14: x | AQ14: x | AR14: x | AS14: x | AT14: x | AU14: x | BT14: x | BW14: x | CF14: x | CI14: x | CJ14: 20
A15: GARS | B15: Martin | C15: 2000-01-01 | D15: G | E15: CAF | F15: 16 | G15: =IF(C15="","",IF(F15<Renseignements!$B$15,"Autres",IF(F15<Renseignements!$B$16,Renseignements!$B$15&" "&Renseignements!$C$15&" "&Renseignements!$D$15&" "&Renseignements!$E$15,IF(F15<Renseignements!$B$17,Renseignements!$B$16&" "&Renseignements!$C$16&" "&Renseignements!$D$16&" "&Renseignements!$E$16,IF(F15<=Renseignements!$D$17,Renseignements!$B$17&" "&Renseignements!$C$17&" "&Renseignements!$D$17&" "&Renseignements!$E$17,"Autres"))))) -> 12 - 17 ans | H15: x | I15: x | J15: x | K15: x | L15: x | M15: x | N15: x | O15: x | P15: x | Q15: x | R15: x | S15: x | T15: x | U15: x | V15: x | W15: x | X15: x | Y15: x | Z15: x | AA15: x | AB15: x | AC15: x | AD15: x | AE15: x | AF15: x | AG15: x | AH15: x | AI15: x | AJ15: x | AK15: x | AL15: x | AM15: x | AN15: x | AO15: x | AP15: x | AQ15: x | AR15: x | AS15: x | AT15: x | AU15: x | AV15: x | AW15: x | AX15: x | AY15: x | AZ15: x | BA15: x | BB15: x | BC15: x | BD15: x | BE15: x | BF15: x | BG15: x | BH15: x | BI15: x | BJ15: x | BK15: x | BL15: x | BM15: x | BN15: x | BO15: x | BU15: x | BV15: x | CG15: x | CH15: x | CJ15: 20
F16: =IF(C16<>"",DATEDIF(C16,$A$3,"y"),"") ->  | G16: =IF(C16="","",IF(F16<Renseignements!$B$15,"Autres",IF(F16<Renseignements!$B$16,Renseignements!$B$15&" "&Renseignements!$C$15&" "&Renseignements!$D$15&" "&Renseignements!$E$15,IF(F16<Renseignements!$B$17,Renseignements!$B$16&" "&Renseignements!$C$16&" "&Renseignements!$D$16&" "&Renseignements!$E$16,IF(F16<=Renseignements!$D$17,Renseignements!$B$17&" "&Renseignements!$C$17&" "&Renseignements!$D$17&" "&Renseignements!$E$17,"Autres"))))) ->  | CJ16: 0
F17: Total | G17: =SUM(G18:G21) -> 6 | H17: =SUM(H18:H21) -> 6 | I17: =SUM(I18:I21) -> 4 | J17: =SUM(J18:J21) -> 4 | K17: 4 | L17: 4 | M17: 4 | N17: 4 | O17: 4 | P17: =SUM(P18:P21) -> 4 | Q17: 4 | R17: 4 | S17: 4 | T17: 4 | U17: 4 | V17: 4 | W17: 4 | X17: 4 | Y17: 4 | Z17: 4 | AA17: 4 | AB17: =SUM(AB18:AB21) -> 4 | AC17: =SUM(AC18:AC21) -> 4 | AD17: 4 | AE17: 4 | AF17: 4 | AG17: 4 | AH17: 4 | AI17: 4 | AJ17: 4 | AK17: 4 | AL17: 4 | AM17: 4 | AN17: 4 | AO17: 4 | AP17: 4 | AQ17: 4 | AR17: 4 | AS17: 4 | AT17: 4 | AU17: 4 | AV17: =SUM(AV18:AV21) -> 5 | AW17: =SUM(AW18:AW21) -> 5 | AX17: 5 | AY17: 5 | AZ17: 5 | BA17: 5 | BB17: 5 | BC17: 5 | BD17: 5 | BE17: 5 | BF17: 5 | BG17: 5 | BH17: 5 | BI17: 5 | BJ17: 5 | BK17: 5 | BL17: 5 | BM17: 5 | BN17: 5 | BO17: 5 | BP17: =SUM(BP18:BP21) -> 1 | BQ17: =SUM(BQ18:BQ21) -> 1 | BR17: 1 | BS17: 1 | BT17: 1 | BU17: 1 | BV17: 1 | BW17: 1 | BX17: 1 | BY17: 1 | BZ17: 1 | CA17: 1 | CB17: 1 | CC17: 1 | CD17: 1 | CE17: 1 | CF17: 1 | CG17: 1 | CH17: 1 | CI17: 1
F18: =Renseignements!$B$15&" "&Renseignements!$C$15&" "&Renseignements!$D$15&" "&Renseignements!$E$15 -> 4 - 5 ans | G18: =COUNTIF(G$9:G$16,$F18) -> 2 | H18: =SUMPRODUCT(($G$9:$G$16=$F18)*(H$9:H$16="x")) -> 2 | I18: 1 | J18: 1 | K18: 1 | L18: 1 | M18: 1 | N18: 1 | O18: 1 | P18: 1 | Q18: 1 | R18: =SUMPRODUCT(($G$9:$G$16=$F18)*(R$9:R$16="x")) -> 1 | S18: 1 | T18: 1 | U18: 1 | V18: 1 | W18: 1 | X18: 1 | Y18: 1 | Z18: 1 | AA18: 1 | AB18: =SUMPRODUCT(($G$9:$G$16=$F18)*(AB$9:AB$16="x")) -> 1 | AC18: 1 | AD18: 1 | AE18: 1 | AF18: 1 | AG18: 1 | AH18: 1 | AI18: 1 | AJ18: 1 | AK18: 1 | AL18: =SUMPRODUCT(($G$9:$G$16=$F18)*(AL$9:AL$16="x")) -> 1 | AM18: 1 | AN18: 1 | AO18: 1 | AP18: 1 | AQ18: 1 | AR18: 1 | AS18: 1 | AT18: 1 | AU18: 1 | AV18: =SUMPRODUCT(($G$9:$G$16=$F18)*(AV$9:AV$16="x")) -> 2 | AW18: 2 | AX18: 2 | AY18: 2 | AZ18: 2 | BA18: 2 | BB18: 2 | BC18: 2 | BD18: 2 | BE18: 2 | BF18: =SUMPRODUCT(($G$9:$G$16=$F18)*(BF$9:BF$16="x")) -> 2 | BG18: 2 | BH18: 2 | BI18: 2 | BJ18: 2 | BK18: 2 | BL18: 2 | BM18: 2 | BN18: 2 | BO18: 2 | BP18: =SUMPRODUCT(($G$9:$G$16=$F18)*(BP$9:BP$16="x")) -> 1 | BQ18: 0 | BR18: 0 | BS18: 1 | BT18: 0 | BU18: 0 | BV18: 0 | BW18: 0 | BX18: 1 | BY18: 0 | BZ18: =SUMPRODUCT(($G$9:$G$16=$F18)*(BZ$9:BZ$16="x")) -> 0 | CA18: 1 | CB18: 1 | CC18: 0 | CD18: 0 | CE18: 1 | CF18: 0 | CG18: 0 | CH18: 0 | CI18: 0
F19: =Renseignements!$B$16&" "&Renseignements!$C$16&" "&Renseignements!$D$16&" "&Renseignements!$E$16 -> 6 - 11 ans | G19: =COUNTIF(G$9:G$16,$F19) -> 2 | H19: 2 | I19: 1 | J19: 1 | K19: 1 | L19: 1 | M19: 1 | N19: 1 | O19: 1 | P19: 1 | Q19: 1 | R19: 1 | S19: 1 | T19: 1 | U19: 1 | V19: 1 | W19: 1 | X19: 1 | Y19: 1 | Z19: 1 | AA19: 1 | AB19: 1 | AC19: 1 | AD19: 1 | AE19: 1 | AF19: 1 | AG19: 1 | AH19: 1 | AI19: 1 | AJ19: 1 | AK19: 1 | AL19: 1 | AM19: 1 | AN19: 1 | AO19: 1 | AP19: 1 | AQ19: 1 | AR19: 1 | AS19: 1 | AT19: 1 | AU19: 1 | AV19: 1 | AW19: 1 | AX19: 1 | AY19: 1 | AZ19: 1 | BA19: 1 | BB19: 1 | BC19: 1 | BD19: 1 | BE19: 1 | BF19: 1 | BG19: 1 | BH19: 1 | BI19: 1 | BJ19: 1 | BK19: 1 | BL19: 1 | BM19: 1 | BN19: 1 | BO19: 1 | BP19: 0 | BQ19: 1 | BR19: 0 | BS19: 0 | BT19: 1 | BU19: 0 | BV19: 0 | BW19: 1 | BX19: 0 | BY19: 0 | BZ19: 1 | CA19: 0 | CB19: 0 | CC19: 1 | CD19: 0 | CE19: 0 | CF19: 1 | CG19: 0 | CH19: 0 | CI19: 1
F20: =Renseignements!$B$17&" "&Renseignements!$C$17&" "&Renseignements!$D$17&" "&Renseignements!$E$17 -> 12 - 17 ans | G20: =COUNTIF(G$9:G$16,$F20) -> 2 | H20: 2 | I20: 2 | J20: 2 | K20: 2 | L20: 2 | M20: 2 | N20: 2 | O20: 2 | P20: 2 | Q20: 2 | R20: 2 | S20: 2 | T20: 2 | U20: 2 | V20: 2 | W20: 2 | X20: 2 | Y20: 2 | Z20: 2 | AA20: 2 | AB20: 2 | AC20: 2 | AD20: 2 | AE20: 2 | AF20: 2 | AG20: 2 | AH20: 2 | AI20: 2 | AJ20: 2 | AK20: 2 | AL20: 2 | AM20: 2 | AN20: 2 | AO20: 2 | AP20: 2 | AQ20: 2 | AR20: 2 | AS20: 2 | AT20: 2 | AU20: 2 | AV20: 2 | AW20: 2 | AX20: 2 | AY20: 2 | AZ20: 2 | BA20: 2 | BB20: 2 | BC20: 2 | BD20: 2 | BE20: 2 | BF20: 2 | BG20: 2 | BH20: 2 | BI20: 2 | BJ20: 2 | BK20: 2 | BL20: 2 | BM20: 2 | BN20: 2 | BO20: 2 | BP20: 0 | BQ20: 0 | BR20: 1 | BS20: 0 | BT20: 0 | BU20: 1 | BV20: 1 | BW20: 0 | BX20: 0 | BY20: 1 | BZ20: 0 | CA20: 0 | CB20: 0 | CC20: 0 | CD20: 1 | CE20: 0 | CF20: 0 | CG20: 1 | CH20: 1 | CI20: 0
F21: Autres | G21: =COUNTIF(G$9:G$16,$F21) -> 0 | H21: 0 | I21: 0 | J21: 0 | K21: 0 | L21: 0 | M21: 0 | N21: 0 | O21: 0 | P21: 0 | Q21: 0 | R21: 0 | S21: 0 | T21: 0 | U21: 0 | V21: 0 | W21: 0 | X21: 0 | Y21: 0 | Z21: 0 | AA21: 0 | AB21: 0 | AC21: 0 | AD21: 0 | AE21: 0 | AF21: 0 | AG21: 0 | AH21: 0 | AI21: 0 | AJ21: 0 | AK21: 0 | AL21: 0 | AM21: 0 | AN21: 0 | AO21: 0 | AP21: 0 | AQ21: 0 | AR21: 0 | AS21: 0 | AT21: 0 | AU21: 0 | AV21: 0 | AW21: 0 | AX21: 0 | AY21: 0 | AZ21: 0 | BA21: 0 | BB21: 0 | BC21: 0 | BD21: 0 | BE21: 0 | BF21: 0 | BG21: 0 | BH21: 0 | BI21: 0 | BJ21: 0 | BK21: 0 | BL21: 0 | BM21: 0 | BN21: 0 | BO21: 0 | BP21: 0 | BQ21: 0 | BR21: 0 | BS21: 0 | BT21: 0 | BU21: 0 | BV21: 0 | BW21: 0 | BX21: 0 | BY21: 0 | BZ21: 0 | CA21: 0 | CB21: 0 | CC21: 0 | CD21: 0 | CE21: 0 | CF21: 0 | CG21: 0 | CH21: 0 | CI21: 0
F22: Garçons | G22: =COUNTIF(D$9:D$16,"G") -> 3 | H22: =SUMPRODUCT(($D$9:$D$16="G")*(H$9:H$16="x")) -> 3 | I22: 3 | J22: 3 | K22: 3 | L22: 3 | M22: 3 | N22: 3 | O22: 3 | P22: 3 | Q22: 3 | R22: 3 | S22: 3 | T22: 3 | U22: 3 | V22: 3 | W22: 3 | X22: 3 | Y22: 3 | Z22: 3 | AA22: 3 | AB22: 3 | AC22: 3 | AD22: 3 | AE22: 3 | AF22: 3 | AG22: 3 | AH22: 3 | AI22: 3 | AJ22: 3 | AK22: 3 | AL22: 3 | AM22: 3 | AN22: =SUMPRODUCT(($D$9:$D$16="G")*(AN$9:AN$16="x")) -> 3 | AO22: 3 | AP22: 3 | AQ22: 3 | AR22: 3 | AS22: 3 | AT22: 3 | AU22: 3 | AV22: 2 | AW22: 2 | AX22: 2 | AY22: 2 | AZ22: 2 | BA22: 2 | BB22: 2 | BC22: 2 | BD22: 2 | BE22: 2 | BF22: 2 | BG22: 2 | BH22: 2 | BI22: 2 | BJ22: 2 | BK22: 2 | BL22: 2 | BM22: 2 | BN22: 2 | BO22: 2 | BP22: 0 | BQ22: 0 | BR22: 0 | BS22: 1 | BT22: =SUMPRODUCT(($D$9:$D$16="G")*(BT$9:BT$16="x")) -> 1 | BU22: 1 | BV22: 1 | BW22: 1 | BX22: 1 | BY22: 0 | BZ22: 0 | CA22: 0 | CB22: 0 | CC22: 0 | CD22: 0 | CE22: 1 | CF22: 1 | CG22: 1 | CH22: 1 | CI22: 1
F23: =F18 -> 4 - 5 ans | G23: =SUMPRODUCT(($G$9:$G$16=F23)*($D$9:$D$16="G")) -> 1 | H23: =SUMPRODUCT(($D$9:$D$16="G")*($G$9:$G$16=$F23)*(H$9:H$16="x")) -> 1 | I23: 1 | J23: 1 | K23: 1 | L23: 1 | M23: 1 | N23: 1 | O23: 1 | P23: 1 | Q23: 1 | R23: =SUMPRODUCT(($D$9:$D$16="G")*($G$9:$G$16=$F23)*(R$9:R$16="x")) -> 1 | S23: 1 | T23: 1 | U23: 1 | V23: 1 | W23: 1 | X23: 1 | Y23: 1 | Z23: 1 | AA23: 1 | AB23: =SUMPRODUCT(($D$9:$D$16="G")*($G$9:$G$16=$F23)*(AB$9:AB$16="x")) -> 1 | AC23: 1 | AD23: 1 | AE23: 1 | AF23: 1 | AG23: 1 | AH23: 1 | AI23: 1 | AJ23: 1 | AK23: 1 | AL23: =SUMPRODUCT(($D$9:$D$16="G")*($G$9:$G$16=$F23)*(AL$9:AL$16="x")) -> 1 | AM23: 1 | AN23: 1 | AO23: 1 | AP23: 1 | AQ23: 1 | AR23: 1 | AS23: 1 | AT23: 1 | AU23: 1 | AV23: =SUMPRODUCT(($D$9:$D$16="G")*($G$9:$G$16=$F23)*(AV$9:AV$16="x")) -> 1 | AW23: 1 | AX23: 1 | AY23: 1 | AZ23: 1 | BA23: 1 | BB23: 1 | BC23: 1 | BD23: 1 | BE23: 1 | BF23: =SUMPRODUCT(($D$9:$D$16="G")*($G$9:$G$16=$F23)*(BF$9:BF$16="x")) -> 1 | BG23: 1 | BH23: 1 | BI23: 1 | BJ23: 1 | BK23: 1 | BL23: 1 | BM23: 1 | BN23: 1 | BO23: 1 | BP23: =SUMPRODUCT(($D$9:$D$16="G")*($G$9:$G$16=$F23)*(BP$9:BP$16="x")) -> 0 | BQ23: 0 | BR23: 0 | BS23: 1 | BT23: 0 | BU23: 0 | BV23: 0 | BW23: 0 | BX23: 1 | BY23: 0 | BZ23: =SUMPRODUCT(($D$9:$D$16="G")*($G$9:$G$16=$F23)*(BZ$9:BZ$16="x")) -> 0 | CA23: 0 | CB23: 0 | CC23: 0 | CD23: 0 | CE23: 1 | CF23: 0 | CG23: 0 | CH23: 0 | CI23: 0
F24: =F19 -> 6 - 11 ans | G24: =SUMPRODUCT(($G$9:$G$16=F24)*($D$9:$D$16="G")) -> 1 | H24: 1 | I24: 1 | J24: 1 | K24: 1 | L24: 1 | M24: 1 | N24: 1 | O24: 1 | P24: 1 | Q24: 1 | R24: 1 | S24: 1 | T24: 1 | U24: 1 | V24: 1 | W24: 1 | X24: 1 | Y24: 1 | Z24: 1 | AA24: 1 | AB24: 1 | AC24: 1 | AD24: 1 | AE24: 1 | AF24: 1 | AG24: 1 | AH24: 1 | AI24: 1 | AJ24: 1 | AK24: 1 | AL24: 1 | AM24: 1 | AN24: 1 | AO24: 1 | AP24: 1 | AQ24: 1 | AR24: 1 | AS24: 1 | AT24: 1 | AU24: 1 | AV24: 0 | AW24: 0 | AX24: 0 | AY24: 0 | AZ24: 0 | BA24: 0 | BB24: 0 | BC24: 0 | BD24: 0 | BE24: 0 | BF24: 0 | BG24: 0 | BH24: 0 | BI24: 0 | BJ24: 0 | BK24: 0 | BL24: 0 | BM24: 0 | BN24: 0 | BO24: 0 | BP24: 0 | BQ24: 0 | BR24: 0 | BS24: 0 | BT24: 1 | BU24: 0 | BV24: 0 | BW24: 1 | BX24: 0 | BY24: 0 | BZ24: 0 | CA24: 0 | CB24: 0 | CC24: 0 | CD24: 0 | CE24: 0 | CF24: 1 | CG24: 0 | CH24: 0 | CI24: 1
F25: =F20 -> 12 - 17 ans | G25: =SUMPRODUCT(($G$9:$G$16=F25)*($D$9:$D$16="G")) -> 1 | H25: 1 | I25: 1 | J25: 1 | K25: 1 | L25: 1 | M25: 1 | N25: 1 | O25: 1 | P25: 1 | Q25: 1 | R25: 1 | S25: 1 | T25: 1 | U25: 1 | V25: 1 | W25: 1 | X25: 1 | Y25: 1 | Z25: 1 | AA25: 1 | AB25: 1 | AC25: 1 | AD25: 1 | AE25: 1 | AF25: 1 | AG25: 1 | AH25: 1 | AI25: 1 | AJ25: 1 | AK25: 1 | AL25: 1 | AM25: 1 | AN25: 1 | AO25: 1 | AP25: 1 | AQ25: 1 | AR25: 1 | AS25: 1 | AT25: 1 | AU25: 1 | AV25: 1 | AW25: 1 | AX25: 1 | AY25: 1 | AZ25: 1 | BA25: 1 | BB25: 1 | BC25: 1 | BD25: 1 | BE25: 1 | BF25: 1 | BG25: 1 | BH25: 1 | BI25: 1 | BJ25: 1 | BK25: 1 | BL25: 1 | BM25: 1 | BN25: 1 | BO25: 1 | BP25: 0 | BQ25: 0 | BR25: 0 | BS25: 0 | BT25: 0 | BU25: 1 | BV25: 1 | BW25: 0 | BX25: 0 | BY25: 0 | BZ25: 0 | CA25: 0 | CB25: 0 | CC25: 0 | CD25: 0 | CE25: 0 | CF25: 0 | CG25: 1 | CH25: 1 | CI25: 0
F26: =F21 -> Autres | G26: =SUMPRODUCT(($G$9:$G$16=F26)*($D$9:$D$16="G")) -> 0 | H26: 0 | I26: 0 | J26: 0 | K26: 0 | L26: 0 | M26: 0 | N26: 0 | O26: 0 | P26: 0 | Q26: 0 | R26: 0 | S26: 0 | T26: 0 | U26: 0 | V26: 0 | W26: 0 | X26: 0 | Y26: 0 | Z26: 0 | AA26: 0 | AB26: 0 | AC26: 0 | AD26: 0 | AE26: 0 | AF26: 0 | AG26: 0 | AH26: 0 | AI26: 0 | AJ26: 0 | AK26: 0 | AL26: 0 | AM26: 0 | AN26: 0 | AO26: 0 | AP26: 0 | AQ26: 0 | AR26: 0 | AS26: 0 | AT26: 0 | AU26: 0 | AV26: 0 | AW26: 0 | AX26: 0 | AY26: 0 | AZ26: 0 | BA26: 0 | BB26: 0 | BC26: 0 | BD26: 0 | BE26: 0 | BF26: 0 | BG26: 0 | BH26: 0 | BI26: 0 | BJ26: 0 | BK26: 0 | BL26: 0 | BM26: 0 | BN26: 0 | BO26: 0 | BP26: 0 | BQ26: 0 | BR26: 0 | BS26: 0 | BT26: 0 | BU26: 0 | BV26: 0 | BW26: 0 | BX26: 0 | BY26: 0 | BZ26: 0 | CA26: 0 | CB26: 0 | CC26: 0 | CD26: 0 | CE26: 0 | CF26: 0 | CG26: 0 | CH26: 0 | CI26: 0
F27: Filles | G27: =COUNTIF(D$9:D$16,"F") -> 3 | H27: =SUMPRODUCT(($D$9:$D$16="F")*(H$9:H$16="x")) -> 3 | I27: 1 | J27: 1 | K27: 1 | L27: 1 | M27: 1 | N27: 1 | O27: 1 | P27: 1 | Q27: 1 | R27: 1 | S27: 1 | T27: 1 | U27: 1 | V27: 1 | W27: 1 | X27: 1 | Y27: 1 | Z27: 1 | AA27: 1 | AB27: 1 | AC27: 1 | AD27: 1 | AE27: 1 | AF27: 1 | AG27: 1 | AH27: 1 | AI27: 1 | AJ27: 1 | AK27: 1 | AL27: 1 | AM27: 1 | AN27: =SUMPRODUCT(($D$9:$D$16="F")*(AN$9:AN$16="x")) -> 1 | AO27: 1 | AP27: 1 | AQ27: 1 | AR27: 1 | AS27: 1 | AT27: 1 | AU27: 1 | AV27: 3 | AW27: 3 | AX27: 3 | AY27: 3 | AZ27: 3 | BA27: 3 | BB27: 3 | BC27: 3 | BD27: 3 | BE27: 3 | BF27: 3 | BG27: 3 | BH27: 3 | BI27: 3 | BJ27: 3 | BK27: 3 | BL27: 3 | BM27: 3 | BN27: 3 | BO27: 3 | BP27: 1 | BQ27: 1 | BR27: 1 | BS27: 0 | BT27: =SUMPRODUCT(($D$9:$D$16="F")*(BT$9:BT$16="x")) -> 0 | BU27: 0 | BV27: 0 | BW27: 0 | BX27: 0 | BY27: 1 | BZ27: 1 | CA27: 1 | CB27: 1 | CC27: 1 | CD27: 1 | CE27: 0 | CF27: 0 | CG27: 0 | CH27: 0 | CI27: 0
F28: =F18 -> 4 - 5 ans | G28: =SUMPRODUCT(($G$9:$G$16=F28)*($D$9:$D$16="F")) -> 1 | H28: =SUMPRODUCT(($D$9:$D$16="F")*($G$9:$G$16=$F28)*(H$9:H$16="x")) -> 1 | I28: 0 | J28: 0 | K28: 0 | L28: 0 | M28: 0 | N28: 0 | O28: 0 | P28: 0 | Q28: 0 | R28: =SUMPRODUCT(($D$9:$D$16="F")*($G$9:$G$16=$F28)*(R$9:R$16="x")) -> 0 | S28: 0 | T28: 0 | U28: 0 | V28: 0 | W28: 0 | X28: 0 | Y28: 0 | Z28: 0 | AA28: 0 | AB28: =SUMPRODUCT(($D$9:$D$16="F")*($G$9:$G$16=$F28)*(AB$9:AB$16="x")) -> 0 | AC28: 0 | AD28: 0 | AE28: 0 | AF28: 0 | AG28: 0 | AH28: 0 | AI28: 0 | AJ28: 0 | AK28: 0 | AL28: =SUMPRODUCT(($D$9:$D$16="F")*($G$9:$G$16=$F28)*(AL$9:AL$16="x")) -> 0 | AM28: 0 | AN28: 0 | AO28: 0 | AP28: 0 | AQ28: 0 | AR28: 0 | AS28: 0 | AT28: 0 | AU28: 0 | AV28: =SUMPRODUCT(($D$9:$D$16="F")*($G$9:$G$16=$F28)*(AV$9:AV$16="x")) -> 1 | AW28: 1 | AX28: 1 | AY28: 1 | AZ28: 1 | BA28: 1 | BB28: 1 | BC28: 1 | BD28: 1 | BE28: 1 | BF28: =SUMPRODUCT(($D$9:$D$16="F")*($G$9:$G$16=$F28)*(BF$9:BF$16="x")) -> 1 | BG28: 1 | BH28: 1 | BI28: 1 | BJ28: 1 | BK28: 1 | BL28: 1 | BM28: 1 | BN28: 1 | BO28: 1 | BP28: =SUMPRODUCT(($D$9:$D$16="F")*($G$9:$G$16=$F28)*(BP$9:BP$16="x")) -> 1 | BQ28: 0 | BR28: 0 | BS28: 0 | BT28: 0 | BU28: 0 | BV28: 0 | BW28: 0 | BX28: 0 | BY28: 0 | BZ28: =SUMPRODUCT(($D$9:$D$16="F")*($G$9:$G$16=$F28)*(BZ$9:BZ$16="x")) -> 0 | CA28: 1 | CB28: 1 | CC28: 0 | CD28: 0 | CE28: 0 | CF28: 0 | CG28: 0 | CH28: 0 | CI28: 0
F29: =F19 -> 6 - 11 ans | G29: =SUMPRODUCT(($G$9:$G$16=F29)*($D$9:$D$16="F")) -> 1 | H29: 1 | I29: 0 | J29: 0 | K29: 0 | L29: 0 | M29: 0 | N29: 0 | O29: 0 | P29: 0 | Q29: 0 | R29: 0 | S29: 0 | T29: 0 | U29: 0 | V29: 0 | W29: 0 | X29: 0 | Y29: 0 | Z29: 0 | AA29: 0 | AB29: 0 | AC29: 0 | AD29: 0 | AE29: 0 | AF29: 0 | AG29: 0 | AH29: 0 | AI29: 0 | AJ29: 0 | AK29: 0 | AL29: 0 | AM29: 0 | AN29: 0 | AO29: 0 | AP29: 0 | AQ29: 0 | AR29: 0 | AS29: 0 | AT29: 0 | AU29: 0 | AV29: 1 | AW29: 1 | AX29: 1 | AY29: 1 | AZ29: 1 | BA29: 1 | BB29: 1 | BC29: 1 | BD29: 1 | BE29: 1 | BF29: 1 | BG29: 1 | BH29: 1 | BI29: 1 | BJ29: 1 | BK29: 1 | BL29: 1 | BM29: 1 | BN29: 1 | BO29: 1 | BP29: 0 | BQ29: 1 | BR29: 0 | BS29: 0 | BT29: 0 | BU29: 0 | BV29: 0 | BW29: 0 | BX29: 0 | BY29: 0 | BZ29: 1 | CA29: 0 | CB29: 0 | CC29: 1 | CD29: 0 | CE29: 0 | CF29: 0 | CG29: 0 | CH29: 0 | CI29: 0
F30: =F20 -> 12 - 17 ans | G30: =SUMPRODUCT(($G$9:$G$16=F30)*($D$9:$D$16="F")) -> 1 | H30: 1 | I30: 1 | J30: 1 | K30: 1 | L30: 1 | M30: 1 | N30: 1 | O30: 1 | P30: 1 | Q30: 1 | R30: 1 | S30: 1 | T30: 1 | U30: 1 | V30: 1 | W30: 1 | X30: 1 | Y30: 1 | Z30: 1 | AA30: 1 | AB30: 1 | AC30: 1 | AD30: 1 | AE30: 1 | AF30: 1 | AG30: 1 | AH30: 1 | AI30: 1 | AJ30: 1 | AK30: 1 | AL30: 1 | AM30: 1 | AN30: 1 | AO30: 1 | AP30: 1 | AQ30: 1 | AR30: 1 | AS30: 1 | AT30: 1 | AU30: 1 | AV30: 1 | AW30: 1 | AX30: 1 | AY30: 1 | AZ30: 1 | BA30: 1 | BB30: 1 | BC30: 1 | BD30: 1 | BE30: 1 | BF30: 1 | BG30: 1 | BH30: 1 | BI30: 1 | BJ30: 1 | BK30: 1 | BL30: 1 | BM30: 1 | BN30: 1 | BO30: 1 | BP30: 0 | BQ30: 0 | BR30: 1 | BS30: 0 | BT30: 0 | BU30: 0 | BV30: 0 | BW30: 0 | BX30: 0 | BY30: 1 | BZ30: 0 | CA30: 0 | CB30: 0 | CC30: 0 | CD30: 1 | CE30: 0 | CF30: 0 | CG30: 0 | CH30: 0 | CI30: 0
F31: =F21 -> Autres | G31: =SUMPRODUCT(($G$9:$G$16=F31)*($D$9:$D$16="F")) -> 0 | H31: 0 | I31: 0 | J31: 0 | K31: 0 | L31: 0 | M31: 0 | N31: 0 | O31: 0 | P31: 0 | Q31: 0 | R31: 0 | S31: 0 | T31: 0 | U31: 0 | V31: 0 | W31: 0 | X31: 0 | Y31: 0 | Z31: 0 | AA31: 0 | AB31: 0 | AC31: 0 | AD31: 0 | AE31: 0 | AF31: 0 | AG31: 0 | AH31: 0 | AI31: 0 | AJ31: 0 | AK31: 0 | AL31: 0 | AM31: 0 | AN31: 0 | AO31: 0 | AP31: 0 | AQ31: 0 | AR31: 0 | AS31: 0 | AT31: 0 | AU31: 0 | AV31: 0 | AW31: 0 | AX31: 0 | AY31: 0 | AZ31: 0 | BA31: 0 | BB31: 0 | BC31: 0 | BD31: 0 | BE31: 0 | BF31: 0 | BG31: 0 | BH31: 0 | BI31: 0 | BJ31: 0 | BK31: 0 | BL31: 0 | BM31: 0 | BN31: 0 | BO31: 0 | BP31: 0 | BQ31: 0 | BR31: 0 | BS31: 0 | BT31: 0 | BU31: 0 | BV31: 0 | BW31: 0 | BX31: 0 | BY31: 0 | BZ31: 0 | CA31: 0 | CB31: 0 | CC31: 0 | CD31: 0 | CE31: 0 | CF31: 0 | CG31: 0 | CH31: 0 | CI31: 0

Sheet Réel
A2: Date du premier jour du séjour : | E2: Période :
A3: =Renseignements!B12 -> 2016-02-23 | E3: =Renseignements!B11 -> Vacances de Février
H7: Semaine 1 | AB7: Semaine 2 | AV7: Semaine 3 | BP7: Semaine 4 | CJ7: TOT
A8: NOM | B8: Prénom | C8: Date de naissance | D8: Sexe | E8: Régime | F8: Âge | G8: Tranche d'âge | H8: 2016-10-26 | L8: 2016-10-27 | P8: 2016-10-28 | T8: 2016-10-29 | X8: 2016-10-30 | AB8: 2016-10-31 | AF8: 2016-11-01 | AJ8: 2016-11-02 | AN8: 2016-11-03 | AR8: 2016-11-04 | AV8: 2016-11-05 | AZ8: 2016-11-06 | BD8: 2016-11-07 | BH8: 2016-11-08 | BL8: 2016-11-09 | BP8: 2016-11-10 | BT8: 2016-11-11 | BX8: 2016-11-12 | CB8: 2016-11-13 | CF8: 2016-11-14
H9: m | I9: am | J9: s | K9: sé | L9: m | M9: am | N9: s | O9: sé | P9: m | Q9: am | R9: s | S9: sé | T9: m | U9: am | V9: s | W9: sé | X9: m | Y9: am | Z9: s | AA9: sé | AB9: m | AC9: am | AD9: s | AE9: sé | AF9: m | AG9: am | AH9: s | AI9: sé | AJ9: m | AK9: am | AL9: s | AM9: sé | AN9: m | AO9: am | AP9: s | AQ9: sé | AR9: m | AS9: am | AT9: s | AU9: sé | AV9: m | AW9: am | AX9: s | AY9: sé | AZ9: m | BA9: am | BB9: s | BC9: sé | BD9: m | BE9: am | BF9: s | BG9: sé | BH9: m | BI9: am | BJ9: s | BK9: sé | BL9: m | BM9: am | BN9: s | BO9: sé | BP9: m | BQ9: am | BR9: s | BS9: sé | BT9: m | BU9: am | BV9: s | BW9: sé | BX9: m | BY9: am | BZ9: s | CA9: sé | CB9: m | CC9: am | CD9: s | CE9: sé | CF9: m | CG9: am | CH9: s | CI9: sé
A10: FILLE | B10: Julie | C10: 2011-08-28 | D10: F | E10: CAF | F10: =IF(C10<>"",DATEDIF(C10,$A$3,"y"),"") -> 4 | G10: =IF(C10="","",IF(F10<Renseignements!$B$15,"Autres",IF(F10<Renseignements!$B$16,Renseignements!$B$15&" "&Renseignements!$C$15&" "&Renseignements!$D$15&" "&Renseignements!$E$15,IF(F10<Renseignements!$B$17,Renseignements!$B$16&" "&Renseignements!$C$16&" "&Renseignements!$D$16&" "&Renseignements!$E$16,IF(F10<=Renseignements!$D$17,Renseignements!$B$17&" "&Renseignements!$C$17&" "&Renseignements!$D$17&" "&Renseignements!$E$17,"Autres"))))) -> 4 - 5 ans | P10: x | Q10: x | R10: x | S10: x | T10: x | U10: x | V10: x | W10: x | AB10: x | AC10: x | AD10: x | AE10: x | AF10: x | AG10: x | AH10: x | AI10: x | AJ10: x | AK10: x | AL10: x | AM10: x | AN10: x | AO10: x | AP10: x | AQ10: x | AR10: x | AS10: x | AT10: x | AU10: x | AV10: x | AW10: x | AX10: x | AY10: x | AZ10: x | BA10: x | BB10: x | BC10: x | BD10: x | BE10: x | BF10: x | BG10: x | BH10: x | BI10: x | BJ10: x | BK10: x | BL10: x | BM10: x | BN10: x | BO10: x | CJ10: =SUBTOTAL(3,H10:AA10) -> 8
A11: FILLE | B11: Julie | C11: 28/08/2007 | D11: F | E11: CAF | F11: 8 | G11: =IF(C11="","",IF(F11<Renseignements!$B$15,"Autres",IF(F11<Renseignements!$B$16,Renseignements!$B$15&" "&Renseignements!$C$15&" "&Renseignements!$D$15&" "&Renseignements!$E$15,IF(F11<Renseignements!$B$17,Renseignements!$B$16&" "&Renseignements!$C$16&" "&Renseignements!$D$16&" "&Renseignements!$E$16,IF(F11<=Renseignements!$D$17,Renseignements!$B$17&" "&Renseignements!$C$17&" "&Renseignements!$D$17&" "&Renseignements!$E$17,"Autres"))))) -> 6 - 11 ans | P11: x | Q11: x | R11: x | S11: x | AB11: x | AC11: x | AD11: x | AE11: x | AF11: x | AG11: x | AH11: x | AI11: x | AJ11: x | AK11: x | AL11: x | AM11: x | AN11: x | AO11: x | AP11: x | AQ11: x | AR11: x | AS11: x | AT11: x | AU11: x | AV11: x | AW11: x | AX11: x | AY11: x | AZ11: x | BA11: x | BB11: x | BC11: x | BD11: x | BE11: x | BF11: x | BG11: x | BH11: x | BI11: x | BJ11: x | BK11: x | BL11: x | BM11: x | BN11: x | BO11: x | CJ11: 4
A12: FILLETTE | B12: Juliette | C12: 2000-01-01 | D12: F | E12: CAF | F12: 16 | G12: =IF(C12="","",IF(F12<Renseignements!$B$15,"Autres",IF(F12<Renseignements!$B$16,Renseignements!$B$15&" "&Renseignements!$C$15&" "&Renseignements!$D$15&" "&Renseignements!$E$15,IF(F12<Renseignements!$B$17,Renseignements!$B$16&" "&Renseignements!$C$16&" "&Renseignements!$D$16&" "&Renseignements!$E$16,IF(F12<=Renseignements!$D$17,Renseignements!$B$17&" "&Renseignements!$C$17&" "&Renseignements!$D$17&" "&Renseignements!$E$17,"Autres"))))) -> 12 - 17 ans | H12: x | I12: x | J12: x | K12: x | L12: x | M12: x | N12: x | O12: x | P12: x | Q12: x | R12: x | S12: x | T12: x | U12: x | V12: x | W12: x | X12: x | Y12: x | Z12: x | AA12: x | AB12: x | AC12: x | AD12: x | AE12: x | AF12: x | AG12: x | AH12: x | AI12: x | AJ12: x | AK12: x | AL12: x | AM12: x | AN12: x | AO12: x | AP12: x | AQ12: x | AR12: x | AS12: x | AT12: x | AU12: x | AV12: x | AW12: x | AX12: x | AY12: x | AZ12: x | BA12: x | BB12: x | BC12: x | BD12: x | BE12: x | BF12: x | BG12: x | BH12: x | BI12: x | BJ12: x | BK12: x | BL12: x | BM12: x | BN12: x | BO12: x | CJ12: 20
A13: GARCON | B13: Marvin | C13: 2011-01-01 | D13: G | E13: CAF | F13: 5 | G13: =IF(C13="","",IF(F13<Renseignements!$B$15,"Autres",IF(F13<Renseignements!$B$16,Renseignements!$B$15&" "&Renseignements!$C$15&" "&Renseignements!$D$15&" "&Renseignements!$E$15,IF(F13<Renseignements!$B$17,Renseignements!$B$16&" "&Renseignements!$C$16&" "&Renseignements!$D$16&" "&Renseignements!$E$16,IF(F13<=Renseignements!$D$17,Renseignements!$B$17&" "&Renseignements!$C$17&" "&Renseignements!$D$17&" "&Renseignements!$E$17,"Autres"))))) -> 4 - 5 ans | H13: x | I13: x | J13: x | K13: x | L13: x | M13: x | N13: x | O13: x | P13: x | Q13: x | R13: x | S13: x | T13: x | U13: x | V13: x | W13: x | X13: x | Y13: x | Z13: x | AA13: x | AB13: x | AC13: x | AD13: x | AE13: x | AF13: x | AG13: x | AH13: x | AI13: x | AJ13: x | AK13: x | AL13: x | AM13: x | AN13: x | AO13: x | AP13: x | AQ13: x | AR13: x | AS13: x | AT13: x | AU13: x | AV13: x | AW13: x | AX13: x | AY13: x | AZ13: x | BA13: x | BB13: x | BC13: x | BD13: x | BE13: x | BF13: x | BG13: x | BH13: x | BI13: x | BJ13: x | BK13: x | BL13: x | BM13: x | BN13: x | BO13: x | CJ13: 20
A14: GARS | B14: Martin | C14: 2007-01-01 | D14: G | E14: CAF | F14: 9 | G14: =IF(C14="","",IF(F14<Renseignements!$B$15,"Autres",IF(F14<Renseignements!$B$16,Renseignements!$B$15&" "&Renseignements!$C$15&" "&Renseignements!$D$15&" "&Renseignements!$E$15,IF(F14<Renseignements!$B$17,Renseignements!$B$16&" "&Renseignements!$C$16&" "&Renseignements!$D$16&" "&Renseignements!$E$16,IF(F14<=Renseignements!$D$17,Renseignements!$B$17&" "&Renseignements!$C$17&" "&Renseignements!$D$17&" "&Renseignements!$E$17,"Autres"))))) -> 6 - 11 ans | H14: x | I14: x | J14: x | K14: x | L14: x | M14: x | N14: x | O14: x | P14: x | Q14: x | R14: x | S14: x | T14: x | U14: x | V14: x | W14: x | X14: x | Y14: x | Z14: x | AA14: x | AB14: x | AC14: x | AD14: x | AE14: x | AF14: x | AG14: x | AH14: x | AI14: x | AJ14: x | AK14: x | AL14: x | AM14: x | AN14: x | AO14: x | AP14: x | AQ14: x | AR14: x | AS14: x | AT14: x | AU14: x | AV14: x | AW14: x | AX14: x | AY14: x | AZ14: x | BA14: x | BB14: x | BC14: x | BD14: x | BE14: x | BF14: x | BG14: x | BH14: x | BI14: x | BJ14: x | BK14: x | BL14: x | BM14: x | BN14: x | BO14: x | CJ14: 20
A15: GARS | B15: Martin | C15: 2000-01-01 | D15: G | E15: CAF | F15: 16 | G15: =IF(C15="","",IF(F15<Renseignements!$B$15,"Autres",IF(F15<Renseignements!$B$16,Renseignements!$B$15&" "&Renseignements!$C$15&" "&Renseignements!$D$15&" "&Renseignements!$E$15,IF(F15<Renseignements!$B$17,Renseignements!$B$16&" "&Renseignements!$C$16&" "&Renseignements!$D$16&" "&Renseignements!$E$16,IF(F15<=Renseignements!$D$17,Renseignements!$B$17&" "&Renseignements!$C$17&" "&Renseignements!$D$17&" "&Renseignements!$E$17,"Autres"))))) -> 12 - 17 ans | H15: x | I15: x | J15: x | K15: x | L15: x | M15: x | N15: x | O15: x | P15: x | Q15: x | R15: x | S15: x | T15: x | U15: x | V15: x | W15: x | X15: x | Y15: x | Z15: x | AA15: x | AB15: x | AC15: x | AD15: x | AE15: x | AF15: x | AG15: x | AH15: x | AI15: x | AJ15: x | AK15: x | AL15: x | AM15: x | AN15: x | AO15: x | AP15: x | AQ15: x | AR15: x | AS15: x | AT15: x | AU15: x | AV15: x | AW15: x | AX15: x | AY15: x | AZ15: x | BA15: x | BB15: x | BC15: x | BD15: x | BE15: x | BF15: x | BG15: x | BH15: x | BI15: x | BJ15: x | BK15: x | BL15: x | BM15: x | BN15: x | BO15: x | CJ15: 20
A16: FILLE | B16: Julie | C16: 2011-08-28 | D16: F | E16: CAF | F16: 4 | G16: =IF(C16="","",IF(F16<Renseignements!$B$15,"Autres",IF(F16<Renseignements!$B$16,Renseignements!$B$15&" "&Renseignements!$C$15&" "&Renseignements!$D$15&" "&Renseignements!$E$15,IF(F16<Renseignements!$B$17,Renseignements!$B$16&" "&Renseignements!$C$16&" "&Renseignements!$D$16&" "&Renseignements!$E$16,IF(F16<=Renseignements!$D$17,Renseignements!$B$17&" "&Renseignements!$C$17&" "&Renseignements!$D$17&" "&Renseignements!$E$17,"Autres"))))) -> 4 - 5 ans | H16: x | I16: x | J16: x | K16: x | L16: x | M16: x | N16: x | O16: x | P16: x | Q16: x | R16: x | S16: x | T16: x | U16: x | V16: x | W16: x | X16: x | Y16: x | Z16: x | AA16: x | AB16: x | AC16: x | AD16: x | AE16: x | AF16: x | AG16: x | AH16: x | AI16: x | AJ16: x | AK16: x | AL16: x | AM16: x | AN16: x | AO16: x | AP16: x | AQ16: x | AR16: x | AS16: x | AT16: x | AU16: x | AV16: x | AW16: x | AX16: x | AY16: x | AZ16: x | BA16: x | BB16: x | BC16: x | BD16: x | BE16: x | BF16: x | BG16: x | BH16: x | BI16: x | BJ16: x | BK16: x | BL16: x | BM16: x | BN16: x | BO16: x | CJ16: 20
A17: FILLE | B17: Julie | C17: 28/08/2007 | D17: F | E17: CAF | F17: 8 | G17: =IF(C17="","",IF(F17<Renseignements!$B$15,"Autres",IF(F17<Renseignements!$B$16,Renseignements!$B$15&" "&Renseignements!$C$15&" "&Renseignements!$D$15&" "&Renseignements!$E$15,IF(F17<Renseignements!$B$17,Renseignements!$B$16&" "&Renseignements!$C$16&" "&Renseignements!$D$16&" "&Renseignements!$E$16,IF(F17<=Renseignements!$D$17,Renseignements!$B$17&" "&Renseignements!$C$17&" "&Renseignements!$D$17&" "&Renseignements!$E$17,"Autres"))))) -> 6 - 11 ans | H17: x | I17: x | J17: x | K17: x | L17: x | M17: x | N17: x | O17: x | P17: x | Q17: x | R17: x | S17: x | T17: x | U17: x | V17: x | W17: x | X17: x | Y17: x | Z17: x | AA17: x | AB17: x | AC17: x | AD17: x | AE17: x | AF17: x | AG17: x | AH17: x | AI17: x | AJ17: x | AK17: x | AL17: x | AM17: x | AN17: x | AO17: x | AP17: x | AQ17: x | AR17: x | AS17: x | AT17: x | AU17: x | AV17: x | AW17: x | AX17: x | AY17: x | AZ17: x | BA17: x | BB17: x | BC17: x | BD17: x | BE17: x | BF17: x | BG17: x | BH17: x | BI17: x | BJ17: x | BK17: x | BL17: x | BM17: x | BN17: x | BO17: x | CJ17: 20
A18: FILLETTE | B18: Juliette | C18: 2000-01-01 | D18: F | E18: CAF | F18: 16 | G18: =IF(C18="","",IF(F18<Renseignements!$B$15,"Autres",IF(F18<Renseignements!$B$16,Renseignements!$B$15&" "&Renseignements!$C$15&" "&Renseignements!$D$15&" "&Renseignements!$E$15,IF(F18<Renseignements!$B$17,Renseignements!$B$16&" "&Renseignements!$C$16&" "&Renseignements!$D$16&" "&Renseignements!$E$16,IF(F18<=Renseignements!$D$17,Renseignements!$B$17&" "&Renseignements!$C$17&" "&Renseignements!$D$17&" "&Renseignements!$E$17,"Autres"))))) -> 12 - 17 ans | H18: x | I18: x | J18: x | K18: x | L18: x | M18: x | N18: x | O18: x | P18: x | Q18: x | R18: x | S18: x | T18: x | U18: x | V18: x | W18: x | X18: x | Y18: x | Z18: x | AA18: x | AB18: x | AC18: x | AD18: x | AE18: x | AF18: x | AG18: x | AH18: x | AI18: x | AJ18: x | AK18: x | AL18: x | AM18: x | AN18: x | AO18: x | AP18: x | AQ18: x | AR18: x | AS18: x | AT18: x | AU18: x | AV18: x | AW18: x | AX18: x | AY18: x | AZ18: x | BA18: x | BB18: x | BC18: x | BD18: x | BE18: x | BF18: x | BG18: x | BH18: x | BI18: x | BJ18: x | BK18: x | BL18: x | BM18: x | BN18: x | BO18: x | CJ18: 20
A19: GARCON | B19: Marvin | C19: 2011-01-01 | D19: G | E19: CAF | F19: 5 | G19: =IF(C19="","",IF(F19<Renseignements!$B$15,"Autres",IF(F19<Renseignements!$B$16,Renseignements!$B$15&" "&Renseignements!$C$15&" "&Renseignements!$D$15&" "&Renseignements!$E$15,IF(F19<Renseignements!$B$17,Renseignements!$B$16&" "&Renseignements!$C$16&" "&Renseignements!$D$16&" "&Renseignements!$E$16,IF(F19<=Renseignements!$D$17,Renseignements!$B$17&" "&Renseignements!$C$17&" "&Renseignements!$D$17&" "&Renseignements!$E$17,"Autres"))))) -> 4 - 5 ans | H19: x | I19: x | J19: x | K19: x | L19: x | M19: x | N19: x | O19: x | P19: x | Q19: x | R19: x | S19: x | T19: x | U19: x | V19: x | W19: x | X19: x | Y19: x | Z19: x | AA19: x | AB19: x | AC19: x | AD19: x | AE19: x | AF19: x | AG19: x | AH19: x | AI19: x | AJ19: x | AK19: x | AL19: x | AM19: x | AN19: x | AO19: x | AP19: x | AQ19: x | AR19: x | AS19: x | AT19: x | AU19: x | AV19: x | AW19: x | AX19: x | AY19: x | AZ19: x | BA19: x | BB19: x | BC19: x | BD19: x | BE19: x | BF19: x | BG19: x | BH19: x | BI19: x | BJ19: x | BK19: x | BL19: x | BM19: x | BN19: x | BO19: x | CJ19: 20
A20: GARS | B20: Martin | C20: 2007-01-01 | D20: G | E20: CAF | F20: 9 | G20: =IF(C20="","",IF(F20<Renseignements!$B$15,"Autres",IF(F20<Renseignements!$B$16,Renseignements!$B$15&" "&Renseignements!$C$15&" "&Renseignements!$D$15&" "&Renseignements!$E$15,IF(F20<Renseignements!$B$17,Renseignements!$B$16&" "&Renseignements!$C$16&" "&Renseignements!$D$16&" "&Renseignements!$E$16,IF(F20<=Renseignements!$D$17,Renseignements!$B$17&" "&Renseignements!$C$17&" "&Renseignements!$D$17&" "&Renseignements!$E$17,"Autres"))))) -> 6 - 11 ans | H20: x | I20: x | J20: x | K20: x | L20: x | M20: x | N20: x | O20: x | P20: x | Q20: x | R20: x | S20: x | T20: x | U20: x | V20: x | W20: x | X20: x | Y20: x | Z20: x | AA20: x | AB20: x | AC20: x | AD20: x | AE20: x | AF20: x | AG20: x | AH20: x | AI20: x | AJ20: x | AK20: x | AL20: x | AM20: x | AN20: x | AO20: x | AP20: x | AQ20: x | AR20: x | AS20: x | AT20: x | AU20: x | AV20: x | AW20: x | AX20: x | AY20: x | AZ20: x | BA20: x | BB20: x | BC20: x | BD20: x | BE20: x | BF20: x | BG20: x | BH20: x | BI20: x | BJ20: x | BK20: x | BL20: x | BM20: x | BN20: x | BO20: x | CJ20: 20
A21: GARS | B21: Martin | C21: 2000-01-01 | D21: G | E21: CAF | F21: 16 | G21: =IF(C21="","",IF(F21<Renseignements!$B$15,"Autres",IF(F21<Renseignements!$B$16,Renseignements!$B$15&" "&Renseignements!$C$15&" "&Renseignements!$D$15&" "&Renseignements!$E$15,IF(F21<Renseignements!$B$17,Renseignements!$B$16&" "&Renseignements!$C$16&" "&Renseignements!$D$16&" "&Renseignements!$E$16,IF(F21<=Renseignements!$D$17,Renseignements!$B$17&" "&Renseignements!$C$17&" "&Renseignements!$D$17&" "&Renseignements!$E$17,"Autres"))))) -> 12 - 17 ans | H21: x | I21: x | J21: x | K21: x | L21: x | M21: x | N21: x | O21: x | P21: x | Q21: x | R21: x | S21: x | T21: x | U21: x | V21: x | W21: x | X21: x | Y21: x | Z21: x | AA21: x | AB21: x | AC21: x | AD21: x | AE21: x | AF21: x | AG21: x | AH21: x | AI21: x | AJ21: x | AK21: x | AL21: x | AM21: x | AN21: x | AO21: x | AP21: x | AQ21: x | AR21: x | AS21: x | AT21: x | AU21: x | AV21: x | AW21: x | AX21: x | AY21: x | AZ21: x | BA21: x | BB21: x | BC21: x | BD21: x | BE21: x | BF21: x | BG21: x | BH21: x | BI21: x | BJ21: x | BK21: x | BL21: x | BM21: x | BN21: x | BO21: x | CJ21: 20
F22: =IF(C22<>"",DATEDIF(C22,$A$3,"y"),"") ->  | G22: =IF(C22="","",IF(F22<Renseignements!$B$15,"Autres",IF(F22<Renseignements!$B$16,Renseignements!$B$15&" "&Renseignements!$C$15&" "&Renseignements!$D$15&" "&Renseignements!$E$15,IF(F22<Renseignements!$B$17,Renseignements!$B$16&" "&Renseignements!$C$16&" "&Renseignements!$D$16&" "&Renseignements!$E$16,IF(F22<=Renseignements!$D$17,Renseignements!$B$17&" "&Renseignements!$C$17&" "&Renseignements!$D$17&" "&Renseignements!$E$17,"Autres"))))) ->  | CJ22: =SUBTOTAL(3,H22:AU22) -> 0
F23: Total | G23: =SUM(G24:G27) -> 12 | H23: =SUM(H24:H27) -> 10 | I23: =SUM(I24:I27) -> 10 | J23: 10 | K23: 10 | L23: 10 | M23: 10 | N23: 10 | O23: 10 | P23: 12 | Q23: 12 | R23: 12 | S23: 12 | T23: 11 | U23: 11 | V23: 11 | W23: 11 | X23: 10 | Y23: 10 | Z23: 10 | AA23: 10 | AB23: 12 | AC23: 12 | AD23: 12 | AE23: 12 | AF23: 12 | AG23: 12 | AH23: 12 | AI23: 12 | AJ23: 12 | AK23: 12 | AL23: 12 | AM23: 12 | AN23: 12 | AO23: 12 | AP23: 12 | AQ23: 12 | AR23: 12 | AS23: 12 | AT23: 12 | AU23: 12 | AV23: 12 | AW23: 12 | AX23: 12 | AY23: 12 | AZ23: 12 | BA23: 12 | BB23: 12 | BC23: 12 | BD23: 12 | BE23: 12 | BF23: 12 | BG23: 12 | BH23: 12 | BI23: 12 | BJ23: 12 | BK23: 12 | BL23: 12 | BM23: 12 | BN23: 12 | BO23: 12 | BP23: 0 | BQ23: 0 | BR23: 0 | BS23: 0 | BT23: 0 | BU23: =SUM(BU24:BU27) -> 0 | BV23: 0 | BW23: 0 | BX23: 0 | BY23: 0 | BZ23: 0 | CA23: 0 | CB23: 0 | CC23: 0 | CD23: 0 | CE23: 0 | CF23: 0 | CG23: 0 | CH23: 0 | CI23: 0
F24: =Renseignements!$B$15&" "&Renseignements!$C$15&" "&Renseignements!$D$15&" "&Renseignements!$E$15 -> 4 - 5 ans | G24: =COUNTIF(G$9:G$22,$F24) -> 4 | H24: =SUMPRODUCT(($G$9:$G$22=$F24)*(H$9:H$22="x")) -> 3 | I24: 3 | J24: 3 | K24: 3 | L24: 3 | M24: 3 | N24: 3 | O24: 3 | P24: 4 | Q24: 4 | R24: =SUMPRODUCT(($G$9:$G$22=$F24)*(R$9:R$22="x")) -> 4 | S24: 4 | T24: 4 | U24: 4 | V24: 4 | W24: 4 | X24: 3 | Y24: 3 | Z24: 3 | AA24: 3 | AB24: =SUMPRODUCT(($G$9:$G$22=$F24)*(AB$9:AB$22="x")) -> 4 | AC24: 4 | AD24: 4 | AE24: 4 | AF24: 4 | AG24: 4 | AH24: 4 | AI24: 4 | AJ24: 4 | AK24: 4 | AL24: =SUMPRODUCT(($G$9:$G$22=$F24)*(AL$9:AL$22="x")) -> 4 | AM24: 4 | AN24: 4 | AO24: 4 | AP24: 4 | AQ24: 4 | AR24: 4 | AS24: 4 | AT24: 4 | AU24: 4 | AV24: =SUMPRODUCT(($G$9:$G$22=$F24)*(AV$9:AV$22="x")) -> 4 | AW24: 4 | AX24: 4 | AY24: 4 | AZ24: 4 | BA24: 4 | BB24: 4 | BC24: 4 | BD24: 4 | BE24: 4 | BF24: =SUMPRODUCT(($G$9:$G$22=$F24)*(BF$9:BF$22="x")) -> 4 | BG24: 4 | BH24: 4 | BI24: 4 | BJ24: 4 | BK24: 4 | BL24: 4 | BM24: 4 | BN24: 4 | BO24: 4 | BP24: =SUMPRODUCT(($G$9:$G$22=$F24)*(BP$9:BP$22="x")) -> 0 | BQ24: 0 | BR24: 0 | BS24: 0 | BT24: 0 | BU24: 0 | BV24: 0 | BW24: 0 | BX24: 0 | BY24: 0 | BZ24: =SUMPRODUCT(($G$9:$G$22=$F24)*(BZ$9:BZ$22="x")) -> 0 | CA24: 0 | CB24: 0 | CC24: 0 | CD24: 0 | CE24: 0 | CF24: 0 | CG24: 0 | CH24: 0 | CI24: 0
F25: =Renseignements!$B$16&" "&Renseignements!$C$16&" "&Renseignements!$D$16&" "&Renseignements!$E$16 -> 6 - 11 ans | G25: =COUNTIF(G$9:G$22,$F25) -> 4 | H25: 3 | I25: 3 | J25: 3 | K25: 3 | L25: 3 | M25: 3 | N25: 3 | O25: 3 | P25: 4 | Q25: 4 | R25: 4 | S25: 4 | T25: 3 | U25: 3 | V25: 3 | W25: 3 | X25: 3 | Y25: 3 | Z25: 3 | AA25: 3 | AB25: 4 | AC25: 4 | AD25: 4 | AE25: 4 | AF25: 4 | AG25: 4 | AH25: 4 | AI25: 4 | AJ25: 4 | AK25: 4 | AL25: 4 | AM25: 4 | AN25: 4 | AO25: 4 | AP25: 4 | AQ25: 4 | AR25: 4 | AS25: 4 | AT25: 4 | AU25: 4 | AV25: 4 | AW25: 4 | AX25: 4 | AY25: 4 | AZ25: 4 | BA25: 4 | BB25: 4 | BC25: 4 | BD25: 4 | BE25: 4 | BF25: 4 | BG25: 4 | BH25: 4 | BI25: 4 | BJ25: 4 | BK25: 4 | BL25: 4 | BM25: 4 | BN25: 4 | BO25: 4 | BP25: 0 | BQ25: 0 | BR25: 0 | BS25: 0 | BT25: 0 | BU25: 0 | BV25: 0 | BW25: 0 | BX25: 0 | BY25: 0 | BZ25: 0 | CA25: 0 | CB25: 0 | CC25: 0 | CD25: 0 | CE25: 0 | CF25: 0 | CG25: 0 | CH25: 0 | CI25: 0
F26: =Renseignements!$B$17&" "&Renseignements!$C$17&" "&Renseignements!$D$17&" "&Renseignements!$E$17 -> 12 - 17 ans | G26: =COUNTIF(G$9:G$22,$F26) -> 4 | H26: 4 | I26: 4 | J26: 4 | K26: 4 | L26: 4 | M26: 4 | N26: 4 | O26: 4 | P26: 4 | Q26: 4 | R26: 4 | S26: 4 | T26: 4 | U26: 4 | V26: 4 | W26: 4 | X26: 4 | Y26: 4 | Z26: 4 | AA26: 4 | AB26: 4 | AC26: 4 | AD26: 4 | AE26: 4 | AF26: 4 | AG26: 4 | AH26: 4 | AI26: 4 | AJ26: 4 | AK26: 4 | AL26: 4 | AM26: 4 | AN26: 4 | AO26: 4 | AP26: 4 | AQ26: 4 | AR26: 4 | AS26: 4 | AT26: 4 | AU26: 4 | AV26: 4 | AW26: 4 | AX26: 4 | AY26: 4 | AZ26: 4 | BA26: 4 | BB26: 4 | BC26: 4 | BD26: 4 | BE26: 4 | BF26: 4 | BG26: 4 | BH26: 4 | BI26: 4 | BJ26: 4 | BK26: 4 | BL26: 4 | BM26: 4 | BN26: 4 | BO26: 4 | BP26: 0 | BQ26: 0 | BR26: 0 | BS26: 0 | BT26: 0 | BU26: 0 | BV26: 0 | BW26: 0 | BX26: 0 | BY26: 0 | BZ26: 0 | CA26: 0 | CB26: 0 | CC26: 0 | CD26: 0 | CE26: 0 | CF26: 0 | CG26: 0 | CH26: 0 | CI26: 0
F27: Autres | G27: =COUNTIF(G$9:G$22,$F27) -> 0 | H27: 0 | I27: 0 | J27: 0 | K27: 0 | L27: 0 | M27: 0 | N27: 0 | O27: 0 | P27: 0 | Q27: 0 | R27: 0 | S27: 0 | T27: 0 | U27: 0 | V27: 0 | W27: 0 | X27: 0 | Y27: 0 | Z27: 0 | AA27: 0 | AB27: 0 | AC27: 0 | AD27: 0 | AE27: 0 | AF27: 0 | AG27: 0 | AH27: 0 | AI27: 0 | AJ27: 0 | AK27: 0 | AL27: 0 | AM27: 0 | AN27: 0 | AO27: 0 | AP27: 0 | AQ27: 0 | AR27: 0 | AS27: 0 | AT27: 0 | AU27: 0 | AV27: 0 | AW27: 0 | AX27: 0 | AY27: 0 | AZ27: 0 | BA27: 0 | BB27: 0 | BC27: 0 | BD27: 0 | BE27: 0 | BF27: 0 | BG27: 0 | BH27: 0 | BI27: 0 | BJ27: 0 | BK27: 0 | BL27: 0 | BM27: 0 | BN27: 0 | BO27: 0 | BP27: 0 | BQ27: 0 | BR27: 0 | BS27: 0 | BT27: 0 | BU27: 0 | BV27: 0 | BW27: 0 | BX27: 0 | BY27: 0 | BZ27: 0 | CA27: 0 | CB27: 0 | CC27: 0 | CD27: 0 | CE27: 0 | CF27: 0 | CG27: 0 | CH27: 0 | CI27: 0
F28: Garçons | G28: =COUNTIF(D$9:D$22,"G") -> 6 | H28: =SUMPRODUCT(($D$9:$D$22="G")*(H$9:H$22="x")) -> 6 | I28: 6 | J28: 6 | K28: 6 | L28: 6 | M28: 6 | N28: 6 | O28: 6 | P28: 6 | Q28: 6 | R28: 6 | S28: 6 | T28: 6 | U28: 6 | V28: 6 | W28: 6 | X28: 6 | Y28: 6 | Z28: 6 | AA28: 6 | AB28: 6 | AC28: 6 | AD28: 6 | AE28: 6 | AF28: 6 | AG28: 6 | AH28: 6 | AI28: 6 | AJ28: 6 | AK28: 6 | AL28: 6 | AM28: 6 | AN28: =SUMPRODUCT(($D$9:$D$22="G")*(AN$9:AN$22="x")) -> 6 | AO28: 6 | AP28: 6 | AQ28: 6 | AR28: 6 | AS28: 6 | AT28: 6 | AU28: 6 | AV28: 6 | AW28: 6 | AX28: 6 | AY28: 6 | AZ28: 6 | BA28: 6 | BB28: 6 | BC28: 6 | BD28: 6 | BE28: 6 | BF28: 6 | BG28: 6 | BH28: 6 | BI28: 6 | BJ28: 6 | BK28: 6 | BL28: 6 | BM28: 6 | BN28: 6 | BO28: 6 | BP28: 0 | BQ28: 0 | BR28: 0 | BS28: 0 | BT28: =SUMPRODUCT(($D$9:$D$22="G")*(BT$9:BT$22="x")) -> 0 | BU28: 0 | BV28: 0 | BW28: 0 | BX28: 0 | BY28: 0 | BZ28: 0 | CA28: 0 | CB28: 0 | CC28: 0 | CD28: 0 | CE28: 0 | CF28: 0 | CG28: 0 | CH28: 0 | CI28: 0
F29: =F24 -> 4 - 5 ans | G29: =SUMPRODUCT(($G$9:$G$22=F29)*($D$9:$D$22="G")) -> 2 | H29: =SUMPRODUCT(($D$9:$D$22="G")*($G$9:$G$22=$F29)*(H$9:H$22="x")) -> 2 | I29: 2 | J29: 2 | K29: 2 | L29: 2 | M29: 2 | N29: 2 | O29: 2 | P29: 2 | Q29: 2 | R29: =SUMPRODUCT(($D$9:$D$22="G")*($G$9:$G$22=$F29)*(R$9:R$22="x")) -> 2 | S29: 2 | T29: 2 | U29: 2 | V29: 2 | W29: 2 | X29: 2 | Y29: 2 | Z29: 2 | AA29: 2 | AB29: =SUMPRODUCT(($D$9:$D$22="G")*($G$9:$G$22=$F29)*(AB$9:AB$22="x")) -> 2 | AC29: 2 | AD29: 2 | AE29: 2 | AF29: 2 | AG29: 2 | AH29: 2 | AI29: 2 | AJ29: 2 | AK29: 2 | AL29: =SUMPRODUCT(($D$9:$D$22="G")*($G$9:$G$22=$F29)*(AL$9:AL$22="x")) -> 2 | AM29: 2 | AN29: 2 | AO29: 2 | AP29: 2 | AQ29: 2 | AR29: 2 | AS29: 2 | AT29: 2 | AU29: 2 | AV29: =SUMPRODUCT(($D$9:$D$22="G")*($G$9:$G$22=$F29)*(AV$9:AV$22="x")) -> 2 | AW29: 2 | AX29: 2 | AY29: 2 | AZ29: 2 | BA29: 2 | BB29: 2 | BC29: 2 | BD29: 2 | BE29: 2 | BF29: =SUMPRODUCT(($D$9:$D$22="G")*($G$9:$G$22=$F29)*(BF$9:BF$22="x")) -> 2 | BG29: 2 | BH29: 2 | BI29: 2 | BJ29: 2 | BK29: 2 | BL29: 2 | BM29: 2 | BN29: 2 | BO29: 2 | BP29: =SUMPRODUCT(($D$9:$D$22="G")*($G$9:$G$22=$F29)*(BP$9:BP$22="x")) -> 0 | BQ29: 0 | BR29: 0 | BS29: 0 | BT29: 0 | BU29: 0 | BV29: 0 | BW29: 0 | BX29: 0 | BY29: 0 | BZ29: =SUMPRODUCT(($D$9:$D$22="G")*($G$9:$G$22=$F29)*(BZ$9:BZ$22="x")) -> 0 | CA29: 0 | CB29: 0 | CC29: 0 | CD29: 0 | CE29: 0 | CF29: 0 | CG29: 0 | CH29: 0 | CI29: 0
F30: =F25 -> 6 - 11 ans | G30: =SUMPRODUCT(($G$9:$G$22=F30)*($D$9:$D$22="G")) -> 2 | H30: 2 | I30: 2 | J30: 2 | K30: 2 | L30: 2 | M30: 2 | N30: 2 | O30: 2 | P30: 2 | Q30: 2 | R30: 2 | S30: 2 | T30: 2 | U30: 2 | V30: 2 | W30: 2 | X30: 2 | Y30: 2 | Z30: 2 | AA30: 2 | AB30: 2 | AC30: 2 | AD30: 2 | AE30: 2 | AF30: 2 | AG30: 2 | AH30: 2 | AI30: 2 | AJ30: 2 | AK30: 2 | AL30: 2 | AM30: 2 | AN30: 2 | AO30: 2 | AP30: 2 | AQ30: 2 | AR30: 2 | AS30: 2 | AT30: 2 | AU30: 2 | AV30: 2 | AW30: 2 | AX30: 2 | AY30: 2 | AZ30: 2 | BA30: 2 | BB30: 2 | BC30: 2 | BD30: 2 | BE30: 2 | BF30: 2 | BG30: 2 | BH30: 2 | BI30: 2 | BJ30: 2 | BK30: 2 | BL30: 2 | BM30: 2 | BN30: 2 | BO30: 2 | BP30: 0 | BQ30: 0 | BR30: 0 | BS30: 0 | BT30: 0 | BU30: 0 | BV30: 0 | BW30: 0 | BX30: 0 | BY30: 0 | BZ30: 0 | CA30: 0 | CB30: 0 | CC30: 0 | CD30: 0 | CE30: 0 | CF30: 0 | CG30: 0 | CH30: 0 | CI30: 0
F31: =F26 -> 12 - 17 ans | G31: =SUMPRODUCT(($G$9:$G$22=F31)*($D$9:$D$22="G")) -> 2 | H31: 2 | I31: 2 | J31: 2 | K31: 2 | L31: 2 | M31: 2 | N31: 2 | O31: 2 | P31: 2 | Q31: 2 | R31: 2 | S31: 2 | T31: 2 | U31: 2 | V31: 2 | W31: 2 | X31: 2 | Y31: 2 | Z31: 2 | AA31: 2 | AB31: 2 | AC31: 2 | AD31: 2 | AE31: 2 | AF31: 2 | AG31: 2 | AH31: 2 | AI31: 2 | AJ31: 2 | AK31: 2 | AL31: 2 | AM31: 2 | AN31: 2 | AO31: 2 | AP31: 2 | AQ31: 2 | AR31: 2 | AS31: 2 | AT31: 2 | AU31: 2 | AV31: 2 | AW31: 2 | AX31: 2 | AY31: 2 | AZ31: 2 | BA31: 2 | BB31: 2 | BC31: 2 | BD31: 2 | BE31: 2 | BF31: 2 | BG31: 2 | BH31: 2 | BI31: 2 | BJ31: 2 | BK31: 2 | BL31: 2 | BM31: 2 | BN31: 2 | BO31: 2 | BP31: 0 | BQ31: 0 | BR31: 0 | BS31: 0 | BT31: 0 | BU31: 0 | BV31: 0 | BW31: 0 | BX31: 0 | BY31: 0 | BZ31: 0 | CA31: 0 | CB31: 0 | CC31: 0 | CD31: 0 | CE31: 0 | CF31: 0 | CG31: 0 | CH31: 0 | CI31: 0
F32: =F27 -> Autres | G32: =SUMPRODUCT(($G$9:$G$22=F32)*($D$9:$D$22="G")) -> 0 | H32: 0 | I32: 0 | J32: 0 | K32: 0 | L32: 0 | M32: 0 | N32: 0 | O32: 0 | P32: 0 | Q32: 0 | R32: 0 | S32: 0 | T32: 0 | U32: 0 | V32: 0 | W32: 0 | X32: 0 | Y32: 0 | Z32: 0 | AA32: 0 | AB32: 0 | AC32: 0 | AD32: 0 | AE32: 0 | AF32: 0 | AG32: 0 | AH32: 0 | AI32: 0 | AJ32: 0 | AK32: 0 | AL32: 0 | AM32: 0 | AN32: 0 | AO32: 0 | AP32: 0 | AQ32: 0 | AR32: 0 | AS32: 0 | AT32: 0 | AU32: 0 | AV32: 0 | AW32: 0 | AX32: 0 | AY32: 0 | AZ32: 0 | BA32: 0 | BB32: 0 | BC32: 0 | BD32: 0 | BE32: 0 | BF32: 0 | BG32: 0 | BH32: 0 | BI32: 0 | BJ32: 0 | BK32: 0 | BL32: 0 | BM32: 0 | BN32: 0 | BO32: 0 | BP32: 0 | BQ32: 0 | BR32: 0 | BS32: 0 | BT32: 0 | BU32: 0 | BV32: 0 | BW32: 0 | BX32: 0 | BY32: 0 | BZ32: 0 | CA32: 0 | CB32: 0 | CC32: 0 | CD32: 0 | CE32: 0 | CF32: 0 | CG32: 0 | CH32: 0 | CI32: 0
F33: Filles | G33: =COUNTIF(D$9:D$22,"F") -> 6 | H33: =SUMPRODUCT(($D$9:$D$22="F")*(H$9:H$22="x")) -> 4 | I33: 4 | J33: 4 | K33: 4 | L33: 4 | M33: 4 | N33: 4 | O33: 4 | P33: 6 | Q33: 6 | R33: 6 | S33: 6 | T33: 5 | U33: 5 | V33: 5 | W33: 5 | X33: 4 | Y33: 4 | Z33: 4 | AA33: 4 | AB33: 6 | AC33: 6 | AD33: 6 | AE33: 6 | AF33: 6 | AG33: 6 | AH33: 6 | AI33: 6 | AJ33: 6 | AK33: 6 | AL33: 6 | AM33: 6 | AN33: =SUMPRODUCT(($D$9:$D$22="F")*(AN$9:AN$22="x")) -> 6 | AO33: 6 | AP33: 6 | AQ33: 6 | AR33: 6 | AS33: 6 | AT33: 6 | AU33: 6 | AV33: 6 | AW33: 6 | AX33: 6 | AY33: 6 | AZ33: 6 | BA33: 6 | BB33: 6 | BC33: 6 | BD33: 6 | BE33: 6 | BF33: 6 | BG33: 6 | BH33: 6 | BI33: 6 | BJ33: 6 | BK33: 6 | BL33: 6 | BM33: 6 | BN33: 6 | BO33: 6 | BP33: 0 | BQ33: 0 | BR33: 0 | BS33: 0 | BT33: =SUMPRODUCT(($D$9:$D$22="F")*(BT$9:BT$22="x")) -> 0 | BU33: 0 | BV33: 0 | BW33: 0 | BX33: 0 | BY33: 0 | BZ33: 0 | CA33: 0 | CB33: 0 | CC33: 0 | CD33: 0 | CE33: 0 | CF33: 0 | CG33: 0 | CH33: 0 | CI33: 0
F34: =F24 -> 4 - 5 ans | G34: =SUMPRODUCT(($G$9:$G$22=F34)*($D$9:$D$22="F")) -> 2 | H34: =SUMPRODUCT(($D$9:$D$22="F")*($G$9:$G$22=$F34)*(H$9:H$22="x")) -> 1 | I34: 1 | J34: 1 | K34: 1 | L34: 1 | M34: 1 | N34: 1 | O34: 1 | P34: 2 | Q34: 2 | R34: =SUMPRODUCT(($D$9:$D$22="F")*($G$9:$G$22=$F34)*(R$9:R$22="x")) -> 2 | S34: 2 | T34: 2 | U34: 2 | V34: 2 | W34: 2 | X34: 1 | Y34: 1 | Z34: 1 | AA34: 1 | AB34: =SUMPRODUCT(($D$9:$D$22="F")*($G$9:$G$22=$F34)*(AB$9:AB$22="x")) -> 2 | AC34: 2 | AD34: 2 | AE34: 2 | AF34: 2 | AG34: 2 | AH34: 2 | AI34: 2 | AJ34: 2 | AK34: 2 | AL34: =SUMPRODUCT(($D$9:$D$22="F")*($G$9:$G$22=$F34)*(AL$9:AL$22="x")) -> 2 | AM34: 2 | AN34: 2 | AO34: 2 | AP34: 2 | AQ34: 2 | AR34: 2 | AS34: 2 | AT34: 2 | AU34: 2 | AV34: =SUMPRODUCT(($D$9:$D$22="F")*($G$9:$G$22=$F34)*(AV$9:AV$22="x")) -> 2 | AW34: 2 | AX34: 2 | AY34: 2 | AZ34: 2 | BA34: 2 | BB34: 2 | BC34: 2 | BD34: 2 | BE34: 2 | BF34: =SUMPRODUCT(($D$9:$D$22="F")*($G$9:$G$22=$F34)*(BF$9:BF$22="x")) -> 2 | BG34: 2 | BH34: 2 | BI34: 2 | BJ34: 2 | BK34: 2 | BL34: 2 | BM34: 2 | BN34: 2 | BO34: 2 | BP34: =SUMPRODUCT(($D$9:$D$22="F")*($G$9:$G$22=$F34)*(BP$9:BP$22="x")) -> 0 | BQ34: 0 | BR34: 0 | BS34: 0 | BT34: 0 | BU34: 0 | BV34: 0 | BW34: 0 | BX34: 0 | BY34: 0 | BZ34: =SUMPRODUCT(($D$9:$D$22="F")*($G$9:$G$22=$F34)*(BZ$9:BZ$22="x")) -> 0 | CA34: 0 | CB34: 0 | CC34: 0 | CD34: 0 | CE34: 0 | CF34: 0 | CG34: 0 | CH34: 0 | CI34: 0
F35: =F25 -> 6 - 11 ans | G35: =SUMPRODUCT(($G$9:$G$22=F35)*($D$9:$D$22="F")) -> 2 | H35: 1 | I35: 1 | J35: 1 | K35: 1 | L35: 1 | M35: 1 | N35: 1 | O35: 1 | P35: 2 | Q35: 2 | R35: 2 | S35: 2 | T35: 1 | U35: 1 | V35: 1 | W35: 1 | X35: 1 | Y35: 1 | Z35: 1 | AA35: 1 | AB35: 2 | AC35: 2 | AD35: 2 | AE35: 2 | AF35: 2 | AG35: 2 | AH35: 2 | AI35: 2 | AJ35: 2 | AK35: 2 | AL35: 2 | AM35: 2 | AN35: 2 | AO35: 2 | AP35: 2 | AQ35: 2 | AR35: 2 | AS35: 2 | AT35: 2 | AU35: 2 | AV35: 2 | AW35: 2 | AX35: 2 | AY35: 2 | AZ35: 2 | BA35: 2 | BB35: 2 | BC35: 2 | BD35: 2 | BE35: 2 | BF35: 2 | BG35: 2 | BH35: 2 | BI35: 2 | BJ35: 2 | BK35: 2 | BL35: 2 | BM35: 2 | BN35: 2 | BO35: 2 | BP35: 0 | BQ35: 0 | BR35: 0 | BS35: 0 | BT35: 0 | BU35: 0 | BV35: 0 | BW35: 0 | BX35: 0 | BY35: 0 | BZ35: 0 | CA35: 0 | CB35: 0 | CC35: 0 | CD35: 0 | CE35: 0 | CF35: 0 | CG35: 0 | CH35: 0 | CI35: 0
F36: =F26 -> 12 - 17 ans | G36: =SUMPRODUCT(($G$9:$G$22=F36)*($D$9:$D$22="F")) -> 2 | H36: 2 | I36: 2 | J36: 2 | K36: 2 | L36: 2 | M36: 2 | N36: 2 | O36: 2 | P36: 2 | Q36: 2 | R36: 2 | S36: 2 | T36: 2 | U36: 2 | V36: 2 | W36: 2 | X36: 2 | Y36: 2 | Z36: 2 | AA36: 2 | AB36: 2 | AC36: 2 | AD36: 2 | AE36: 2 | AF36: 2 | AG36: 2 | AH36: 2 | AI36: 2 | AJ36: 2 | AK36: 2 | AL36: 2 | AM36: 2 | AN36: 2 | AO36: 2 | AP36: 2 | AQ36: 2 | AR36: 2 | AS36: 2 | AT36: 2 | AU36: 2 | AV36: 2 | AW36: 2 | AX36: 2 | AY36: 2 | AZ36: 2 | BA36: 2 | BB36: 2 | BC36: 2 | BD36: 2 | BE36: 2 | BF36: 2 | BG36: 2 | BH36: 2 | BI36: 2 | BJ36: 2 | BK36: 2 | BL36: 2 | BM36: 2 | BN36: 2 | BO36: 2 | BP36: 0 | BQ36: 0 | BR36: 0 | BS36: 0 | BT36: 0 | BU36: 0 | BV36: 0 | BW36: 0 | BX36: 0 | BY36: 0 | BZ36: 0 | CA36: 0 | CB36: 0 | CC36: 0 | CD36: 0 | CE36: 0 | CF36: 0 | CG36: 0 | CH36: 0 | CI36: 0
F37: =F27 -> Autres | G37: =SUMPRODUCT(($G$9:$G$22=F37)*($D$9:$D$22="F")) -> 0 | H37: 0 | I37: 0 | J37: 0 | K37: 0 | L37: 0 | M37: 0 | N37: 0 | O37: 0 | P37: 0 | Q37: 0 | R37: 0 | S37: 0 | T37: 0 | U37: 0 | V37: 0 | W37: 0 | X37: 0 | Y37: 0 | Z37: 0 | AA37: 0 | AB37: 0 | AC37: 0 | AD37: 0 | AE37: 0 | AF37: 0 | AG37: 0 | AH37: 0 | AI37: 0 | AJ37: 0 | AK37: 0 | AL37: 0 | AM37: 0 | AN37: 0 | AO37: 0 | AP37: 0 | AQ37: 0 | AR37: 0 | AS37: 0 | AT37: 0 | AU37: 0 | AV37: 0 | AW37: 0 | AX37: 0 | AY37: 0 | AZ37: 0 | BA37: 0 | BB37: 0 | BC37: 0 | BD37: 0 | BE37: 0 | BF37: 0 | BG37: 0 | BH37: 0 | BI37: 0 | BJ37: 0 | BK37: 0 | BL37: 0 | BM37: 0 | BN37: 0 | BO37: 0 | BP37: 0 | BQ37: 0 | BR37: 0 | BS37: 0 | BT37: 0 | BU37: 0 | BV37: 0 | BW37: 0 | BX37: 0 | BY37: 0 | BZ37: 0 | CA37: 0 | CB37: 0 | CC37: 0 | CD37: 0 | CE37: 0 | CF37: 0 | CG37: 0 | CH37: 0 | CI37: 0

Sheet Tableau baignade
A1: ALSH : TABLEAU NAGEURS/NON NAGEURS
B3: Rappel :
B4: Un animateur pour | D4: 5 | E4: enfants de moins de | I4: 6 | J4: ans
B5: =B4 -> Un animateur pour | D5: 8 | E5: =E4 -> enfants de moins de | I5: =I4 -> 6 | J5: =J4 -> ans
B7: Date de réservation | D7: 2016-08-23
B8: Nom de la structure | D8: ALSH
B9: Adresse : | D9: RUE DES ENFANTS
B10: Tél : | D10: 00 00 00 00 00 - 06 00 00 00 00
B11: Fax : | D11: 00 00 00 00 00
B12: Nom du responsable : | D12: Jean MARTIN
A14: Prénom et NOM de l'animateur : | D14: BERKATI David | F14: + | G14: - | I14: Prénom et NOM de l'animateur : | N14: + | O14: -
A15: N° | B15: NOM | C15: Prénom | D15: Date de naissance | E15: Âge | F15: Nageurs | I15: N° | J15: NOM | K15: Prénom | L15: Date de naissance | M15: Âge | N15: Nageurs
F16: Oui | G16: Non | N16: Oui | O16: Non
A17: 1 | I17: 1
A18: 2 | I18: 2
A19: 3 | I19: 3
A20: 4 | I20: 4
A21: 5 | I21: 5
A22: 6 | I22: 6
A23: 7 | I23: 7
A24: 8 | I24: 8
A26: Prénom et NOM de l'animateur : | F26: + | G26: - | I26: Prénom et NOM de l'animateur : | N26: + | O26: -
A27: N° | B27: NOM | C27: Prénom | D27: Date de naissance | E27: Âge | F27: Nageurs | I27: N° | J27: NOM | K27: Prénom | L27: Date de naissance | M27: Âge | N27: Nageurs
F28: Oui | G28: Non | N28: Oui | O28: Non
A29: 1 | I29: 1
A30: 2 | I30: 2
A31: 3 | I31: 3
A32: 4 | I32: 4
A33: 5 | I33: 5
A34: 6 | I34: 6
A35: 7 | I35: 7
A36: 8 | I36: 8

Sheet Moyennes
A2: Période :
A3: =Renseignements!B11 -> Vacances de Février
A5: Les feuilles suivantes sont en lecture seule. Aucune modification ne doit y être apportée. Les calculs se font automatiquements.
A10: Moyennes :
C11: Prév | D11: Réel
A12: Semaine 1 | B12: Matin | C12: =AVERAGE(Prévisionnel!H17,Prévisionnel!L17,Prévisionnel!P17,Prévisionnel!T17,Prévisionnel!X17) -> 4.4 | D12: =AVERAGE(Réel!H23,Réel!L23,Réel!P23,Réel!T23,Réel!X23) -> 10.6 | E12: enfant de moyenne | G12: par matin
C13: =AVERAGE(Prévisionnel!H27,Prévisionnel!L27,Prévisionnel!P27,Prévisionnel!T27,Prévisionnel!X27) -> 1.4 | D13: =AVERAGE(Réel!H33,Réel!L33,Réel!P33,Réel!T33,Réel!X33) -> 4.6 | E13: filles en moyenne | G13: =G12 -> par matin
C14: =AVERAGE(Prévisionnel!H22,Prévisionnel!L22,Prévisionnel!P22,Prévisionnel!T22,Prévisionnel!X22) -> 3 | D14: =AVERAGE(Réel!H28,Réel!L28,Réel!P28,Réel!T28,Réel!X28) -> 6 | E14: garçons en moyenne | G14: =G12 -> par matin
B15: TO | C15: =AVERAGE(Prévisionnel!H17,Prévisionnel!L17,Prévisionnel!P17,Prévisionnel!T17,Prévisionnel!X17)/Renseignements!C27 -> 0.3666666667 | D15: =AVERAGE(Réel!H23,Réel!L23,Réel!P23,Réel!T23,Réel!X23)/Renseignements!C27 -> 0.8833333333 | E15: Taux d'occupation moyen | G15: =G12 -> par matin
B16: Après-midi | C16: =AVERAGE(Prévisionnel!I17,Prévisionnel!M17,Prévisionnel!Q17,Prévisionnel!U17,Prévisionnel!Y17) -> 4 | D16: =AVERAGE(Réel!I23,Réel!M23,Réel!Q23,Réel!U23,Réel!Y23) -> 10.6 | E16: =E12 -> enfant de moyenne | G16: par après-midi
C17: =AVERAGE(Prévisionnel!I27,Prévisionnel!M27,Prévisionnel!Q27,Prévisionnel!U27,Prévisionnel!Y27) -> 1 | D17: =AVERAGE(Réel!I33,Réel!M33,Réel!Q33,Réel!U33,Réel!Y33) -> 4.6 | E17: filles en moyenne | G17: =G16 -> par après-midi
C18: =AVERAGE(Prévisionnel!I22,Prévisionnel!M22,Prévisionnel!Q22,Prévisionnel!U22,Prévisionnel!Y22) -> 3 | D18: =AVERAGE(Réel!I28,Réel!M28,Réel!Q28,Réel!U28,Réel!Y28) -> 6 | E18: garçons en moyenne | G18: =G16 -> par après-midi
B19: TO | C19: =AVERAGE(Prévisionnel!I17,Prévisionnel!M17,Prévisionnel!Q17,Prévisionnel!U17,Prévisionnel!Y17)/Renseignements!C28 -> 0.3076923077 | D19: =AVERAGE(Réel!I23,Réel!M23,Réel!Q23,Réel!U23,Réel!Y23)/Renseignements!C28 -> 0.8153846154 | E19: =E15 -> Taux d'occupation moyen | G19: =G16 -> par après-midi
B20: Soirée | C20: =AVERAGE(Prévisionnel!J17,Prévisionnel!N17,Prévisionnel!R17,Prévisionnel!V17,Prévisionnel!Z17) -> 4 | D20: =AVERAGE(Réel!J23,Réel!N23,Réel!R23,Réel!V23,Réel!Z23) -> 10.6 | E20: =E12 -> enfant de moyenne | G20: par soirée
C21: =AVERAGE(Prévisionnel!J27,Prévisionnel!N27,Prévisionnel!R27,Prévisionnel!V27,Prévisionnel!Z27) -> 1 | D21: =AVERAGE(Réel!J33,Réel!N33,Réel!R33,Réel!V33,Réel!Z33) -> 4.6 | E21: filles en moyenne | G21: =G20 -> par soirée
C22: =AVERAGE(Prévisionnel!J22,Prévisionnel!N22,Prévisionnel!R22,Prévisionnel!V22,Prévisionnel!Z22) -> 3 | D22: =AVERAGE(Réel!J28,Réel!N28,Réel!R28,Réel!V28,Réel!Z28) -> 6 | E22: garçons en moyenne | G22: =G20 -> par soirée
B23: TO | C23: =AVERAGE(Prévisionnel!J17,Prévisionnel!N17,Prévisionnel!R17,Prévisionnel!V17,Prévisionnel!Z17)/Renseignements!C29 -> 0.2857142857 | D23: =AVERAGE(Réel!J23,Réel!N23,Réel!R23,Réel!V23,Réel!Z23)/Renseignements!C29 -> 0.7571428571 | E23: =E15 -> Taux d'occupation moyen | G23: =G20 -> par soirée
B24: Séjour | C24: =AVERAGE(Prévisionnel!K17,Prévisionnel!O17,Prévisionnel!S17,Prévisionnel!W17,Prévisionnel!AA17) -> 4 | D24: =AVERAGE(Réel!K23,Réel!O23,Réel!S23,Réel!W23,Réel!AA23) -> 10.6 | E24: =E12 -> enfant de moyenne | G24: par séjour
C25: =AVERAGE(Prévisionnel!K27,Prévisionnel!O27,Prévisionnel!S27,Prévisionnel!W27,Prévisionnel!AA27) -> 1 | D25: =AVERAGE(Réel!K33,Réel!O33,Réel!S33,Réel!W33,Réel!AA33) -> 4.6 | E25: filles en moyenne | G25: =G24 -> par séjour
C26: =AVERAGE(Prévisionnel!K22,Prévisionnel!O22,Prévisionnel!S22,Prévisionnel!W22,Prévisionnel!AA22) -> 3 | D26: =AVERAGE(Réel!K28,Réel!O28,Réel!S28,Réel!W28,Réel!AA28) -> 6 | E26: garçons en moyenne | G26: =G24 -> par séjour
B27: TO | C27: =AVERAGE(Prévisionnel!K17,Prévisionnel!O17,Prévisionnel!S17,Prévisionnel!W17,Prévisionnel!AA17)/Renseignements!C30 -> 0.2666666667 | D27: =AVERAGE(Réel!K23,Réel!O23,Réel!S23,Réel!W23,Réel!AA23)/Renseignements!C30 -> 0.7066666667 | E27: =E15 -> Taux d'occupation moyen | G27: =G24 -> par séjour
A28: Semaine 2 | B28: =B12 -> Matin | C28: =AVERAGE(Prévisionnel!AB17,Prévisionnel!AF17,Prévisionnel!AJ17,Prévisionnel!AN17,Prévisionnel!AR17) -> 4 | D28: =AVERAGE(Réel!AB23,Réel!AF23,Réel!AJ23,Réel!AN23,Réel!AR23) -> 12 | E28: =E12 -> enfant de moyenne | G28: =G12 -> par matin
C29: =AVERAGE(Prévisionnel!AB27,Prévisionnel!AF27,Prévisionnel!AJ27,Prévisionnel!AN27,Prévisionnel!AR27) -> 1 | D29: =AVERAGE(Réel!AB33,Réel!AF33,Réel!AJ33,Réel!AN33,Réel!AR33) -> 6 | E29: filles en moyenne | G29: =G28 -> par matin
C30: =AVERAGE(Prévisionnel!AB22,Prévisionnel!AF22,Prévisionnel!AJ22,Prévisionnel!AN22,Prévisionnel!AR22) -> 3 | D30: =AVERAGE(Réel!AB28,Réel!AF28,Réel!AJ28,Réel!AN28,Réel!AR28) -> 6 | E30: garçons en moyenne | G30: =G28 -> par matin
B31: TO | C31: =AVERAGE(Prévisionnel!AB17,Prévisionnel!AF17,Prévisionnel!AJ17,Prévisionnel!AN17,Prévisionnel!AR17)/Renseignements!C27 -> 0.3333333333 | D31: =AVERAGE(Réel!AB23,Réel!AF23,Réel!AJ23,Réel!AN23,Réel!AR23)/Renseignements!C27 -> 1 | E31: =E27 -> Taux d'occupation moyen | G31: =G28 -> par matin
B32: =B16 -> Après-midi | C32: =AVERAGE(Prévisionnel!AC17,Prévisionnel!AG17,Prévisionnel!AK17,Prévisionnel!AO17,Prévisionnel!AS17) -> 4 | D32: =AVERAGE(Réel!AC23,Réel!AG23,Réel!AK23,Réel!AO23,Réel!AS23) -> 12 | E32: =E12 -> enfant de moyenne | G32: =G16 -> par après-midi
C33: =AVERAGE(Prévisionnel!AC27,Prévisionnel!AG27,Prévisionnel!AK27,Prévisionnel!AO27,Prévisionnel!AS27) -> 1 | D33: =AVERAGE(Réel!AC33,Réel!AG33,Réel!AK33,Réel!AO33,Réel!AS33) -> 6 | E33: filles en moyenne | G33: =G32 -> par après-midi
C34: =AVERAGE(Prévisionnel!AC22,Prévisionnel!AG22,Prévisionnel!AK22,Prévisionnel!AO22,Prévisionnel!AS22) -> 3 | D34: =AVERAGE(Réel!AC28,Réel!AG28,Réel!AK28,Réel!AO28,Réel!AS28) -> 6 | E34: garçons en moyenne | G34: =G32 -> par après-midi
B35: TO | C35: =AVERAGE(Prévisionnel!AC17,Prévisionnel!AG17,Prévisionnel!AK17,Prévisionnel!AO17,Prévisionnel!AS17)/Renseignements!C28 -> 0.3076923077 | D35: =AVERAGE(Réel!AC23,Réel!AG23,Réel!AK23,Réel!AO23,Réel!AS23)/Renseignements!C28 -> 0.9230769231 | E35: =E31 -> Taux d'occupation moyen | G35: =G32 -> par après-midi
B36: =B20 -> Soirée | C36: =AVERAGE(Prévisionnel!AD17,Prévisionnel!AH17,Prévisionnel!AL17,Prévisionnel!AP17,Prévisionnel!AT17) -> 4 | D36: =AVERAGE(Réel!AD23,Réel!AH23,Réel!AL23,Réel!AP23,Réel!AT23) -> 12 | E36: =E12 -> enfant de moyenne | G36: =G20 -> par soirée
C37: =AVERAGE(Prévisionnel!AD27,Prévisionnel!AH27,Prévisionnel!AL27,Prévisionnel!AP27,Prévisionnel!AT27) -> 1 | D37: =AVERAGE(Réel!AD33,Réel!AH33,Réel!AL33,Réel!AP33,Réel!AT33) -> 6 | E37: filles en moyenne | G37: =G36 -> par soirée
C38: =AVERAGE(Prévisionnel!AD22,Prévisionnel!AH22,Prévisionnel!AL22,Prévisionnel!AP22,Prévisionnel!AT22) -> 3 | D38: =AVERAGE(Réel!AD28,Réel!AH28,Réel!AL28,Réel!AP28,Réel!AT28) -> 6 | E38: garçons en moyenne | G38: =G36 -> par soirée
B39: TO | C39: =AVERAGE(Prévisionnel!AD17,Prévisionnel!AH17,Prévisionnel!AL17,Prévisionnel!AP17,Prévisionnel!AT17)/Renseignements!C29 -> 0.2857142857 | D39: =AVERAGE(Réel!AD23,Réel!AH23,Réel!AL23,Réel!AP23,Réel!AT23)/Renseignements!C29 -> 0.8571428571 | E39: =E35 -> Taux d'occupation moyen | G39: =G36 -> par soirée
B40: =B24 -> Séjour | C40: =AVERAGE(Prévisionnel!AE17,Prévisionnel!AI17,Prévisionnel!AM17,Prévisionnel!AQ17,Prévisionnel!AU17) -> 4 | D40: =AVERAGE(Réel!AE23,Réel!AI23,Réel!AM23,Réel!AQ23,Réel!AU23) -> 12 | E40: =E12 -> enfant de moyenne | G40: =G24 -> par séjour
C41: =AVERAGE(Prévisionnel!AE27,Prévisionnel!AI27,Prévisionnel!AM27,Prévisionnel!AQ27,Prévisionnel!AU27) -> 1 | D41: =AVERAGE(Réel!AE33,Réel!AI33,Réel!AM33,Réel!AQ33,Réel!AU33) -> 6 | E41: filles en moyenne | G41: =G40 -> par séjour
C42: =AVERAGE(Prévisionnel!AE22,Prévisionnel!AI22,Prévisionnel!AM22,Prévisionnel!AQ22,Prévisionnel!AU22) -> 3 | D42: =AVERAGE(Réel!AE28,Réel!AI28,Réel!AM28,Réel!AQ28,Réel!AU28) -> 6 | E42: garçons en moyenne | G42: =G40 -> par séjour
B43: TO | C43: =AVERAGE(Prévisionnel!AE17,Prévisionnel!AI17,Prévisionnel!AM17,Prévisionnel!AQ17,Prévisionnel!AU17)/Renseignements!C30 -> 0.2666666667 | D43: =AVERAGE(Réel!AE23,Réel!AI23,Réel!AM23,Réel!AQ23,Réel!AU23)/Renseignements!C30 -> 0.8 | E43: =E39 -> Taux d'occupation moyen | G43: =G40 -> par séjour
A44: Semaine 3 | B44: =B28 -> Matin | C44: =AVERAGE(Prévisionnel!AV17,Prévisionnel!AZ17,Prévisionnel!BD17,Prévisionnel!BH17,Prévisionnel!BL17) -> 5 | D44: =AVERAGE(Réel!AV23,Réel!AZ23,Réel!BD23,Réel!BH23,Réel!BL23) -> 12 | E44: =E12 -> enfant de moyenne | G44: =G28 -> par matin
C45: =AVERAGE(Prévisionnel!AV27,Prévisionnel!AZ27,Prévisionnel!BD27,Prévisionnel!BH27,Prévisionnel!BL27) -> 3 | D45: =AVERAGE(Réel!AV33,Réel!AZ33,Réel!BD33,Réel!BH33,Réel!BL33) -> 6 | E45: filles en moyenne | G45: =G44 -> par matin
C46: =AVERAGE(Prévisionnel!AV22,Prévisionnel!AZ22,Prévisionnel!BD22,Prévisionnel!BH22,Prévisionnel!BL22) -> 2 | D46: =AVERAGE(Réel!AV28,Réel!AZ28,Réel!BD28,Réel!BH28,Réel!BL28) -> 6 | E46: garçons en moyenne | G46: =G44 -> par matin
B47: TO | C47: =AVERAGE(Prévisionnel!AV17,Prévisionnel!AZ17,Prévisionnel!BD17,Prévisionnel!BH17,Prévisionnel!BL17)/Renseignements!C27 -> 0.4166666667 | D47: =AVERAGE(Réel!AV23,Réel!AZ23,Réel!BD23,Réel!BH23,Réel!BL23)/Renseignements!C27 -> 1 | E47: =E43 -> Taux d'occupation moyen | G47: =G44 -> par matin
B48: =B32 -> Après-midi | C48: =AVERAGE(Prévisionnel!AW17,Prévisionnel!BA17,Prévisionnel!BE17,Prévisionnel!BI17,Prévisionnel!BM17) -> 5 | D48: =AVERAGE(Réel!AW23,Réel!BA23,Réel!BE23,Réel!BI23,Réel!BM23) -> 12 | E48: =E12 -> enfant de moyenne | G48: =G32 -> par après-midi
C49: =AVERAGE(Prévisionnel!AW27,Prévisionnel!BA27,Prévisionnel!BE27,Prévisionnel!BI27,Prévisionnel!BM27) -> 3 | D49: =AVERAGE(Réel!AW33,Réel!BA33,Réel!BE33,Réel!BI33,Réel!BM33) -> 6 | E49: filles en moyenne | G49: =G48 -> par après-midi
C50: =AVERAGE(Prévisionnel!AW22,Prévisionnel!BA22,Prévisionnel!BE22,Prévisionnel!BI22,Prévisionnel!BM22) -> 2 | D50: =AVERAGE(Réel!AW28,Réel!BA28,Réel!BE28,Réel!BI28,Réel!BM28) -> 6 | E50: garçons en moyenne | G50: =G48 -> par après-midi
B51: TO | C51: =AVERAGE(Prévisionnel!AW17,Prévisionnel!BA17,Prévisionnel!BE17,Prévisionnel!BI17,Prévisionnel!BM17)/Renseignements!C28 -> 0.3846153846 | D51: =AVERAGE(Réel!AW23,Réel!BA23,Réel!BE23,Réel!BI23,Réel!BM23)/Renseignements!C28 -> 0.9230769231 | E51: =E47 -> Taux d'occupation moyen | G51: =G48 -> par après-midi
B52: =B36 -> Soirée | C52: =AVERAGE(Prévisionnel!AX17,Prévisionnel!BB17,Prévisionnel!BF17,Prévisionnel!BJ17,Prévisionnel!BN17) -> 5 | D52: =AVERAGE(Réel!AX23,Réel!BB23,Réel!BF23,Réel!BJ23,Réel!BN23) -> 12 | E52: =E12 -> enfant de moyenne | G52: =G36 -> par soirée
C53: =AVERAGE(Prévisionnel!AX27,Prévisionnel!BB27,Prévisionnel!BF27,Prévisionnel!BJ27,Prévisionnel!BN27) -> 3 | D53: =AVERAGE(Réel!AX33,Réel!BB33,Réel!BF33,Réel!BJ33,Réel!BN33) -> 6 | E53: filles en moyenne | G53: =G52 -> par soirée
C54: =AVERAGE(Prévisionnel!AX22,Prévisionnel!BB22,Prévisionnel!BF22,Prévisionnel!BJ22,Prévisionnel!BN22) -> 2 | D54: =AVERAGE(Réel!AX28,Réel!BB28,Réel!BF28,Réel!BJ28,Réel!BN28) -> 6 | E54: garçons en moyenne | G54: =G52 -> par soirée
B55: TO | C55: =AVERAGE(Prévisionnel!AX17,Prévisionnel!BB17,Prévisionnel!BF17,Prévisionnel!BJ17,Prévisionnel!BN17)/Renseignements!C29 -> 0.3571428571 | D55: =AVERAGE(Réel!AX23,Réel!BB23,Réel!BF23,Réel!BJ23,Réel!BN23)/Renseignements!C29 -> 0.8571428571 | E55: =E51 -> Taux d'occupation moyen | G55: =G52 -> par soirée
B56: =B40 -> Séjour | C56: =AVERAGE(Prévisionnel!AY17,Prévisionnel!BC17,Prévisionnel!BG17,Prévisionnel!BK17,Prévisionnel!BO17) -> 5 | D56: =AVERAGE(Réel!AY23,Réel!BC23,Réel!BG23,Réel!BK23,Réel!BO23) -> 12 | E56: =E12 -> enfant de moyenne | G56: =G40 -> par séjour
C57: =AVERAGE(Prévisionnel!AY27,Prévisionnel!BC27,Prévisionnel!BG27,Prévisionnel!BK27,Prévisionnel!BO27) -> 3 | D57: =AVERAGE(Réel!AY33,Réel!BC33,Réel!BG33,Réel!BK33,Réel!BO33) -> 6 | E57: filles en moyenne | G57: =G56 -> par séjour
C58: =AVERAGE(Prévisionnel!AY22,Prévisionnel!BC22,Prévisionnel!BG22,Prévisionnel!BK22,Prévisionnel!BO22) -> 2 | D58: =AVERAGE(Réel!AY28,Réel!BC28,Réel!BG28,Réel!BK28,Réel!BO28) -> 6 | E58: garçons en moyenne | G58: =G56 -> par séjour
B59: TO | C59: =AVERAGE(Prévisionnel!AY17,Prévisionnel!BC17,Prévisionnel!BG17,Prévisionnel!BK17,Prévisionnel!BO17)/Renseignements!C30 -> 0.3333333333 | D59: =AVERAGE(Réel!AY23,Réel!BC23,Réel!BG23,Réel!BK23,Réel!BO23)/Renseignements!C30 -> 0.8 | E59: =E55 -> Taux d'occupation moyen | G59: =G56 -> par séjour
A60: Semaine 4 | B60: =B44 -> Matin | C60: =AVERAGE(Prévisionnel!BP17,Prévisionnel!BT17,Prévisionnel!BX17,Prévisionnel!CB17,Prévisionnel!CF17) -> 1 | D60: =AVERAGE(Réel!BP23,Réel!BT23,Réel!BX23,Réel!CB23,Réel!CF23) -> 0 | E60: =E12 -> enfant de moyenne | G60: =G44 -> par matin
C61: =AVERAGE(Prévisionnel!BP27,Prévisionnel!BT27,Prévisionnel!BX27,Prévisionnel!CB27,Prévisionnel!CF27) -> 0.4 | D61: =AVERAGE(Réel!BP33,Réel!BT33,Réel!BX33,Réel!CB33,Réel!CF33) -> 0 | E61: filles en moyenne | G61: =G60 -> par matin
C62: =AVERAGE(Prévisionnel!BP22,Prévisionnel!BT22,Prévisionnel!BX22,Prévisionnel!CB22,Prévisionnel!CF22) -> 0.6 | D62: =AVERAGE(Réel!BP28,Réel!BT28,Réel!BX28,Réel!CB28,Réel!CF28) -> 0 | E62: garçons en moyenne | G62: =G60 -> par matin
B63: TO | C63: =AVERAGE(Prévisionnel!BP17,Prévisionnel!BT17,Prévisionnel!BX17,Prévisionnel!CB17,Prévisionnel!CF17)/Renseignements!C27 -> 0.08333333333 | D63: =AVERAGE(Réel!BP23,Réel!BT23,Réel!BX23,Réel!CB23,Réel!CF23)/Renseignements!C27 -> 0 | E63: =E47 -> Taux d'occupation moyen | G63: =G60 -> par matin
B64: =B48 -> Après-midi | C64: =AVERAGE(Prévisionnel!BQ17,Prévisionnel!BU17,Prévisionnel!BY17,Prévisionnel!CC17,Prévisionnel!CG17) -> 1 | D64: =AVERAGE(Réel!BQ23,Réel!BU23,Réel!BY23,Réel!CC23,Réel!CG23) -> 0 | E64: =E12 -> enfant de moyenne | G64: =G48 -> par après-midi
C65: =AVERAGE(Prévisionnel!BQ27,Prévisionnel!BU27,Prévisionnel!BY27,Prévisionnel!CC27,Prévisionnel!CG27) -> 0.6 | D65: =AVERAGE(Réel!BQ33,Réel!BU33,Réel!BY33,Réel!CC33,Réel!CG33) -> 0 | E65: filles en moyenne | G65: =G64 -> par après-midi
C66: =AVERAGE(Prévisionnel!BQ22,Prévisionnel!BU22,Prévisionnel!BY22,Prévisionnel!CC22,Prévisionnel!CG22) -> 0.4 | D66: =AVERAGE(Réel!BQ28,Réel!BU28,Réel!BY28,Réel!CC28,Réel!CG28) -> 0 | E66: garçons en moyenne | G66: =G64 -> par après-midi
B67: TO | C67: =AVERAGE(Prévisionnel!BQ17,Prévisionnel!BU17,Prévisionnel!BY17,Prévisionnel!CC17,Prévisionnel!CG17)/Renseignements!C28 -> 0.07692307692 | D67: =AVERAGE(Réel!BQ23,Réel!BU23,Réel!BY23,Réel!CC23,Réel!CG23)/Renseignements!C28 -> 0 | E67: =E63 -> Taux d'occupation moyen | G67: =G64 -> par après-midi
B68: =B52 -> Soirée | C68: =AVERAGE(Prévisionnel!BR17,Prévisionnel!BV17,Prévisionnel!BZ17,Prévisionnel!CD17,Prévisionnel!CH17) -> 1 | D68: =AVERAGE(Réel!BR23,Réel!BV23,Réel!BZ23,Réel!CD23,Réel!CH23) -> 0 | E68: =E12 -> enfant de moyenne | G68: =G52 -> par soirée
C69: =AVERAGE(Prévisionnel!BR27,Prévisionnel!BV27,Prévisionnel!BZ27,Prévisionnel!CD27,Prévisionnel!CH27) -> 0.6 | D69: =AVERAGE(Réel!BR33,Réel!BV33,Réel!BZ33,Réel!CD33,Réel!CH33) -> 0 | E69: filles en moyenne | G69: =G68 -> par soirée
C70: =AVERAGE(Prévisionnel!BR22,Prévisionnel!BV22,Prévisionnel!BZ22,Prévisionnel!CD22,Prévisionnel!CH22) -> 0.4 | D70: =AVERAGE(Réel!BR28,Réel!BV28,Réel!BZ28,Réel!CD28,Réel!CH28) -> 0 | E70: garçons en moyenne | G70: =G68 -> par soirée
B71: TO | C71: =AVERAGE(Prévisionnel!BR17,Prévisionnel!BV17,Prévisionnel!BZ17,Prévisionnel!CD17,Prévisionnel!CH17)/Renseignements!C29 -> 0.07142857143 | D71: =AVERAGE(Réel!BR23,Réel!BV23,Réel!BZ23,Réel!CD23,Réel!CH23)/Renseignements!C29 -> 0 | E71: =E67 -> Taux d'occupation moyen | G71: =G68 -> par soirée
B72: =B56 -> Séjour | C72: =AVERAGE(Prévisionnel!BS17,Prévisionnel!BW17,Prévisionnel!CA17,Prévisionnel!CE17,Prévisionnel!CI17) -> 1 | D72: =AVERAGE(Réel!BS23,Réel!BW23,Réel!CA23,Réel!CE23,Réel!CI23) -> 0 | E72: =E12 -> enfant de moyenne | G72: =G56 -> par séjour
C73: =AVERAGE(Prévisionnel!BS27,Prévisionnel!BW27,Prévisionnel!CA27,Prévisionnel!CE27,Prévisionnel!CI27) -> 0.2 | D73: =AVERAGE(Réel!BS33,Réel!BW33,Réel!CA33,Réel!CE33,Réel!CI33) -> 0 | E73: filles en moyenne | G73: =G72 -> par séjour
C74: =AVERAGE(Prévisionnel!BS22,Prévisionnel!BW22,Prévisionnel!CA22,Prévisionnel!CE22,Prévisionnel!CI22) -> 0.8 | D74: =AVERAGE(Réel!BS28,Réel!BW28,Réel!CA28,Réel!CE28,Réel!CI28) -> 0 | E74: garçons en moyenne | G74: =G72 -> par séjour
B75: TO | C75: =AVERAGE(Prévisionnel!BS17,Prévisionnel!BW17,Prévisionnel!CA17,Prévisionnel!CE17,Prévisionnel!CI17)/Renseignements!C30 -> 0.06666666667 | D75: =AVERAGE(Réel!BS23,Réel!BW23,Réel!CA23,Réel!CE23,Réel!CI23)/Renseignements!C30 -> 0 | E75: =E71 -> Taux d'occupation moyen | G75: =G72 -> par séjour
A77: Globale | B77: =B60 -> Matin | C77: =AVERAGE(C12,C28,C44,C60) -> 3.6 | D77: =AVERAGE(D12,D28,D44,D60) -> 8.65 | E77: enfant(s) de moyenne par matin
B78: =B64 -> Après-midi | C78: =AVERAGE(C16,C32,C48,C64) -> 3.5 | D78: =AVERAGE(D16,D32,D48,D64) -> 8.65 | E78: enfant(s) de moyenne par après-midi
B79: =B68 -> Soirée | C79: =AVERAGE(C20,C36,C52,C68) -> 3.5 | D79: =AVERAGE(D20,D36,D52,D68) -> 8.65 | E79: enfant(s) de moyenne par soirée
B80: =B72 -> Séjour | C80: =AVERAGE(C24,C40,C56,C72) -> 3.5 | D80: =AVERAGE(D24,D40,D56,D72) -> 8.65 | E80: enfant(s) de moyenne par séjour
A82: Inscrits
A83: Globale | C83: =SUM(Prévisionnel!G17) -> 6 | D83: =SUM(Réel!G23) -> 12 | E83: inscrits sur les quatre semaines
A84: Garçons | C84: =Prévisionnel!G22 -> 3 | D84: =Réel!G28 -> 6 | E84: =E83 -> inscrits sur les quatre semaines
A85: Filles | C85: =Prévisionnel!G27 -> 3 | D85: =Réel!G33 -> 6 | E85: =E83 -> inscrits sur les quatre semaines

Sheet Fréquentation globale
A2: Période :
A3: =Renseignements!B11 -> Vacances de Février
D5: Fréquentation : (matin)
B6: =Moyennes!C11 -> Prév | C6: =Moyennes!D11 -> Réel
A7: Semaine 1 | B7: =SUM(Prévisionnel!H17,Prévisionnel!L17,Prévisionnel!P17,Prévisionnel!T17,Prévisionnel!X17)*Renseignements!B20 -> 88 | C7: =SUM(Réel!H23,Réel!L23,Réel!P23,Réel!T23,Réel!X23)*Renseignements!B20 -> 212 | D7: heure(s) de fréquentation pour cette semaine
A8: Semaine 2 | B8: =SUM(Prévisionnel!AB17,Prévisionnel!AF17,Prévisionnel!AJ17,Prévisionnel!AN17,Prévisionnel!AR17)*Renseignements!B20 -> 80 | C8: =SUM(Réel!AB23,Réel!AF23,Réel!AJ23,Réel!AN23,Réel!AR23)*Renseignements!B20 -> 240 | D8: =D7 -> heure(s) de fréquentation pour cette semaine
A9: Semaine 3 | B9: =SUM(Prévisionnel!AV17,Prévisionnel!AZ17,Prévisionnel!BD17,Prévisionnel!BH17,Prévisionnel!BL17)*Renseignements!B20 -> 100 | C9: =SUM(Réel!AV23,Réel!AZ23,Réel!BD23,Réel!BH23,Réel!BL23)*Renseignements!B20 -> 240 | D9: =D7 -> heure(s) de fréquentation pour cette semaine
A10: Semaine 4 | B10: =SUM(Prévisionnel!BP17,Prévisionnel!BT17,Prévisionnel!BX17,Prévisionnel!CB17,Prévisionnel!CF17)*Renseignements!B20 -> 20 | C10: =SUM(Réel!BP23,Réel!BT23,Réel!BX23,Réel!CB23,Réel!CF23)*Renseignements!B20 -> 0 | D10: =D7 -> heure(s) de fréquentation pour cette semaine
A11: Globale | B11: =SUM(B7:B10) -> 288 | C11: =SUM(C7:C10) -> 692 | D11: heure(s) de fréquentation pour les quatre semaines
D13: Fréquentation : (après-midi)
B14: =B6 -> Prév | C14: =C6 -> Réel
A15: Semaine 1 | B15: =SUM(Prévisionnel!I17,Prévisionnel!M17,Prévisionnel!Q17,Prévisionnel!U17,Prévisionnel!Y17)*Renseignements!B21 -> 80 | C15: =SUM(Réel!I23,Réel!M23,Réel!Q23,Réel!U23,Réel!Y23)*Renseignements!B21 -> 212 | D15: heure(s) de fréquentation pour cette semaine
A16: Semaine 2 | B16: =SUM(Prévisionnel!I17,Prévisionnel!M17,Prévisionnel!Q17,Prévisionnel!U17,Prévisionnel!Y17,Prévisionnel!AC17)*Renseignements!B21 -> 96 | C16: =SUM(Réel!I23,Réel!M23,Réel!Q23,Réel!U23,Réel!Y23,Réel!AC23)*Renseignements!B21 -> 260 | D16: =D15 -> heure(s) de fréquentation pour cette semaine
A17: Semaine 3 | B17: =SUM(Prévisionnel!AW17,Prévisionnel!BA17,Prévisionnel!BE17,Prévisionnel!BI17,Prévisionnel!BM17)*Renseignements!B21 -> 100 | C17: =SUM(Réel!AW23,Réel!BA23,Réel!BE23,Réel!BI23,Réel!BM23)*Renseignements!B21 -> 240 | D17: =D15 -> heure(s) de fréquentation pour cette semaine
A18: Semaine 4 | B18: =SUM(Prévisionnel!BQ17,Prévisionnel!BU17,Prévisionnel!BY17,Prévisionnel!CC17,Prévisionnel!CG17)*Renseignements!B21 -> 20 | C18: =SUM(Réel!BQ23,Réel!BU23,Réel!BY23,Réel!CC23,Réel!CG23)*Renseignements!B21 -> 0 | D18: =D15 -> heure(s) de fréquentation pour cette semaine
A19: Globale | B19: =SUM(B15:B18) -> 296 | C19: =SUM(C15:C18) -> 712 | D19: heure(s) de fréquentation pour les quatre semaines
D21: Fréquentation : (soirée)
B22: =B14 -> Prév | C22: =C14 -> Réel
A23: Semaine 1 | B23: =SUM(Prévisionnel!J17,Prévisionnel!N17,Prévisionnel!R17,Prévisionnel!V17,Prévisionnel!Z17)*Renseignements!B22 -> 80 | C23: =SUM(Réel!J23,Réel!N23,Réel!R23,Réel!V23,Réel!Z23)*Renseignements!B22 -> 212 | D23: heure(s) de fréquentation pour cette semaine
A24: Semaine 2 | B24: =SUM(Prévisionnel!AD17,Prévisionnel!AH17,Prévisionnel!AL17,Prévisionnel!AP17,Prévisionnel!AT17)*Renseignements!B22 -> 80 | C24: =SUM(Réel!AD23,Réel!AH23,Réel!AL23,Réel!AP23,Réel!AT23)*Renseignements!B22 -> 240 | D24: =D23 -> heure(s) de fréquentation pour cette semaine
A25: Semaine 3 | B25: =SUM(Prévisionnel!AX17,Prévisionnel!BB17,Prévisionnel!BF17,Prévisionnel!BJ17,Prévisionnel!BN17)*Renseignements!B22 -> 100 | C25: =SUM(Réel!AX23,Réel!BB23,Réel!BF23,Réel!BJ23,Réel!BN23)*Renseignements!B22 -> 240 | D25: =D23 -> heure(s) de fréquentation pour cette semaine
A26: Semaine 4 | B26: =SUM(Prévisionnel!BR17,Prévisionnel!BV17,Prévisionnel!BZ17,Prévisionnel!CD17,Prévisionnel!CH17)*Renseignements!B22 -> 20 | C26: =SUM(Réel!BR23,Réel!BV23,Réel!BZ23,Réel!CD23,Réel!CH23)*Renseignements!B22 -> 0 | D26: =D23 -> heure(s) de fréquentation pour cette semaine
A27: Globale | B27: =SUM(B23:B26) -> 280 | C27: =SUM(C23:C26) -> 692 | D27: heure(s) de fréquentation pour les quatre semaines
D29: Fréquentation : (séjour)
B30: =B22 -> Prév | C30: =C22 -> Réel
A31: Semaine 1 | B31: =SUM(Prévisionnel!K17,Prévisionnel!O17,Prévisionnel!S17,Prévisionnel!W17,Prévisionnel!AA17)*Renseignements!B24 -> 200 | C31: =SUM(Réel!K23,Réel!O23,Réel!S23,Réel!W23,Réel!AA23)*Renseignements!B24 -> 530 | D31: heure(s) de fréquentation pour cette semaine
A32: Semaine 2 | B32: =SUM(Prévisionnel!AE17,Prévisionnel!AI17,Prévisionnel!AM17,Prévisionnel!AQ17,Prévisionnel!AU17)*Renseignements!B24 -> 200 | C32: =SUM(Réel!AE23,Réel!AI23,Réel!AM23,Réel!AQ23,Réel!AU23)*Renseignements!B24 -> 600 | D32: =D31 -> heure(s) de fréquentation pour cette semaine
A33: Semaine 3 | B33: =SUM(Prévisionnel!AY17,Prévisionnel!BC17,Prévisionnel!BG17,Prévisionnel!BK17,Prévisionnel!BO17)*Renseignements!B24 -> 250 | C33: =SUM(Réel!AY23,Réel!BC23,Réel!BG23,Réel!BK23,Réel!BO23)*Renseignements!B24 -> 600 | D33: =D31 -> heure(s) de fréquentation pour cette semaine
A34: Semaine 4 | B34: =SUM(Prévisionnel!BS17,Prévisionnel!BW17,Prévisionnel!CA17,Prévisionnel!CE17,Prévisionnel!CI17)*Renseignements!B24 -> 50 | C34: =SUM(Réel!BS23,Réel!BW23,Réel!CA23,Réel!CE23,Réel!CI23)*Renseignements!B24 -> 0 | D34: =D31 -> heure(s) de fréquentation pour cette semaine
A35: Globale | B35: =SUM(B31:B34) -> 700 | C35: =SUM(C31:C34) -> 1730 | D35: heure(s) de fréquentation pour les quatre semaines
A37: Général (Matin + après-midi + soirée)
B38: =SUM(B11,B19,B27) -> 864 | C38: =SUM(C11,C19,C27) -> 2096 | D38: heures de fréquentation
A39: Général (Séjour)
B40: =B35 -> 700 | C40: =C35 -> 1730 | D40: =D38 -> heures de fréquentation
A41: ="Général" &" "& Renseignements!B11 -> Général Vacances de Février
B42: =SUM(B38+B40) -> 1564 | C42: =SUM(C38+C40) -> 3826 | D42: =D38 -> heures de fréquentation

Sheet Fréquentation TA1
A2: Période :
A3: =Renseignements!B11 -> Vacances de Février
D5: Fréquentation : Matin
B6: =Moyennes!C11 -> Prév | C6: =Moyennes!D11 -> Réel | D6: =Renseignements!$B$15&" "&Renseignements!$C$15&" "&Renseignements!$D$15&" "&Renseignements!$E$15 -> 4 - 5 ans
A7: Semaine 1 | B7: =SUM(Prévisionnel!H18,Prévisionnel!L18,Prévisionnel!P18,Prévisionnel!T18,Prévisionnel!X18)*Renseignements!B20 -> 24 | C7: =SUM(Réel!H24,Réel!L24,Réel!P24,Réel!T24,Réel!X24)*Renseignements!B20 -> 68 | D7: heure(s) de fréquentation pour cette semaine
A8: Semaine 2 | B8: =SUM(Prévisionnel!AB18,Prévisionnel!AF18,Prévisionnel!AJ18,Prévisionnel!AN18,Prévisionnel!AR18)*Renseignements!B20 -> 20 | C8: =SUM(Réel!AB24,Réel!AF24,Réel!AJ24,Réel!AN24,Réel!AR24)*Renseignements!B20 -> 80 | D8: =D7 -> heure(s) de fréquentation pour cette semaine
A9: Semaine 3 | B9: =SUM(Prévisionnel!AV18,Prévisionnel!AZ18,Prévisionnel!BD18,Prévisionnel!BH18,Prévisionnel!BL18)*Renseignements!B20 -> 40 | C9: =SUM(Réel!AV24,Réel!AZ24,Réel!BD24,Réel!BH24,Réel!BL24)*Renseignements!B20 -> 80 | D9: =D7 -> heure(s) de fréquentation pour cette semaine
A10: Semaine 4 | B10: =SUM(Prévisionnel!BP18,Prévisionnel!BT18,Prévisionnel!BX18,Prévisionnel!CB18,Prévisionnel!CF18)*Renseignements!B20 -> 12 | C10: =SUM(Réel!BP24,Réel!BT24,Réel!BX24,Réel!CB24,Réel!CF24)*Renseignements!B20 -> 0 | D10: =D7 -> heure(s) de fréquentation pour cette semaine
A11: Globale | B11: =SUM(B7:B10) -> 96 | C11: =SUM(C7:C10) -> 228 | D11: heure(s) de fréquentation pour les quatre semaines
D13: Fréquentation : Après-midi
B14: =B6 -> Prév | C14: =C6 -> Réel | D14: =Renseignements!$B$15&" "&Renseignements!$C$15&" "&Renseignements!$D$15&" "&Renseignements!$E$15 -> 4 - 5 ans
A15: Semaine 1 | B15: =SUM(Prévisionnel!I18,Prévisionnel!M18,Prévisionnel!Q18,Prévisionnel!U18,Prévisionnel!Y18)*Renseignements!B21 -> 20 | C15: =SUM(Réel!I24,Réel!M24,Réel!Q24,Réel!U24,Réel!Y24)*Renseignements!B21 -> 68 | D15: heure(s) de fréquentation pour cette semaine
A16: Semaine 2 | B16: =SUM(Prévisionnel!I18,Prévisionnel!M18,Prévisionnel!Q18,Prévisionnel!U18,Prévisionnel!Y18,Prévisionnel!AC18)*Renseignements!B21 -> 24 | C16: =SUM(Réel!I24,Réel!M24,Réel!Q24,Réel!U24,Réel!Y24,Réel!AC24)*Renseignements!B21 -> 84 | D16: =D15 -> heure(s) de fréquentation pour cette semaine
A17: Semaine 3 | B17: =SUM(Prévisionnel!AW18,Prévisionnel!BA18,Prévisionnel!BE18,Prévisionnel!BI18,Prévisionnel!BM18)*Renseignements!B21 -> 40 | C17: =SUM(Réel!AW24,Réel!BA24,Réel!BE24,Réel!BI24,Réel!BM24)*Renseignements!B21 -> 80 | D17: =D15 -> heure(s) de fréquentation pour cette semaine
A18: Semaine 4 | B18: =SUM(Prévisionnel!BQ18,Prévisionnel!BU18,Prévisionnel!BY18,Prévisionnel!CC18,Prévisionnel!CG18)*Renseignements!B21 -> 0 | C18: =SUM(Réel!BQ24,Réel!BU24,Réel!BY24,Réel!CC24,Réel!CG24)*Renseignements!B21 -> 0 | D18: =D15 -> heure(s) de fréquentation pour cette semaine
A19: Globale | B19: =SUM(B15:B18) -> 84 | C19: =SUM(C15:C18) -> 232 | D19: heure(s) de fréquentation pour les quatre semaines
D21: Fréquentation : Soirée
B22: =B14 -> Prév | C22: =C14 -> Réel | D22: =Renseignements!$B$15&" "&Renseignements!$C$15&" "&Renseignements!$D$15&" "&Renseignements!$E$15 -> 4 - 5 ans
A23: Semaine 1 | B23: =SUM(Prévisionnel!J18,Prévisionnel!N18,Prévisionnel!R18,Prévisionnel!V18,Prévisionnel!Z18)*Renseignements!B22 -> 20 | C23: =SUM(Réel!J24,Réel!N24,Réel!R24,Réel!V24,Réel!Z24)*Renseignements!B22 -> 68 | D23: heure(s) de fréquentation pour cette semaine
A24: Semaine 2 | B24: =SUM(Prévisionnel!AD18,Prévisionnel!AH18,Prévisionnel!AL18,Prévisionnel!AP18,Prévisionnel!AT18)*Renseignements!B22 -> 20 | C24: =SUM(Réel!AD24,Réel!AH24,Réel!AL24,Réel!AP24,Réel!AT24)*Renseignements!B22 -> 80 | D24: =D23 -> heure(s) de fréquentation pour cette semaine
A25: Semaine 3 | B25: =SUM(Prévisionnel!AX18,Prévisionnel!BB18,Prévisionnel!BF18,Prévisionnel!BJ18,Prévisionnel!BN18)*Renseignements!B22 -> 40 | C25: =SUM(Réel!AX24,Réel!BB24,Réel!BF24,Réel!BJ24,Réel!BN24)*Renseignements!B22 -> 80 | D25: =D23 -> heure(s) de fréquentation pour cette semaine
A26: Semaine 4 | B26: =SUM(Prévisionnel!BR18,Prévisionnel!BV18,Prévisionnel!BZ18,Prévisionnel!CD18,Prévisionnel!CH18)*Renseignements!B22 -> 0 | C26: =SUM(Réel!BR24,Réel!BV24,Réel!BZ24,Réel!CD24,Réel!CH24)*Renseignements!B22 -> 0 | D26: =D23 -> heure(s) de fréquentation pour cette semaine
A27: Globale | B27: =SUM(B23:B26) -> 80 | C27: =SUM(C23:C26) -> 228 | D27: heure(s) de fréquentation pour les quatre semaines
D29: Fréquentation : Séjour
B30: =B22 -> Prév | C30: =C22 -> Réel | D30: =Renseignements!$B$15&" "&Renseignements!$C$15&" "&Renseignements!$D$15&" "&Renseignements!$E$15 -> 4 - 5 ans
A31: Semaine 1 | B31: =SUM(Prévisionnel!K18,Prévisionnel!O18,Prévisionnel!S18,Prévisionnel!W18,Prévisionnel!AA18)*Renseignements!B24 -> 50 | C31: =SUM(Réel!K24,Réel!O24,Réel!S24,Réel!W24,Réel!AA24)*Renseignements!B24 -> 170 | D31: heure(s) de fréquentation pour cette semaine
A32: Semaine 2 | B32: =SUM(Prévisionnel!AE18,Prévisionnel!AI18,Prévisionnel!AM18,Prévisionnel!AQ18,Prévisionnel!AU18)*Renseignements!B24 -> 50 | C32: =SUM(Réel!AE24,Réel!AI24,Réel!AM24,Réel!AQ24,Réel!AU24)*Renseignements!B24 -> 200 | D32: =D31 -> heure(s) de fréquentation pour cette semaine
A33: Semaine 3 | B33: =SUM(Prévisionnel!AY18,Prévisionnel!BC18,Prévisionnel!BG18,Prévisionnel!BK18,Prévisionnel!BO18)*Renseignements!B24 -> 100 | C33: =SUM(Réel!AY24,Réel!BC24,Réel!BG24,Réel!BK24,Réel!BO24)*Renseignements!B24 -> 200 | D33: =D31 -> heure(s) de fréquentation pour cette semaine
A34: Semaine 4 | B34: =SUM(Prévisionnel!BS18,Prévisionnel!BW18,Prévisionnel!CA18,Prévisionnel!CE18,Prévisionnel!CI18)*Renseignements!B24 -> 30 | C34: =SUM(Réel!BS24,Réel!BW24,Réel!CA24,Réel!CE24,Réel!CI24)*Renseignements!B24 -> 0 | D34: =D31 -> heure(s) de fréquentation pour cette semaine
A35: Globale | B35: =SUM(B31:B34) -> 230 | C35: =SUM(C31:C34) -> 570 | D35: heure(s) de fréquentation pour les quatre semaines

Sheet Fréquentation TA2
A2: Période :
A3: =Renseignements!B11 -> Vacances de Février
D5: ='Fréquentation TA1'!D5:H5 -> Fréquentation : Matin
B6: =Moyennes!C11 -> Prév | C6: =Moyennes!D11 -> Réel | D6: =Renseignements!$B$16&" "&Renseignements!$C$16&" "&Renseignements!$D$16&" "&Renseignements!$E$16 -> 6 - 11 ans
A7: Semaine 1 | B7: =SUM(Prévisionnel!H19,Prévisionnel!L19,Prévisionnel!P19,Prévisionnel!T19,Prévisionnel!X19)*Renseignements!B20 -> 24 | C7: =SUM(Réel!H25,Réel!L25,Réel!P25,Réel!T25,Réel!X25)*Renseignements!B20 -> 64 | D7: heures de fréquentation pour cette semaine
A8: Semaine 2 | B8: =SUM(Prévisionnel!AB19,Prévisionnel!AF19,Prévisionnel!AJ19,Prévisionnel!AN19,Prévisionnel!AR19)*Renseignements!B20 -> 20 | C8: =SUM(Réel!AB25,Réel!AF25,Réel!AJ25,Réel!AN25,Réel!AR25)*Renseignements!B20 -> 80 | D8: =D7 -> heures de fréquentation pour cette semaine
A9: Semaine 3 | B9: =SUM(Prévisionnel!AV19,Prévisionnel!AZ19,Prévisionnel!BD19,Prévisionnel!BH19,Prévisionnel!BL19)*Renseignements!B20 -> 20 | C9: =SUM(Réel!AV25,Réel!AZ25,Réel!BD25,Réel!BH25,Réel!BL25)*Renseignements!B20 -> 80 | D9: =D7 -> heures de fréquentation pour cette semaine
A10: Semaine 4 | B10: =SUM(Prévisionnel!BP19,Prévisionnel!BT19,Prévisionnel!BX19,Prévisionnel!CB19,Prévisionnel!CF19)*Renseignements!B20 -> 8 | C10: =SUM(Réel!BP25,Réel!BT25,Réel!BX25,Réel!CB25,Réel!CF25)*Renseignements!B20 -> 0 | D10: =D7 -> heures de fréquentation pour cette semaine
A11: Globale | B11: =SUM(B7:B10) -> 72 | C11: =SUM(C7:C10) -> 224 | D11: heures de fréquentation pour les quatre semaines
D13: ='Fréquentation TA1'!D13:H13 -> Fréquentation : Après-midi
B14: =B6 -> Prév | C14: =C6 -> Réel | D14: =D6 -> 6 - 11 ans
A15: Semaine 1 | B15: =SUM(Prévisionnel!I19,Prévisionnel!M19,Prévisionnel!Q19,Prévisionnel!U19,Prévisionnel!Y19)*Renseignements!B21 -> 20 | C15: =SUM(Réel!I25,Réel!M25,Réel!Q25,Réel!U25,Réel!Y25)*Renseignements!B21 -> 64 | D15: =D7 -> heures de fréquentation pour cette semaine
A16: Semaine 2 | B16: =SUM(Prévisionnel!I19,Prévisionnel!M19,Prévisionnel!Q19,Prévisionnel!U19,Prévisionnel!Y19,Prévisionnel!AC19)*Renseignements!B21 -> 24 | C16: =SUM(Réel!I25,Réel!M25,Réel!Q25,Réel!U25,Réel!Y25,Réel!AC25)*Renseignements!B21 -> 80 | D16: =D7 -> heures de fréquentation pour cette semaine
A17: Semaine 3 | B17: =SUM(Prévisionnel!AW19,Prévisionnel!BA19,Prévisionnel!BE19,Prévisionnel!BI19,Prévisionnel!BM19)*Renseignements!B21 -> 20 | C17: =SUM(Réel!AW25,Réel!BA25,Réel!BE25,Réel!BI25,Réel!BM25)*Renseignements!B21 -> 80 | D17: =D7 -> heures de fréquentation pour cette semaine
A18: Semaine 4 | B18: =SUM(Prévisionnel!BQ19,Prévisionnel!BU19,Prévisionnel!BY19,Prévisionnel!CC19,Prévisionnel!CG19)*Renseignements!B21 -> 8 | C18: =SUM(Réel!BQ25,Réel!BU25,Réel!BY25,Réel!CC25,Réel!CG25)*Renseignements!B21 -> 0 | D18: =D15 -> heures de fréquentation pour cette semaine
A19: Globale | B19: =SUM(B15:B18) -> 72 | C19: =SUM(C15:C18) -> 224 | D19: =D11 -> heures de fréquentation pour les quatre semaines
D21: ='Fréquentation TA1'!D21:H21 -> Fréquentation : Soirée
B22: =B14 -> Prév | C22: =C14 -> Réel | D22: =D6 -> 6 - 11 ans
A23: Semaine 1 | B23: =SUM(Prévisionnel!J19,Prévisionnel!N19,Prévisionnel!R19,Prévisionnel!V19,Prévisionnel!Z19)*Renseignements!B22 -> 20 | C23: =SUM(Réel!J25,Réel!N25,Réel!R25,Réel!V25,Réel!Z25)*Renseignements!B22 -> 64 | D23: =D7 -> heures de fréquentation pour cette semaine
A24: Semaine 2 | B24: =SUM(Prévisionnel!AD19,Prévisionnel!AH19,Prévisionnel!AL19,Prévisionnel!AP19,Prévisionnel!AT19)*Renseignements!B22 -> 20 | C24: =SUM(Réel!AD25,Réel!AH25,Réel!AL25,Réel!AP25,Réel!AT25)*Renseignements!B22 -> 80 | D24: =D7 -> heures de fréquentation pour cette semaine
A25: Semaine 3 | B25: =SUM(Prévisionnel!AX19,Prévisionnel!BB19,Prévisionnel!BF19,Prévisionnel!BJ19,Prévisionnel!BN19)*Renseignements!B22 -> 20 | C25: =SUM(Réel!AX25,Réel!BB25,Réel!BF25,Réel!BJ25,Réel!BN25)*Renseignements!B22 -> 80 | D25: =D7 -> heures de fréquentation pour cette semaine
A26: Semaine 4 | B26: =SUM(Prévisionnel!BR19,Prévisionnel!BV19,Prévisionnel!BZ19,Prévisionnel!CD19,Prévisionnel!CH19)*Renseignements!B22 -> 4 | C26: =SUM(Réel!BR25,Réel!BV25,Réel!BZ25,Réel!CD25,Réel!CH25)*Renseignements!B22 -> 0 | D26: =D7 -> heures de fréquentation pour cette semaine
A27: Globale | B27: =SUM(B23:B26) -> 64 | C27: =SUM(C23:C26) -> 224 | D27: =D11 -> heures de fréquentation pour les quatre semaines
D29: ='Fréquentation TA1'!D29:H29 -> Fréquentation : Séjour
B30: =B22 -> Prév | C30: =C22 -> Réel | D30: =D6 -> 6 - 11 ans
A31: Semaine 1 | B31: =SUM(Prévisionnel!K19,Prévisionnel!O19,Prévisionnel!S19,Prévisionnel!W19,Prévisionnel!AA19)*Renseignements!B24 -> 50 | C31: =SUM(Réel!K25,Réel!O25,Réel!S25,Réel!W25,Réel!AA25)*Renseignements!B24 -> 160 | D31: =D23 -> heures de fréquentation pour cette semaine
A32: Semaine 2 | B32: =SUM(Prévisionnel!AE19,Prévisionnel!AI19,Prévisionnel!AM19,Prévisionnel!AQ19,Prévisionnel!AU19)*Renseignements!B24 -> 50 | C32: =SUM(Réel!AE25,Réel!AI25,Réel!AM25,Réel!AQ25,Réel!AU25)*Renseignements!B24 -> 200 | D32: =D23 -> heures de fréquentation pour cette semaine
A33: Semaine 3 | B33: =SUM(Prévisionnel!AY19,Prévisionnel!BC19,Prévisionnel!BG19,Prévisionnel!BK19,Prévisionnel!BO19)*Renseignements!B24 -> 50 | C33: =SUM(Réel!AY25,Réel!BC25,Réel!BG25,Réel!BK25,Réel!BO25)*Renseignements!B24 -> 200 | D33: =D23 -> heures de fréquentation pour cette semaine
A34: Semaine 4 | B34: =SUM(Prévisionnel!BS19,Prévisionnel!BW19,Prévisionnel!CA19,Prévisionnel!CE19,Prévisionnel!CI19)*Renseignements!B24 -> 20 | C34: =SUM(Réel!BS25,Réel!BW25,Réel!CA25,Réel!CE25,Réel!CI25)*Renseignements!B24 -> 0 | D34: =D23 -> heures de fréquentation pour cette semaine
A35: Globale | B35: =SUM(B31:B34) -> 170 | C35: =SUM(C31:C34) -> 560 | D35: =D27 -> heures de fréquentation pour les quatre semaines

Sheet Fréquentation TA3
A2: Période :
A3: =Renseignements!B11 -> Vacances de Février
D5: ='Fréquentation TA2'!D5:G5 -> Fréquentation : Matin
B6: =Moyennes!C11 -> Prév | C6: =Moyennes!D11 -> Réel | D6: =Renseignements!$B$17&" "&Renseignements!$C$17&" "&Renseignements!$D$17&" "&Renseignements!$E$17 -> 12 - 17 ans
A7: Semaine 1 | B7: =SUM(Prévisionnel!H20,Prévisionnel!L20,Prévisionnel!P20,Prévisionnel!T20,Prévisionnel!X20)*Renseignements!B20 -> 40 | C7: =SUM(Réel!H26,Réel!L26,Réel!P26,Réel!T26,Réel!X26)*Renseignements!B20 -> 80 | D7: heures de fréquentation pour cette semaine
A8: Semaine 2 | B8: =SUM(Prévisionnel!AB20,Prévisionnel!AF20,Prévisionnel!AJ20,Prévisionnel!AN20,Prévisionnel!AR20)*Renseignements!B20 -> 40 | C8: =SUM(Réel!AB26,Réel!AF26,Réel!AJ26,Réel!AN26,Réel!AR26)*Renseignements!B20 -> 80 | D8: =D7 -> heures de fréquentation pour cette semaine
A9: Semaine 3 | B9: =SUM(Prévisionnel!AV20,Prévisionnel!AZ20,Prévisionnel!BD20,Prévisionnel!BH20,Prévisionnel!BL20)*Renseignements!B20 -> 40 | C9: =SUM(Réel!AV26,Réel!AZ26,Réel!BD26,Réel!BH26,Réel!BL26)*Renseignements!B20 -> 80 | D9: =D7 -> heures de fréquentation pour cette semaine
A10: Semaine 4 | B10: =SUM(Prévisionnel!BP20,Prévisionnel!BT20,Prévisionnel!BX20,Prévisionnel!CB20,Prévisionnel!CF20)*Renseignements!B20 -> 0 | C10: =SUM(Réel!BP26,Réel!BT26,Réel!BX26,Réel!CB26,Réel!CF26)*Renseignements!B20 -> 0 | D10: =D7 -> heures de fréquentation pour cette semaine
A11: Globale | B11: =SUM(B7:B10) -> 120 | C11: =SUM(C7:C10) -> 240 | D11: heures de fréquentation pour les quatre semaines
D13: ='Fréquentation TA2'!D13:G13 -> Fréquentation : Après-midi
B14: =B6 -> Prév | C14: =C6 -> Réel | D14: =Renseignements!$B$17&" "&Renseignements!$C$17&" "&Renseignements!$D$17&" "&Renseignements!$E$17 -> 12 - 17 ans
A15: Semaine 1 | B15: =SUM(Prévisionnel!I20,Prévisionnel!M20,Prévisionnel!Q20,Prévisionnel!U20,Prévisionnel!Y20)*Renseignements!B21 -> 40 | C15: =SUM(Réel!I26,Réel!M26,Réel!Q26,Réel!U26,Réel!Y26)*Renseignements!B21 -> 80 | D15: =D7 -> heures de fréquentation pour cette semaine
A16: Semaine 2 | B16: =SUM(Prévisionnel!I20,Prévisionnel!M20,Prévisionnel!Q20,Prévisionnel!U20,Prévisionnel!Y20,Prévisionnel!AC20)*Renseignements!B21 -> 48 | C16: =SUM(Réel!I26,Réel!M26,Réel!Q26,Réel!U26,Réel!Y26,Réel!AC26)*Renseignements!B21 -> 96 | D16: =D7 -> heures de fréquentation pour cette semaine
A17: Semaine 3 | B17: =SUM(Prévisionnel!AW20,Prévisionnel!BA20,Prévisionnel!BE20,Prévisionnel!BI20,Prévisionnel!BM20)*Renseignements!B21 -> 40 | C17: =SUM(Réel!AW26,Réel!BA26,Réel!BE26,Réel!BI26,Réel!BM26)*Renseignements!B21 -> 80 | D17: =D7 -> heures de fréquentation pour cette semaine
A18: Semaine 4 | B18: =SUM(Prévisionnel!BQ20,Prévisionnel!BU20,Prévisionnel!BY20,Prévisionnel!CC20,Prévisionnel!CG20)*Renseignements!B21 -> 12 | C18: =SUM(Réel!BQ26,Réel!BU26,Réel!BY26,Réel!CC26,Réel!CG26)*Renseignements!B21 -> 0 | D18: =D7 -> heures de fréquentation pour cette semaine
A19: Globale | B19: =SUM(B15:B18) -> 140 | C19: =SUM(C15:C18) -> 256 | D19: =D11 -> heures de fréquentation pour les quatre semaines
D21: ='Fréquentation TA2'!D21:G21 -> Fréquentation : Soirée
B22: =B6 -> Prév | C22: =C6 -> Réel | D22: =Renseignements!$B$17&" "&Renseignements!$C$17&" "&Renseignements!$D$17&" "&Renseignements!$E$17 -> 12 - 17 ans
A23: Semaine 1 | B23: =SUM(Prévisionnel!J20,Prévisionnel!N20,Prévisionnel!R20,Prévisionnel!V20,Prévisionnel!Z20)*Renseignements!B22 -> 40 | C23: =SUM(Réel!J26,Réel!N26,Réel!R26,Réel!V26,Réel!Z26)*Renseignements!B22 -> 80 | D23: =D7 -> heures de fréquentation pour cette semaine
A24: Semaine 2 | B24: =SUM(Prévisionnel!AD20,Prévisionnel!AH20,Prévisionnel!AL20,Prévisionnel!AP20,Prévisionnel!AT20)*Renseignements!B22 -> 40 | C24: =SUM(Réel!AD26,Réel!AH26,Réel!AL26,Réel!AP26,Réel!AT26)*Renseignements!B22 -> 80 | D24: =D7 -> heures de fréquentation pour cette semaine
A25: Semaine 3 | B25: =SUM(Prévisionnel!AX20,Prévisionnel!BB20,Prévisionnel!BF20,Prévisionnel!BJ20,Prévisionnel!BN20)*Renseignements!B22 -> 40 | C25: =SUM(Réel!AX26,Réel!BB26,Réel!BF26,Réel!BJ26,Réel!BN26)*Renseignements!B22 -> 80 | D25: =D7 -> heures de fréquentation pour cette semaine
A26: Semaine 4 | B26: =SUM(Prévisionnel!BR20,Prévisionnel!BV20,Prévisionnel!BZ20,Prévisionnel!CD20,Prévisionnel!CH20)*Renseignements!B22 -> 16 | C26: =SUM(Réel!BR26,Réel!BV26,Réel!BZ26,Réel!CD26,Réel!CH26)*Renseignements!B22 -> 0 | D26: =D7 -> heures de fréquentation pour cette semaine
A27: Globale | B27: =SUM(B23:B26) -> 136 | C27: =SUM(C23:C26) -> 240 | D27: =D11 -> heures de fréquentation pour les quatre semaines
D29: ='Fréquentation TA2'!D29:G29 -> Fréquentation : Séjour
B30: =B14 -> Prév | C30: =C14 -> Réel | D30: =Renseignements!$B$17&" "&Renseignements!$C$17&" "&Renseignements!$D$17&" "&Renseignements!$E$17 -> 12 - 17 ans
A31: Semaine 1 | B31: =SUM(Prévisionnel!K28,Prévisionnel!O28,Prévisionnel!S28,Prévisionnel!W28,Prévisionnel!AA28)*Renseignements!B24 -> 0 | C31: =SUM(Réel!K34,Réel!O34,Réel!S34,Réel!W34,Réel!AA34)*Renseignements!B24 -> 70 | D31: =D23 -> heures de fréquentation pour cette semaine
A32: Semaine 2 | B32: =SUM(Prévisionnel!AE28,Prévisionnel!AI28,Prévisionnel!AM28,Prévisionnel!AQ28,Prévisionnel!AU28)*Renseignements!B24 -> 0 | C32: =SUM(Réel!AE34,Réel!AI34,Réel!AM34,Réel!AQ34,Réel!AU34)*Renseignements!B24 -> 100 | D32: =D23 -> heures de fréquentation pour cette semaine
A33: Semaine 3 | B33: =SUM(Prévisionnel!AY28,Prévisionnel!BC28,Prévisionnel!BG28,Prévisionnel!BK28,Prévisionnel!BO28)*Renseignements!B24 -> 50 | C33: =SUM(Réel!AY34,Réel!BC34,Réel!BG34,Réel!BK34,Réel!BO34)*Renseignements!B24 -> 100 | D33: =D23 -> heures de fréquentation pour cette semaine
A34: Semaine 4 | B34: =SUM(Prévisionnel!BS28,Prévisionnel!BW28,Prévisionnel!CA28,Prévisionnel!CE28,Prévisionnel!CI28)*Renseignements!B24 -> 10 | C34: =SUM(Réel!BS34,Réel!BW34,Réel!CA34,Réel!CE34,Réel!CI34)*Renseignements!B24 -> 0 | D34: =D23 -> heures de fréquentation pour cette semaine
A35: Globale | B35: =SUM(B31:B34) -> 60 | C35: =SUM(C31:C34) -> 270 | D35: =D19 -> heures de fréquentation pour les quatre semaines

Sheet Prév-Réel

Sheet Calculs

Sheet Feuil1
B1: Semaine 1 | V1: Semaine 2 | AP1: Semaine 3 | BJ1: Semaine 4
B2: 2016-10-26 | F2: 2016-10-27 | J2: 2016-10-28 | N2: 2016-10-29 | R2: 2016-10-30 | V2: 2016-10-31 | Z2: 2016-11-01 | AD2: 2016-11-02 | AH2: 2016-11-03 | AL2: 2016-11-04 | AP2: 2016-11-05 | AT2: 2016-11-06 | AX2: 2016-11-07 | BB2: 2016-11-08 | BF2: 2016-11-09 | BJ2: 2016-11-10 | BN2: 2016-11-11 | BR2: 2016-11-12 | BV2: 2016-11-13 | BZ2: 2016-11-14
B3: m | C3: am | D3: s | E3: sé | F3: m | G3: am | H3: s | I3: sé | J3: m | K3: am | L3: s | M3: sé | N3: m | O3: am | P3: s | Q3: sé | R3: m | S3: am | T3: s | U3: sé | V3: m | W3: am | X3: s | Y3: sé | Z3: m | AA3: am | AB3: s | AC3: sé | AD3: m | AE3: am | AF3: s | AG3: sé | AH3: m | AI3: am | AJ3: s | AK3: sé | AL3: m | AM3: am | AN3: s | AO3: sé | AP3: m | AQ3: am | AR3: s | AS3: sé | AT3: m | AU3: am | AV3: s | AW3: sé | AX3: m | AY3: am | AZ3: s | BA3: sé | BB3: m | BC3: am | BD3: s | BE3: sé | BF3: m | BG3: am | BH3: s | BI3: sé | BJ3: m | BK3: am | BL3: s | BM3: sé | BN3: m | BO3: am | BP3: s | BQ3: sé | BR3: m | BS3: am | BT3: s | BU3: sé | BV3: m | BW3: am | BX3: s | BY3: sé | BZ3: m | CA3: am | CB3: s | CC3: sé
A4: =Réel!F23 -> Total | B4: =Réel!H23 -> 10 | C4: =Réel!I23 -> 10 | D4: =Réel!J23 -> 10 | E4: =Réel!K23 -> 10 | F4: =Réel!L23 -> 10 | G4: =Réel!M23 -> 10 | H4: =Réel!N23 -> 10 | I4: =Réel!O23 -> 10 | J4: =Réel!P23 -> 12 | K4: =Réel!Q23 -> 12 | L4: =Réel!R23 -> 12 | M4: =Réel!S23 -> 12 | N4: =Réel!T23 -> 11 | O4: =Réel!U23 -> 11 | P4: =Réel!V23 -> 11 | Q4: =Réel!W23 -> 11 | R4: =Réel!X23 -> 10 | S4: =Réel!Y23 -> 10 | T4: =Réel!Z23 -> 10 | U4: =Réel!AA23 -> 10 | V4: =Réel!AB23 -> 12 | W4: =Réel!AC23 -> 12 | X4: =Réel!AD23 -> 12 | Y4: =Réel!AE23 -> 12 | Z4: =Réel!AF23 -> 12 | AA4: =Réel!AG23 -> 12 | AB4: =Réel!AH23 -> 12 | AC4: =Réel!AI23 -> 12 | AD4: =Réel!AJ23 -> 12 | AE4: =Réel!AK23 -> 12 | AF4: =Réel!AL23 -> 12 | AG4: =Réel!AM23 -> 12 | AH4: =Réel!AN23 -> 12 | AI4: =Réel!AO23 -> 12 | AJ4: =Réel!AP23 -> 12 | AK4: =Réel!AQ23 -> 12 | AL4: =Réel!AR23 -> 12 | AM4: =Réel!AS23 -> 12 | AN4: =Réel!AT23 -> 12 | AO4: =Réel!AU23 -> 12 | AP4: =Réel!AV23 -> 12 | AQ4: =Réel!AW23 -> 12 | AR4: =Réel!AX23 -> 12 | AS4: =Réel!AY23 -> 12 | AT4: =Réel!AZ23 -> 12 | AU4: =Réel!BA23 -> 12 | AV4: =Réel!BB23 -> 12 | AW4: =Réel!BC23 -> 12 | AX4: =Réel!BD23 -> 12 | AY4: =Réel!BE23 -> 12 | AZ4: =Réel!BF23 -> 12 | BA4: =Réel!BG23 -> 12 | BB4: =Réel!BH23 -> 12 | BC4: =Réel!BI23 -> 12 | BD4: =Réel!BJ23 -> 12 | BE4: =Réel!BK23 -> 12 | BF4: =Réel!BL23 -> 12 | BG4: =Réel!BM23 -> 12 | BH4: =Réel!BN23 -> 12 | BI4: =Réel!BO23 -> 12 | BJ4: =Réel!BP23 -> 0 | BK4: =Réel!BQ23 -> 0 | BL4: =Réel!BR23 -> 0 | BM4: =Réel!BS23 -> 0 | BN4: =Réel!BT23 -> 0 | BO4: =Réel!BU23 -> 0 | BP4: =Réel!BV23 -> 0 | BQ4: =Réel!BW23 -> 0 | BR4: =Réel!BX23 -> 0 | BS4: =Réel!BY23 -> 0 | BT4: =Réel!BZ23 -> 0 | BU4: =Réel!CA23 -> 0 | BV4: =Réel!CB23 -> 0 | BW4: =Réel!CC23 -> 0 | BX4: =Réel!CD23 -> 0 | BY4: =Réel!CE23 -> 0 | BZ4: =Réel!CF23 -> 0 | CA4: =Réel!CG23 -> 0 | CB4: =Réel!CH23 -> 0 | CC4: =Réel!CI23 -> 0
A5: =Réel!F24 -> 4 - 5 ans | B5: =Réel!H24 -> 3 | C5: =Réel!I24 -> 3 | D5: =Réel!J24 -> 3 | E5: =Réel!K24 -> 3 | F5: =Réel!L24 -> 3 | G5: =Réel!M24 -> 3 | H5: =Réel!N24 -> 3 | I5: =Réel!O24 -> 3 | J5: =Réel!P24 -> 4 | K5: =Réel!Q24 -> 4 | L5: =Réel!R24 -> 4 | M5: =Réel!S24 -> 4 | N5: =Réel!T24 -> 4 | O5: =Réel!U24 -> 4 | P5: =Réel!V24 -> 4 | Q5: =Réel!W24 -> 4 | R5: =Réel!X24 -> 3 | S5: =Réel!Y24 -> 3 | T5: =Réel!Z24 -> 3 | U5: =Réel!AA24 -> 3 | V5: =Réel!AB24 -> 4 | W5: =Réel!AC24 -> 4 | X5: =Réel!AD24 -> 4 | Y5: =Réel!AE24 -> 4 | Z5: =Réel!AF24 -> 4 | AA5: =Réel!AG24 -> 4 | AB5: =Réel!AH24 -> 4 | AC5: =Réel!AI24 -> 4 | AD5: =Réel!AJ24 -> 4 | AE5: =Réel!AK24 -> 4 | AF5: =Réel!AL24 -> 4 | AG5: =Réel!AM24 -> 4 | AH5: =Réel!AN24 -> 4 | AI5: =Réel!AO24 -> 4 | AJ5: =Réel!AP24 -> 4 | AK5: =Réel!AQ24 -> 4 | AL5: =Réel!AR24 -> 4 | AM5: =Réel!AS24 -> 4 | AN5: =Réel!AT24 -> 4 | AO5: =Réel!AU24 -> 4 | AP5: =Réel!AV24 -> 4 | AQ5: =Réel!AW24 -> 4 | AR5: =Réel!AX24 -> 4 | AS5: =Réel!AY24 -> 4 | AT5: =Réel!AZ24 -> 4 | AU5: =Réel!BA24 -> 4 | AV5: =Réel!BB24 -> 4 | AW5: =Réel!BC24 -> 4 | AX5: =Réel!BD24 -> 4 | AY5: =Réel!BE24 -> 4 | AZ5: =Réel!BF24 -> 4 | BA5: =Réel!BG24 -> 4 | BB5: =Réel!BH24 -> 4 | BC5: =Réel!BI24 -> 4 | BD5: =Réel!BJ24 -> 4 | BE5: =Réel!BK24 -> 4 | BF5: =Réel!BL24 -> 4 | BG5: =Réel!BM24 -> 4 | BH5: =Réel!BN24 -> 4 | BI5: =Réel!BO24 -> 4 | BJ5: =Réel!BP24 -> 0 | BK5: =Réel!BQ24 -> 0 | BL5: =Réel!BR24 -> 0 | BM5: =Réel!BS24 -> 0 | BN5: =Réel!BT24 -> 0 | BO5: =Réel!BU24 -> 0 | BP5: =Réel!BV24 -> 0 | BQ5: =Réel!BW24 -> 0 | BR5: =Réel!BX24 -> 0 | BS5: =Réel!BY24 -> 0 | BT5: =Réel!BZ24 -> 0 | BU5: =Réel!CA24 -> 0 | BV5: =Réel!CB24 -> 0 | BW5: =Réel!CC24 -> 0 | BX5: =Réel!CD24 -> 0 | BY5: =Réel!CE24 -> 0 | BZ5: =Réel!CF24 -> 0 | CA5: =Réel!CG24 -> 0 | CB5: =Réel!CH24 -> 0 | CC5: =Réel!CI24 -> 0
A6: =Réel!F25 -> 6 - 11 ans | B6: =Réel!H25 -> 3 | C6: =Réel!I25 -> 3 | D6: =Réel!J25 -> 3 | E6: =Réel!K25 -> 3 | F6: =Réel!L25 -> 3 | G6: =Réel!M25 -> 3 | H6: =Réel!N25 -> 3 | I6: =Réel!O25 -> 3 | J6: =Réel!P25 -> 4 | K6: =Réel!Q25 -> 4 | L6: =Réel!R25 -> 4 | M6: =Réel!S25 -> 4 | N6: =Réel!T25 -> 3 | O6: =Réel!U25 -> 3 | P6: =Réel!V25 -> 3 | Q6: =Réel!W25 -> 3 | R6: =Réel!X25 -> 3 | S6: =Réel!Y25 -> 3 | T6: =Réel!Z25 -> 3 | U6: =Réel!AA25 -> 3 | V6: =Réel!AB25 -> 4 | W6: =Réel!AC25 -> 4 | X6: =Réel!AD25 -> 4 | Y6: =Réel!AE25 -> 4 | Z6: =Réel!AF25 -> 4 | AA6: =Réel!AG25 -> 4 | AB6: =Réel!AH25 -> 4 | AC6: =Réel!AI25 -> 4 | AD6: =Réel!AJ25 -> 4 | AE6: =Réel!AK25 -> 4 | AF6: =Réel!AL25 -> 4 | AG6: =Réel!AM25 -> 4 | AH6: =Réel!AN25 -> 4 | AI6: =Réel!AO25 -> 4 | AJ6: =Réel!AP25 -> 4 | AK6: =Réel!AQ25 -> 4 | AL6: =Réel!AR25 -> 4 | AM6: =Réel!AS25 -> 4 | AN6: =Réel!AT25 -> 4 | AO6: =Réel!AU25 -> 4 | AP6: =Réel!AV25 -> 4 | AQ6: =Réel!AW25 -> 4 | AR6: =Réel!AX25 -> 4 | AS6: =Réel!AY25 -> 4 | AT6: =Réel!AZ25 -> 4 | AU6: =Réel!BA25 -> 4 | AV6: =Réel!BB25 -> 4 | AW6: =Réel!BC25 -> 4 | AX6: =Réel!BD25 -> 4 | AY6: =Réel!BE25 -> 4 | AZ6: =Réel!BF25 -> 4 | BA6: =Réel!BG25 -> 4 | BB6: =Réel!BH25 -> 4 | BC6: =Réel!BI25 -> 4 | BD6: =Réel!BJ25 -> 4 | BE6: =Réel!BK25 -> 4 | BF6: =Réel!BL25 -> 4 | BG6: =Réel!BM25 -> 4 | BH6: =Réel!BN25 -> 4 | BI6: =Réel!BO25 -> 4 | BJ6: =Réel!BP25 -> 0 | BK6: =Réel!BQ25 -> 0 | BL6: =Réel!BR25 -> 0 | BM6: =Réel!BS25 -> 0 | BN6: =Réel!BT25 -> 0 | BO6: =Réel!BU25 -> 0 | BP6: =Réel!BV25 -> 0 | BQ6: =Réel!BW25 -> 0 | BR6: =Réel!BX25 -> 0 | BS6: =Réel!BY25 -> 0 | BT6: =Réel!BZ25 -> 0 | BU6: =Réel!CA25 -> 0 | BV6: =Réel!CB25 -> 0 | BW6: =Réel!CC25 -> 0 | BX6: =Réel!CD25 -> 0 | BY6: =Réel!CE25 -> 0 | BZ6: =Réel!CF25 -> 0 | CA6: =Réel!CG25 -> 0 | CB6: =Réel!CH25 -> 0 | CC6: =Réel!CI25 -> 0
A7: =Réel!F26 -> 12 - 17 ans | B7: =Réel!H26 -> 4 | C7: =Réel!I26 -> 4 | D7: =Réel!J26 -> 4 | E7: =Réel!K26 -> 4 | F7: =Réel!L26 -> 4 | G7: =Réel!M26 -> 4 | H7: =Réel!N26 -> 4 | I7: =Réel!O26 -> 4 | J7: =Réel!P26 -> 4 | K7: =Réel!Q26 -> 4 | L7: =Réel!R26 -> 4 | M7: =Réel!S26 -> 4 | N7: =Réel!T26 -> 4 | O7: =Réel!U26 -> 4 | P7: =Réel!V26 -> 4 | Q7: =Réel!W26 -> 4 | R7: =Réel!X26 -> 4 | S7: =Réel!Y26 -> 4 | T7: =Réel!Z26 -> 4 | U7: =Réel!AA26 -> 4 | V7: =Réel!AB26 -> 4 | W7: =Réel!AC26 -> 4 | X7: =Réel!AD26 -> 4 | Y7: =Réel!AE26 -> 4 | Z7: =Réel!AF26 -> 4 | AA7: =Réel!AG26 -> 4 | AB7: =Réel!AH26 -> 4 | AC7: =Réel!AI26 -> 4 | AD7: =Réel!AJ26 -> 4 | AE7: =Réel!AK26 -> 4 | AF7: =Réel!AL26 -> 4 | AG7: =Réel!AM26 -> 4 | AH7: =Réel!AN26 -> 4 | AI7: =Réel!AO26 -> 4 | AJ7: =Réel!AP26 -> 4 | AK7: =Réel!AQ26 -> 4 | AL7: =Réel!AR26 -> 4 | AM7: =Réel!AS26 -> 4 | AN7: =Réel!AT26 -> 4 | AO7: =Réel!AU26 -> 4 | AP7: =Réel!AV26 -> 4 | AQ7: =Réel!AW26 -> 4 | AR7: =Réel!AX26 -> 4 | AS7: =Réel!AY26 -> 4 | AT7: =Réel!AZ26 -> 4 | AU7: =Réel!BA26 -> 4 | AV7: =Réel!BB26 -> 4 | AW7: =Réel!BC26 -> 4 | AX7: =Réel!BD26 -> 4 | AY7: =Réel!BE26 -> 4 | AZ7: =Réel!BF26 -> 4 | BA7: =Réel!BG26 -> 4 | BB7: =Réel!BH26 -> 4 | BC7: =Réel!BI26 -> 4 | BD7: =Réel!BJ26 -> 4 | BE7: =Réel!BK26 -> 4 | BF7: =Réel!BL26 -> 4 | BG7: =Réel!BM26 -> 4 | BH7: =Réel!BN26 -> 4 | BI7: =Réel!BO26 -> 4 | BJ7: =Réel!BP26 -> 0 | BK7: =Réel!BQ26 -> 0 | BL7: =Réel!BR26 -> 0 | BM7: =Réel!BS26 -> 0 | BN7: =Réel!BT26 -> 0 | BO7: =Réel!BU26 -> 0 | BP7: =Réel!BV26 -> 0 | BQ7: =Réel!BW26 -> 0 | BR7: =Réel!BX26 -> 0 | BS7: =Réel!BY26 -> 0 | BT7: =Réel!BZ26 -> 0 | BU7: =Réel!CA26 -> 0 | BV7: =Réel!CB26 -> 0 | BW7: =Réel!CC26 -> 0 | BX7: =Réel!CD26 -> 0 | BY7: =Réel!CE26 -> 0 | BZ7: =Réel!CF26 -> 0 | CA7: =Réel!CG26 -> 0 | CB7: =Réel!CH26 -> 0 | CC7: =Réel!CI26 -> 0
A8: =Réel!F27 -> Autres | B8: =Réel!H27 -> 0 | C8: =Réel!I27 -> 0 | D8: =Réel!J27 -> 0 | E8: =Réel!K27 -> 0 | F8: =Réel!L27 -> 0 | G8: =Réel!M27 -> 0 | H8: =Réel!N27 -> 0 | I8: =Réel!O27 -> 0 | J8: =Réel!P27 -> 0 | K8: =Réel!Q27 -> 0 | L8: =Réel!R27 -> 0 | M8: =Réel!S27 -> 0 | N8: =Réel!T27 -> 0 | O8: =Réel!U27 -> 0 | P8: =Réel!V27 -> 0 | Q8: =Réel!W27 -> 0 | R8: =Réel!X27 -> 0 | S8: =Réel!Y27 -> 0 | T8: =Réel!Z27 -> 0 | U8: =Réel!AA27 -> 0 | V8: =Réel!AB27 -> 0 | W8: =Réel!AC27 -> 0 | X8: =Réel!AD27 -> 0 | Y8: =Réel!AE27 -> 0 | Z8: =Réel!AF27 -> 0 | AA8: =Réel!AG27 -> 0 | AB8: =Réel!AH27 -> 0 | AC8: =Réel!AI27 -> 0 | AD8: =Réel!AJ27 -> 0 | AE8: =Réel!AK27 -> 0 | AF8: =Réel!AL27 -> 0 | AG8: =Réel!AM27 -> 0 | AH8: =Réel!AN27 -> 0 | AI8: =Réel!AO27 -> 0 | AJ8: =Réel!AP27 -> 0 | AK8: =Réel!AQ27 -> 0 | AL8: =Réel!AR27 -> 0 | AM8: =Réel!AS27 -> 0 | AN8: =Réel!AT27 -> 0 | AO8: =Réel!AU27 -> 0 | AP8: =Réel!AV27 -> 0 | AQ8: =Réel!AW27 -> 0 | AR8: =Réel!AX27 -> 0 | AS8: =Réel!AY27 -> 0 | AT8: =Réel!AZ27 -> 0 | AU8: =Réel!BA27 -> 0 | AV8: =Réel!BB27 -> 0 | AW8: =Réel!BC27 -> 0 | AX8: =Réel!BD27 -> 0 | AY8: =Réel!BE27 -> 0 | AZ8: =Réel!BF27 -> 0 | BA8: =Réel!BG27 -> 0 | BB8: =Réel!BH27 -> 0 | BC8: =Réel!BI27 -> 0 | BD8: =Réel!BJ27 -> 0 | BE8: =Réel!BK27 -> 0 | BF8: =Réel!BL27 -> 0 | BG8: =Réel!BM27 -> 0 | BH8: =Réel!BN27 -> 0 | BI8: =Réel!BO27 -> 0 | BJ8: =Réel!BP27 -> 0 | BK8: =Réel!BQ27 -> 0 | BL8: =Réel!BR27 -> 0 | BM8: =Réel!BS27 -> 0 | BN8: =Réel!BT27 -> 0 | BO8: =Réel!BU27 -> 0 | BP8: =Réel!BV27 -> 0 | BQ8: =Réel!BW27 -> 0 | BR8: =Réel!BX27 -> 0 | BS8: =Réel!BY27 -> 0 | BT8: =Réel!BZ27 -> 0 | BU8: =Réel!CA27 -> 0 | BV8: =Réel!CB27 -> 0 | BW8: =Réel!CC27 -> 0 | BX8: =Réel!CD27 -> 0 | BY8: =Réel!CE27 -> 0 | BZ8: =Réel!CF27 -> 0 | CA8: =Réel!CG27 -> 0 | CB8: =Réel!CH27 -> 0 | CC8: =Réel!CI27 -> 0
A9: =Réel!F28 -> Garçons | B9: =Réel!H28 -> 6 | C9: =Réel!I28 -> 6 | D9: =Réel!J28 -> 6 | E9: =Réel!K28 -> 6 | F9: =Réel!L28 -> 6 | G9: =Réel!M28 -> 6 | H9: =Réel!N28 -> 6 | I9: =Réel!O28 -> 6 | J9: =Réel!P28 -> 6 | K9: =Réel!Q28 -> 6 | L9: =Réel!R28 -> 6 | M9: =Réel!S28 -> 6 | N9: =Réel!T28 -> 6 | O9: =Réel!U28 -> 6 | P9: =Réel!V28 -> 6 | Q9: =Réel!W28 -> 6 | R9: =Réel!X28 -> 6 | S9: =Réel!Y28 -> 6 | T9: =Réel!Z28 -> 6 | U9: =Réel!AA28 -> 6 | V9: =Réel!AB28 -> 6 | W9: =Réel!AC28 -> 6 | X9: =Réel!AD28 -> 6 | Y9: =Réel!AE28 -> 6 | Z9: =Réel!AF28 -> 6 | AA9: =Réel!AG28 -> 6 | AB9: =Réel!AH28 -> 6 | AC9: =Réel!AI28 -> 6 | AD9: =Réel!AJ28 -> 6 | AE9: =Réel!AK28 -> 6 | AF9: =Réel!AL28 -> 6 | AG9: =Réel!AM28 -> 6 | AH9: =Réel!AN28 -> 6 | AI9: =Réel!AO28 -> 6 | AJ9: =Réel!AP28 -> 6 | AK9: =Réel!AQ28 -> 6 | AL9: =Réel!AR28 -> 6 | AM9: =Réel!AS28 -> 6 | AN9: =Réel!AT28 -> 6 | AO9: =Réel!AU28 -> 6 | AP9: =Réel!AV28 -> 6 | AQ9: =Réel!AW28 -> 6 | AR9: =Réel!AX28 -> 6 | AS9: =Réel!AY28 -> 6 | AT9: =Réel!AZ28 -> 6 | AU9: =Réel!BA28 -> 6 | AV9: =Réel!BB28 -> 6 | AW9: =Réel!BC28 -> 6 | AX9: =Réel!BD28 -> 6 | AY9: =Réel!BE28 -> 6 | AZ9: =Réel!BF28 -> 6 | BA9: =Réel!BG28 -> 6 | BB9: =Réel!BH28 -> 6 | BC9: =Réel!BI28 -> 6 | BD9: =Réel!BJ28 -> 6 | BE9: =Réel!BK28 -> 6 | BF9: =Réel!BL28 -> 6 | BG9: =Réel!BM28 -> 6 | BH9: =Réel!BN28 -> 6 | BI9: =Réel!BO28 -> 6 | BJ9: =Réel!BP28 -> 0 | BK9: =Réel!BQ28 -> 0 | BL9: =Réel!BR28 -> 0 | BM9: =Réel!BS28 -> 0 | BN9: =Réel!BT28 -> 0 | BO9: =Réel!BU28 -> 0 | BP9: =Réel!BV28 -> 0 | BQ9: =Réel!BW28 -> 0 | BR9: =Réel!BX28 -> 0 | BS9: =Réel!BY28 -> 0 | BT9: =Réel!BZ28 -> 0 | BU9: =Réel!CA28 -> 0 | BV9: =Réel!CB28 -> 0 | BW9: =Réel!CC28 -> 0 | BX9: =Réel!CD28 -> 0 | BY9: =Réel!CE28 -> 0 | BZ9: =Réel!CF28 -> 0 | CA9: =Réel!CG28 -> 0 | CB9: =Réel!CH28 -> 0 | CC9: =Réel!CI28 -> 0
A10: =Réel!F29 -> 4 - 5 ans | B10: =Réel!H29 -> 2 | C10: =Réel!I29 -> 2 | D10: =Réel!J29 -> 2 | E10: =Réel!K29 -> 2 | F10: =Réel!L29 -> 2 | G10: =Réel!M29 -> 2 | H10: =Réel!N29 -> 2 | I10: =Réel!O29 -> 2 | J10: =Réel!P29 -> 2 | K10: =Réel!Q29 -> 2 | L10: =Réel!R29 -> 2 | M10: =Réel!S29 -> 2 | N10: =Réel!T29 -> 2 | O10: =Réel!U29 -> 2 | P10: =Réel!V29 -> 2 | Q10: =Réel!W29 -> 2 | R10: =Réel!X29 -> 2 | S10: =Réel!Y29 -> 2 | T10: =Réel!Z29 -> 2 | U10: =Réel!AA29 -> 2 | V10: =Réel!AB29 -> 2 | W10: =Réel!AC29 -> 2 | X10: =Réel!AD29 -> 2 | Y10: =Réel!AE29 -> 2 | Z10: =Réel!AF29 -> 2 | AA10: =Réel!AG29 -> 2 | AB10: =Réel!AH29 -> 2 | AC10: =Réel!AI29 -> 2 | AD10: =Réel!AJ29 -> 2 | AE10: =Réel!AK29 -> 2 | AF10: =Réel!AL29 -> 2 | AG10: =Réel!AM29 -> 2 | AH10: =Réel!AN29 -> 2 | AI10: =Réel!AO29 -> 2 | AJ10: =Réel!AP29 -> 2 | AK10: =Réel!AQ29 -> 2 | AL10: =Réel!AR29 -> 2 | AM10: =Réel!AS29 -> 2 | AN10: =Réel!AT29 -> 2 | AO10: =Réel!AU29 -> 2 | AP10: =Réel!AV29 -> 2 | AQ10: =Réel!AW29 -> 2 | AR10: =Réel!AX29 -> 2 | AS10: =Réel!AY29 -> 2 | AT10: =Réel!AZ29 -> 2 | AU10: =Réel!BA29 -> 2 | AV10: =Réel!BB29 -> 2 | AW10: =Réel!BC29 -> 2 | AX10: =Réel!BD29 -> 2 | AY10: =Réel!BE29 -> 2 | AZ10: =Réel!BF29 -> 2 | BA10: =Réel!BG29 -> 2 | BB10: =Réel!BH29 -> 2 | BC10: =Réel!BI29 -> 2 | BD10: =Réel!BJ29 -> 2 | BE10: =Réel!BK29 -> 2 | BF10: =Réel!BL29 -> 2 | BG10: =Réel!BM29 -> 2 | BH10: =Réel!BN29 -> 2 | BI10: =Réel!BO29 -> 2 | BJ10: =Réel!BP29 -> 0 | BK10: =Réel!BQ29 -> 0 | BL10: =Réel!BR29 -> 0 | BM10: =Réel!BS29 -> 0 | BN10: =Réel!BT29 -> 0 | BO10: =Réel!BU29 -> 0 | BP10: =Réel!BV29 -> 0 | BQ10: =Réel!BW29 -> 0 | BR10: =Réel!BX29 -> 0 | BS10: =Réel!BY29 -> 0 | BT10: =Réel!BZ29 -> 0 | BU10: =Réel!CA29 -> 0 | BV10: =Réel!CB29 -> 0 | BW10: =Réel!CC29 -> 0 | BX10: =Réel!CD29 -> 0 | BY10: =Réel!CE29 -> 0 | BZ10: =Réel!CF29 -> 0 | CA10: =Réel!CG29 -> 0 | CB10: =Réel!CH29 -> 0 | CC10: =Réel!CI29 -> 0
A11: =Réel!F30 -> 6 - 11 ans | B11: =Réel!H30 -> 2 | C11: =Réel!I30 -> 2 | D11: =Réel!J30 -> 2 | E11: =Réel!K30 -> 2 | F11: =Réel!L30 -> 2 | G11: =Réel!M30 -> 2 | H11: =Réel!N30 -> 2 | I11: =Réel!O30 -> 2 | J11: =Réel!P30 -> 2 | K11: =Réel!Q30 -> 2 | L11: =Réel!R30 -> 2 | M11: =Réel!S30 -> 2 | N11: =Réel!T30 -> 2 | O11: =Réel!U30 -> 2 | P11: =Réel!V30 -> 2 | Q11: =Réel!W30 -> 2 | R11: =Réel!X30 -> 2 | S11: =Réel!Y30 -> 2 | T11: =Réel!Z30 -> 2 | U11: =Réel!AA30 -> 2 | V11: =Réel!AB30 -> 2 | W11: =Réel!AC30 -> 2 | X11: =Réel!AD30 -> 2 | Y11: =Réel!AE30 -> 2 | Z11: =Réel!AF30 -> 2 | AA11: =Réel!AG30 -> 2 | AB11: =Réel!AH30 -> 2 | AC11: =Réel!AI30 -> 2 | AD11: =Réel!AJ30 -> 2 | AE11: =Réel!AK30 -> 2 | AF11: =Réel!AL30 -> 2 | AG11: =Réel!AM30 -> 2 | AH11: =Réel!AN30 -> 2 | AI11: =Réel!AO30 -> 2 | AJ11: =Réel!AP30 -> 2 | AK11: =Réel!AQ30 -> 2 | AL11: =Réel!AR30 -> 2 | AM11: =Réel!AS30 -> 2 | AN11: =Réel!AT30 -> 2 | AO11: =Réel!AU30 -> 2 | AP11: =Réel!AV30 -> 2 | AQ11: =Réel!AW30 -> 2 | AR11: =Réel!AX30 -> 2 | AS11: =Réel!AY30 -> 2 | AT11: =Réel!AZ30 -> 2 | AU11: =Réel!BA30 -> 2 | AV11: =Réel!BB30 -> 2 | AW11: =Réel!BC30 -> 2 | AX11: =Réel!BD30 -> 2 | AY11: =Réel!BE30 -> 2 | AZ11: =Réel!BF30 -> 2 | BA11: =Réel!BG30 -> 2 | BB11: =Réel!BH30 -> 2 | BC11: =Réel!BI30 -> 2 | BD11: =Réel!BJ30 -> 2 | BE11: =Réel!BK30 -> 2 | BF11: =Réel!BL30 -> 2 | BG11: =Réel!BM30 -> 2 | BH11: =Réel!BN30 -> 2 | BI11: =Réel!BO30 -> 2 | BJ11: =Réel!BP30 -> 0 | BK11: =Réel!BQ30 -> 0 | BL11: =Réel!BR30 -> 0 | BM11: =Réel!BS30 -> 0 | BN11: =Réel!BT30 -> 0 | BO11: =Réel!BU30 -> 0 | BP11: =Réel!BV30 -> 0 | BQ11: =Réel!BW30 -> 0 | BR11: =Réel!BX30 -> 0 | BS11: =Réel!BY30 -> 0 | BT11: =Réel!BZ30 -> 0 | BU11: =Réel!CA30 -> 0 | BV11: =Réel!CB30 -> 0 | BW11: =Réel!CC30 -> 0 | BX11: =Réel!CD30 -> 0 | BY11: =Réel!CE30 -> 0 | BZ11: =Réel!CF30 -> 0 | CA11: =Réel!CG30 -> 0 | CB11: =Réel!CH30 -> 0 | CC11: =Réel!CI30 -> 0
A12: =Réel!F31 -> 12 - 17 ans | B12: =Réel!H31 -> 2 | C12: =Réel!I31 -> 2 | D12: =Réel!J31 -> 2 | E12: =Réel!K31 -> 2 | F12: =Réel!L31 -> 2 | G12: =Réel!M31 -> 2 | H12: =Réel!N31 -> 2 | I12: =Réel!O31 -> 2 | J12: =Réel!P31 -> 2 | K12: =Réel!Q31 -> 2 | L12: =Réel!R31 -> 2 | M12: =Réel!S31 -> 2 | N12: =Réel!T31 -> 2 | O12: =Réel!U31 -> 2 | P12: =Réel!V31 -> 2 | Q12: =Réel!W31 -> 2 | R12: =Réel!X31 -> 2 | S12: =Réel!Y31 -> 2 | T12: =Réel!Z31 -> 2 | U12: =Réel!AA31 -> 2 | V12: =Réel!AB31 -> 2 | W12: =Réel!AC31 -> 2 | X12: =Réel!AD31 -> 2 | Y12: =Réel!AE31 -> 2 | Z12: =Réel!AF31 -> 2 | AA12: =Réel!AG31 -> 2 | AB12: =Réel!AH31 -> 2 | AC12: =Réel!AI31 -> 2 | AD12: =Réel!AJ31 -> 2 | AE12: =Réel!AK31 -> 2 | AF12: =Réel!AL31 -> 2 | AG12: =Réel!AM31 -> 2 | AH12: =Réel!AN31 -> 2 | AI12: =Réel!AO31 -> 2 | AJ12: =Réel!AP31 -> 2 | AK12: =Réel!AQ31 -> 2 | AL12: =Réel!AR31 -> 2 | AM12: =Réel!AS31 -> 2 | AN12: =Réel!AT31 -> 2 | AO12: =Réel!AU31 -> 2 | AP12: =Réel!AV31 -> 2 | AQ12: =Réel!AW31 -> 2 | AR12: =Réel!AX31 -> 2 | AS12: =Réel!AY31 -> 2 | AT12: =Réel!AZ31 -> 2 | AU12: =Réel!BA31 -> 2 | AV12: =Réel!BB31 -> 2 | AW12: =Réel!BC31 -> 2 | AX12: =Réel!BD31 -> 2 | AY12: =Réel!BE31 -> 2 | AZ12: =Réel!BF31 -> 2 | BA12: =Réel!BG31 -> 2 | BB12: =Réel!BH31 -> 2 | BC12: =Réel!BI31 -> 2 | BD12: =Réel!BJ31 -> 2 | BE12: =Réel!BK31 -> 2 | BF12: =Réel!BL31 -> 2 | BG12: =Réel!BM31 -> 2 | BH12: =Réel!BN31 -> 2 | BI12: =Réel!BO31 -> 2 | BJ12: =Réel!BP31 -> 0 | BK12: =Réel!BQ31 -> 0 | BL12: =Réel!BR31 -> 0 | BM12: =Réel!BS31 -> 0 | BN12: =Réel!BT31 -> 0 | BO12: =Réel!BU31 -> 0 | BP12: =Réel!BV31 -> 0 | BQ12: =Réel!BW31 -> 0 | BR12: =Réel!BX31 -> 0 | BS12: =Réel!BY31 -> 0 | BT12: =Réel!BZ31 -> 0 | BU12: =Réel!CA31 -> 0 | BV12: =Réel!CB31 -> 0 | BW12: =Réel!CC31 -> 0 | BX12: =Réel!CD31 -> 0 | BY12: =Réel!CE31 -> 0 | BZ12: =Réel!CF31 -> 0 | CA12: =Réel!CG31 -> 0 | CB12: =Réel!CH31 -> 0 | CC12: =Réel!CI31 -> 0
A13: =Réel!F32 -> Autres | B13: =Réel!H32 -> 0 | C13: =Réel!I32 -> 0 | D13: =Réel!J32 -> 0 | E13: =Réel!K32 -> 0 | F13: =Réel!L32 -> 0 | G13: =Réel!M32 -> 0 | H13: =Réel!N32 -> 0 | I13: =Réel!O32 -> 0 | J13: =Réel!P32 -> 0 | K13: =Réel!Q32 -> 0 | L13: =Réel!R32 -> 0 | M13: =Réel!S32 -> 0 | N13: =Réel!T32 -> 0 | O13: =Réel!U32 -> 0 | P13: =Réel!V32 -> 0 | Q13: =Réel!W32 -> 0 | R13: =Réel!X32 -> 0 | S13: =Réel!Y32 -> 0 | T13: =Réel!Z32 -> 0 | U13: =Réel!AA32 -> 0 | V13: =Réel!AB32 -> 0 | W13: =Réel!AC32 -> 0 | X13: =Réel!AD32 -> 0 | Y13: =Réel!AE32 -> 0 | Z13: =Réel!AF32 -> 0 | AA13: =Réel!AG32 -> 0 | AB13: =Réel!AH32 -> 0 | AC13: =Réel!AI32 -> 0 | AD13: =Réel!AJ32 -> 0 | AE13: =Réel!AK32 -> 0 | AF13: =Réel!AL32 -> 0 | AG13: =Réel!AM32 -> 0 | AH13: =Réel!AN32 -> 0 | AI13: =Réel!AO32 -> 0 | AJ13: =Réel!AP32 -> 0 | AK13: =Réel!AQ32 -> 0 | AL13: =Réel!AR32 -> 0 | AM13: =Réel!AS32 -> 0 | AN13: =Réel!AT32 -> 0 | AO13: =Réel!AU32 -> 0 | AP13: =Réel!AV32 -> 0 | AQ13: =Réel!AW32 -> 0 | AR13: =Réel!AX32 -> 0 | AS13: =Réel!AY32 -> 0 | AT13: =Réel!AZ32 -> 0 | AU13: =Réel!BA32 -> 0 | AV13: =Réel!BB32 -> 0 | AW13: =Réel!BC32 -> 0 | AX13: =Réel!BD32 -> 0 | AY13: =Réel!BE32 -> 0 | AZ13: =Réel!BF32 -> 0 | BA13: =Réel!BG32 -> 0 | BB13: =Réel!BH32 -> 0 | BC13: =Réel!BI32 -> 0 | BD13: =Réel!BJ32 -> 0 | BE13: =Réel!BK32 -> 0 | BF13: =Réel!BL32 -> 0 | BG13: =Réel!BM32 -> 0 | BH13: =Réel!BN32 -> 0 | BI13: =Réel!BO32 -> 0 | BJ13: =Réel!BP32 -> 0 | BK13: =Réel!BQ32 -> 0 | BL13: =Réel!BR32 -> 0 | BM13: =Réel!BS32 -> 0 | BN13: =Réel!BT32 -> 0 | BO13: =Réel!BU32 -> 0 | BP13: =Réel!BV32 -> 0 | BQ13: =Réel!BW32 -> 0 | BR13: =Réel!BX32 -> 0 | BS13: =Réel!BY32 -> 0 | BT13: =Réel!BZ32 -> 0 | BU13: =Réel!CA32 -> 0 | BV13: =Réel!CB32 -> 0 | BW13: =Réel!CC32 -> 0 | BX13: =Réel!CD32 -> 0 | BY13: =Réel!CE32 -> 0 | BZ13: =Réel!CF32 -> 0 | CA13: =Réel!CG32 -> 0 | CB13: =Réel!CH32 -> 0 | CC13: =Réel!CI32 -> 0
A14: =Réel!F33 -> Filles | B14: =Réel!H33 -> 4 | C14: =Réel!I33 -> 4 | D14: =Réel!J33 -> 4 | E14: =Réel!K33 -> 4 | F14: =Réel!L33 -> 4 | G14: =Réel!M33 -> 4 | H14: =Réel!N33 -> 4 | I14: =Réel!O33 -> 4 | J14: =Réel!P33 -> 6 | K14: =Réel!Q33 -> 6 | L14: =Réel!R33 -> 6 | M14: =Réel!S33 -> 6 | N14: =Réel!T33 -> 5 | O14: =Réel!U33 -> 5 | P14: =Réel!V33 -> 5 | Q14: =Réel!W33 -> 5 | R14: =Réel!X33 -> 4 | S14: =Réel!Y33 -> 4 | T14: =Réel!Z33 -> 4 | U14: =Réel!AA33 -> 4 | V14: =Réel!AB33 -> 6 | W14: =Réel!AC33 -> 6 | X14: =Réel!AD33 -> 6 | Y14: =Réel!AE33 -> 6 | Z14: =Réel!AF33 -> 6 | AA14: =Réel!AG33 -> 6 | AB14: =Réel!AH33 -> 6 | AC14: =Réel!AI33 -> 6 | AD14: =Réel!AJ33 -> 6 | AE14: =Réel!AK33 -> 6 | AF14: =Réel!AL33 -> 6 | AG14: =Réel!AM33 -> 6 | AH14: =Réel!AN33 -> 6 | AI14: =Réel!AO33 -> 6 | AJ14: =Réel!AP33 -> 6 | AK14: =Réel!AQ33 -> 6 | AL14: =Réel!AR33 -> 6 | AM14: =Réel!AS33 -> 6 | AN14: =Réel!AT33 -> 6 | AO14: =Réel!AU33 -> 6 | AP14: =Réel!AV33 -> 6 | AQ14: =Réel!AW33 -> 6 | AR14: =Réel!AX33 -> 6 | AS14: =Réel!AY33 -> 6 | AT14: =Réel!AZ33 -> 6 | AU14: =Réel!BA33 -> 6 | AV14: =Réel!BB33 -> 6 | AW14: =Réel!BC33 -> 6 | AX14: =Réel!BD33 -> 6 | AY14: =Réel!BE33 -> 6 | AZ14: =Réel!BF33 -> 6 | BA14: =Réel!BG33 -> 6 | BB14: =Réel!BH33 -> 6 | BC14: =Réel!BI33 -> 6 | BD14: =Réel!BJ33 -> 6 | BE14: =Réel!BK33 -> 6 | BF14: =Réel!BL33 -> 6 | BG14: =Réel!BM33 -> 6 | BH14: =Réel!BN33 -> 6 | BI14: =Réel!BO33 -> 6 | BJ14: =Réel!BP33 -> 0 | BK14: =Réel!BQ33 -> 0 | BL14: =Réel!BR33 -> 0 | BM14: =Réel!BS33 -> 0 | BN14: =Réel!BT33 -> 0 | BO14: =Réel!BU33 -> 0 | BP14: =Réel!BV33 -> 0 | BQ14: =Réel!BW33 -> 0 | BR14: =Réel!BX33 -> 0 | BS14: =Réel!BY33 -> 0 | BT14: =Réel!BZ33 -> 0 | BU14: =Réel!CA33 -> 0 | BV14: =Réel!CB33 -> 0 | BW14: =Réel!CC33 -> 0 | BX14: =Réel!CD33 -> 0 | BY14: =Réel!CE33 -> 0 | BZ14: =Réel!CF33 -> 0 | CA14: =Réel!CG33 -> 0 | CB14: =Réel!CH33 -> 0 | CC14: =Réel!CI33 -> 0
A15: =Réel!F34 -> 4 - 5 ans | B15: =Réel!H34 -> 1 | C15: =Réel!I34 -> 1 | D15: =Réel!J34 -> 1 | E15: =Réel!K34 -> 1 | F15: =Réel!L34 -> 1 | G15: =Réel!M34 -> 1 | H15: =Réel!N34 -> 1 | I15: =Réel!O34 -> 1 | J15: =Réel!P34 -> 2 | K15: =Réel!Q34 -> 2 | L15: =Réel!R34 -> 2 | M15: =Réel!S34 -> 2 | N15: =Réel!T34 -> 2 | O15: =Réel!U34 -> 2 | P15: =Réel!V34 -> 2 | Q15: =Réel!W34 -> 2 | R15: =Réel!X34 -> 1 | S15: =Réel!Y34 -> 1 | T15: =Réel!Z34 -> 1 | U15: =Réel!AA34 -> 1 | V15: =Réel!AB34 -> 2 | W15: =Réel!AC34 -> 2 | X15: =Réel!AD34 -> 2 | Y15: =Réel!AE34 -> 2 | Z15: =Réel!AF34 -> 2 | AA15: =Réel!AG34 -> 2 | AB15: =Réel!AH34 -> 2 | AC15: =Réel!AI34 -> 2 | AD15: =Réel!AJ34 -> 2 | AE15: =Réel!AK34 -> 2 | AF15: =Réel!AL34 -> 2 | AG15: =Réel!AM34 -> 2 | AH15: =Réel!AN34 -> 2 | AI15: =Réel!AO34 -> 2 | AJ15: =Réel!AP34 -> 2 | AK15: =Réel!AQ34 -> 2 | AL15: =Réel!AR34 -> 2 | AM15: =Réel!AS34 -> 2 | AN15: =Réel!AT34 -> 2 | AO15: =Réel!AU34 -> 2 | AP15: =Réel!AV34 -> 2 | AQ15: =Réel!AW34 -> 2 | AR15: =Réel!AX34 -> 2 | AS15: =Réel!AY34 -> 2 | AT15: =Réel!AZ34 -> 2 | AU15: =Réel!BA34 -> 2 | AV15: =Réel!BB34 -> 2 | AW15: =Réel!BC34 -> 2 | AX15: =Réel!BD34 -> 2 | AY15: =Réel!BE34 -> 2 | AZ15: =Réel!BF34 -> 2 | BA15: =Réel!BG34 -> 2 | BB15: =Réel!BH34 -> 2 | BC15: =Réel!BI34 -> 2 | BD15: =Réel!BJ34 -> 2 | BE15: =Réel!BK34 -> 2 | BF15: =Réel!BL34 -> 2 | BG15: =Réel!BM34 -> 2 | BH15: =Réel!BN34 -> 2 | BI15: =Réel!BO34 -> 2 | BJ15: =Réel!BP34 -> 0 | BK15: =Réel!BQ34 -> 0 | BL15: =Réel!BR34 -> 0 | BM15: =Réel!BS34 -> 0 | BN15: =Réel!BT34 -> 0 | BO15: =Réel!BU34 -> 0 | BP15: =Réel!BV34 -> 0 | BQ15: =Réel!BW34 -> 0 | BR15: =Réel!BX34 -> 0 | BS15: =Réel!BY34 -> 0 | BT15: =Réel!BZ34 -> 0 | BU15: =Réel!CA34 -> 0 | BV15: =Réel!CB34 -> 0 | BW15: =Réel!CC34 -> 0 | BX15: =Réel!CD34 -> 0 | BY15: =Réel!CE34 -> 0 | BZ15: =Réel!CF34 -> 0 | CA15: =Réel!CG34 -> 0 | CB15: =Réel!CH34 -> 0 | CC15: =Réel!CI34 -> 0
A16: =Réel!F35 -> 6 - 11 ans | B16: =Réel!H35 -> 1 | C16: =Réel!I35 -> 1 | D16: =Réel!J35 -> 1 | E16: =Réel!K35 -> 1 | F16: =Réel!L35 -> 1 | G16: =Réel!M35 -> 1 | H16: =Réel!N35 -> 1 | I16: =Réel!O35 -> 1 | J16: =Réel!P35 -> 2 | K16: =Réel!Q35 -> 2 | L16: =Réel!R35 -> 2 | M16: =Réel!S35 -> 2 | N16: =Réel!T35 -> 1 | O16: =Réel!U35 -> 1 | P16: =Réel!V35 -> 1 | Q16: =Réel!W35 -> 1 | R16: =Réel!X35 -> 1 | S16: =Réel!Y35 -> 1 | T16: =Réel!Z35 -> 1 | U16: =Réel!AA35 -> 1 | V16: =Réel!AB35 -> 2 | W16: =Réel!AC35 -> 2 | X16: =Réel!AD35 -> 2 | Y16: =Réel!AE35 -> 2 | Z16: =Réel!AF35 -> 2 | AA16: =Réel!AG35 -> 2 | AB16: =Réel!AH35 -> 2 | AC16: =Réel!AI35 -> 2 | AD16: =Réel!AJ35 -> 2 | AE16: =Réel!AK35 -> 2 | AF16: =Réel!AL35 -> 2 | AG16: =Réel!AM35 -> 2 | AH16: =Réel!AN35 -> 2 | AI16: =Réel!AO35 -> 2 | AJ16: =Réel!AP35 -> 2 | AK16: =Réel!AQ35 -> 2 | AL16: =Réel!AR35 -> 2 | AM16: =Réel!AS35 -> 2 | AN16: =Réel!AT35 -> 2 | AO16: =Réel!AU35 -> 2 | AP16: =Réel!AV35 -> 2 | AQ16: =Réel!AW35 -> 2 | AR16: =Réel!AX35 -> 2 | AS16: =Réel!AY35 -> 2 | AT16: =Réel!AZ35 -> 2 | AU16: =Réel!BA35 -> 2 | AV16: =Réel!BB35 -> 2 | AW16: =Réel!BC35 -> 2 | AX16: =Réel!BD35 -> 2 | AY16: =Réel!BE35 -> 2 | AZ16: =Réel!BF35 -> 2 | BA16: =Réel!BG35 -> 2 | BB16: =Réel!BH35 -> 2 | BC16: =Réel!BI35 -> 2 | BD16: =Réel!BJ35 -> 2 | BE16: =Réel!BK35 -> 2 | BF16: =Réel!BL35 -> 2 | BG16: =Réel!BM35 -> 2 | BH16: =Réel!BN35 -> 2 | BI16: =Réel!BO35 -> 2 | BJ16: =Réel!BP35 -> 0 | BK16: =Réel!BQ35 -> 0 | BL16: =Réel!BR35 -> 0 | BM16: =Réel!BS35 -> 0 | BN16: =Réel!BT35 -> 0 | BO16: =Réel!BU35 -> 0 | BP16: =Réel!BV35 -> 0 | BQ16: =Réel!BW35 -> 0 | BR16: =Réel!BX35 -> 0 | BS16: =Réel!BY35 -> 0 | BT16: =Réel!BZ35 -> 0 | BU16: =Réel!CA35 -> 0 | BV16: =Réel!CB35 -> 0 | BW16: =Réel!CC35 -> 0 | BX16: =Réel!CD35 -> 0 | BY16: =Réel!CE35 -> 0 | BZ16: =Réel!CF35 -> 0 | CA16: =Réel!CG35 -> 0 | CB16: =Réel!CH35 -> 0 | CC16: =Réel!CI35 -> 0
A17: =Réel!F36 -> 12 - 17 ans | B17: =Réel!H36 -> 2 | C17: =Réel!I36 -> 2 | D17: =Réel!J36 -> 2 | E17: =Réel!K36 -> 2 | F17: =Réel!L36 -> 2 | G17: =Réel!M36 -> 2 | H17: =Réel!N36 -> 2 | I17: =Réel!O36 -> 2 | J17: =Réel!P36 -> 2 | K17: =Réel!Q36 -> 2 | L17: =Réel!R36 -> 2 | M17: =Réel!S36 -> 2 | N17: =Réel!T36 -> 2 | O17: =Réel!U36 -> 2 | P17: =Réel!V36 -> 2 | Q17: =Réel!W36 -> 2 | R17: =Réel!X36 -> 2 | S17: =Réel!Y36 -> 2 | T17: =Réel!Z36 -> 2 | U17: =Réel!AA36 -> 2 | V17: =Réel!AB36 -> 2 | W17: =Réel!AC36 -> 2 | X17: =Réel!AD36 -> 2 | Y17: =Réel!AE36 -> 2 | Z17: =Réel!AF36 -> 2 | AA17: =Réel!AG36 -> 2 | AB17: =Réel!AH36 -> 2 | AC17: =Réel!AI36 -> 2 | AD17: =Réel!AJ36 -> 2 | AE17: =Réel!AK36 -> 2 | AF17: =Réel!AL36 -> 2 | AG17: =Réel!AM36 -> 2 | AH17: =Réel!AN36 -> 2 | AI17: =Réel!AO36 -> 2 | AJ17: =Réel!AP36 -> 2 | AK17: =Réel!AQ36 -> 2 | AL17: =Réel!AR36 -> 2 | AM17: =Réel!AS36 -> 2 | AN17: =Réel!AT36 -> 2 | AO17: =Réel!AU36 -> 2 | AP17: =Réel!AV36 -> 2 | AQ17: =Réel!AW36 -> 2 | AR17: =Réel!AX36 -> 2 | AS17: =Réel!AY36 -> 2 | AT17: =Réel!AZ36 -> 2 | AU17: =Réel!BA36 -> 2 | AV17: =Réel!BB36 -> 2 | AW17: =Réel!BC36 -> 2 | AX17: =Réel!BD36 -> 2 | AY17: =Réel!BE36 -> 2 | AZ17: =Réel!BF36 -> 2 | BA17: =Réel!BG36 -> 2 | BB17: =Réel!BH36 -> 2 | BC17: =Réel!BI36 -> 2 | BD17: =Réel!BJ36 -> 2 | BE17: =Réel!BK36 -> 2 | BF17: =Réel!BL36 -> 2 | BG17: =Réel!BM36 -> 2 | BH17: =Réel!BN36 -> 2 | BI17: =Réel!BO36 -> 2 | BJ17: =Réel!BP36 -> 0 | BK17: =Réel!BQ36 -> 0 | BL17: =Réel!BR36 -> 0 | BM17: =Réel!BS36 -> 0 | BN17: =Réel!BT36 -> 0 | BO17: =Réel!BU36 -> 0 | BP17: =Réel!BV36 -> 0 | BQ17: =Réel!BW36 -> 0 | BR17: =Réel!BX36 -> 0 | BS17: =Réel!BY36 -> 0 | BT17: =Réel!BZ36 -> 0 | BU17: =Réel!CA36 -> 0 | BV17: =Réel!CB36 -> 0 | BW17: =Réel!CC36 -> 0 | BX17: =Réel!CD36 -> 0 | BY17: =Réel!CE36 -> 0 | BZ17: =Réel!CF36 -> 0 | CA17: =Réel!CG36 -> 0 | CB17: =Réel!CH36 -> 0 | CC17: =Réel!CI36 -> 0
A18: =Réel!F37 -> Autres | B18: =Réel!H37 -> 0 | C18: =Réel!I37 -> 0 | D18: =Réel!J37 -> 0 | E18: =Réel!K37 -> 0 | F18: =Réel!L37 -> 0 | G18: =Réel!M37 -> 0 | H18: =Réel!N37 -> 0 | I18: =Réel!O37 -> 0 | J18: =Réel!P37 -> 0 | K18: =Réel!Q37 -> 0 | L18: =Réel!R37 -> 0 | M18: =Réel!S37 -> 0 | N18: =Réel!T37 -> 0 | O18: =Réel!U37 -> 0 | P18: =Réel!V37 -> 0 | Q18: =Réel!W37 -> 0 | R18: =Réel!X37 -> 0 | S18: =Réel!Y37 -> 0 | T18: =Réel!Z37 -> 0 | U18: =Réel!AA37 -> 0 | V18: =Réel!AB37 -> 0 | W18: =Réel!AC37 -> 0 | X18: =Réel!AD37 -> 0 | Y18: =Réel!AE37 -> 0 | Z18: =Réel!AF37 -> 0 | AA18: =Réel!AG37 -> 0 | AB18: =Réel!AH37 -> 0 | AC18: =Réel!AI37 -> 0 | AD18: =Réel!AJ37 -> 0 | AE18: =Réel!AK37 -> 0 | AF18: =Réel!AL37 -> 0 | AG18: =Réel!AM37 -> 0 | AH18: =Réel!AN37 -> 0 | AI18: =Réel!AO37 -> 0 | AJ18: =Réel!AP37 -> 0 | AK18: =Réel!AQ37 -> 0 | AL18: =Réel!AR37 -> 0 | AM18: =Réel!AS37 -> 0 | AN18: =Réel!AT37 -> 0 | AO18: =Réel!AU37 -> 0 | AP18: =Réel!AV37 -> 0 | AQ18: =Réel!AW37 -> 0 | AR18: =Réel!AX37 -> 0 | AS18: =Réel!AY37 -> 0 | AT18: =Réel!AZ37 -> 0 | AU18: =Réel!BA37 -> 0 | AV18: =Réel!BB37 -> 0 | AW18: =Réel!BC37 -> 0 | AX18: =Réel!BD37 -> 0 | AY18: =Réel!BE37 -> 0 | AZ18: =Réel!BF37 -> 0 | BA18: =Réel!BG37 -> 0 | BB18: =Réel!BH37 -> 0 | BC18: =Réel!BI37 -> 0 | BD18: =Réel!BJ37 -> 0 | BE18: =Réel!BK37 -> 0 | BF18: =Réel!BL37 -> 0 | BG18: =Réel!BM37 -> 0 | BH18: =Réel!BN37 -> 0 | BI18: =Réel!BO37 -> 0 | BJ18: =Réel!BP37 -> 0 | BK18: =Réel!BQ37 -> 0 | BL18: =Réel!BR37 -> 0 | BM18: =Réel!BS37 -> 0 | BN18: =Réel!BT37 -> 0 | BO18: =Réel!BU37 -> 0 | BP18: =Réel!BV37 -> 0 | BQ18: =Réel!BW37 -> 0 | BR18: =Réel!BX37 -> 0 | BS18: =Réel!BY37 -> 0 | BT18: =Réel!BZ37 -> 0 | BU18: =Réel!CA37 -> 0 | BV18: =Réel!CB37 -> 0 | BW18: =Réel!CC37 -> 0 | BX18: =Réel!CD37 -> 0 | BY18: =Réel!CE37 -> 0 | BZ18: =Réel!CF37 -> 0 | CA18: =Réel!CG37 -> 0 | CB18: =Réel!CH37 -> 0 | CC18: =Réel!CI37 -> 0
